Workbook

Sheet สรุป (hidden)
A2: สรุปจำนวนกิจกรรมตามแผนปฏิบัติการ ประจำปี 2563 (ฉบับทบทวนครั้งที่ 1) สายงานการไฟฟ้า ภาค 2
A3: ผู้รับผิดชอบหลัก | B3: จำนวนกิจกรรม
A4: กกค. | B4: 10
A5: กซข. | B5: 1
A6: กซข.,กบญ. | B6: 1
A7: กบญ.,กกค. | B7: 2
A8: กบญ.,กบล. | B8: 4
A9: กบล. | B9: 69
A10: กบล.,กซข. | B10: 1
A11: กบล.,กบญ.,กบษ.,กรท. | B11: 1
A12: กบษ. | B12: 12
A13: กปบ. | B13: 12
A14: กรท.,กบญ.,กบล. | B14: 1
A15: กรท.,กอก. | B15: 1
A16: กวว. | B16: 18
A17: กวว.,กกค. | B17: 3
A18: กอก. | B18: 9
A19: กอก.,กบษ.,กบล. | B19: 1
A20: คณะทำงานฯ GO | B20: 5
A21: คณะทำงานฯ ภ2 | B21: 12
A22: คณะอนุกรรมการฯ ภ2 | B22: 1
A23: กบว.(ภ2) | B23: 3
A24: ฝวธ.(ภ2) | B24: 1
A25: ผลรวมทั้งหมด | B25: 168

Sheet INDEX
A1: ลำดับ | B1: แผนงาน | C1: กิจกรรม | D1: หน่วยงานดำเนินการ | E1: หน่วยงานหลัก | F1: GO TO
A2: 1 | B2: Goal | C2: 1.1 จัดอบรม/ประชุมชี้แจงให้ความรู้ด้านระบบ CS, WMS ในการสร้างข้อมูลหลัก | D2: (ผบธ.,ผมม.)กบล. | E2: (ผบธ.,ผมม.)กบล. | F2: Go to
A3: 2 | B3: Goal | C3: 2.1 เร่งรัดการเบิกต้นทุนงานเข้าใบสั่งงานงานติดตั้งมิเตอร์ใหม่และงานสับเปลี่ยนมิเตอร์ให้ | D3: กฟฟ.ชั้น 1-3,กฟส. | E3: ผบต.กบญ. | F3: Go to
A4: 3 | B4: Goal | C4: 2.2 เร่งรัดการเบิกต้นทุนงานเข้าใบสั่งงานบริการหลังการขาย (ZW03) ที่มีการรับชำระเงิน | D4: กฟฟ.ชั้น 1-3,กฟส. | E4: ผบต.กบญ. | F4: Go to
A5: 4 | B5: Goal | C5: 3.1.1 ตรวจสอบมิเตอร์และเส้นทางการพาดสายสื่อสารระหว่างมิเตอร์ | D5: กฟฟ.ชั้น 1-3,กฟส. | E5: ผธท.กบล. | F5: Go to
A6: 5 | B6: Goal | C6: 3.1.2 จัดทำและจัดส่งใบแจ้งค่าใช้จ่าย (ใบเสนอราคา) ค่าพาดสายสื่อสารก่อนได้รับอนุญาต | D6: กฟฟ.ชั้น 1-3,กฟส. | E6: ผธท.กบล. | F6: Go to
A7: 6 | B7: Goal | C7: 4.1 มีการจัดประชุมกระบวนงานการโอนค่าใช้จ่ายเกี่ยวกับงานก่อสร้างขึ้นต้นทุนงาน | D7: กบญ.,กวว.,กบล.,กบษ. | E7: กบญ.,กวว.,กบล.,กบษ. | F7: Go to
A8: 7 | B8: Goal | C8: 4.2 การนำเทคโนโลยีดิจิทัลมาใช้สนับสนุนการบริการลูกค้าเพื่อลดค่าใช้จ่าย | D8: กบญ.,ผบธ.กบล. | E8: กบญ.,ผบธ.กบล. | F8: Go to
A9: 8 | B9: Goal | C9: 5.1 การปิดงานก่อสร้าง (สถานะ Closed F4 และ Close E2 (ยกเลิกงาน)) | D9: กฟฟ.ชั้น 1-3,กฟส. | E9: กบญ.,กกค. | F9: Go to
A10: 9 | B10: Goal | C10: 5.2 การปิดงานก่อสร้าง (สถานะ Closed F4 และ Close E2 (ยกเลิกงาน)) | D10: กฟฟ.ชั้น 1-3,กฟส. | E10: กบญ.,กกค. | F10: Go to
A11: 10 | B11: Goal (CSR) | C11: 6.1 ดำเนินงานตามกิจกรรมของแผนงาน CSR ตามที่ กฟภ. กำหนด | D11: กอก.,กฟฟ.ชั้น 1-3 | E11: ผสส.กอก. | F11: Go to
A12: 11 | B12: Goal (CSR) | C12: 6.2 ดำเนินงานตามแผนปรับภูมิทัศน์ระบบจำหน่ายแบบบูรณาการ | D12: กฟฟ.ชั้น 1-3 | E12: ผสส.กอก.,กบษ. | F12: Go to
A13: 12 | B13: Goal (CSR) | C13: 7.1 ดำเนินงานตามแผนงานพัฒนาและเสริมสร้างความเข้มแข็งของชุมชนสำคัญ ปี 2563 | D13: ผสส.กอก. | E13: ผสส.กอก. | F13: Go to
A14: 13 | B14: C1 (CR1,CR2,CR3) | C14: 1.1 จัดอบรมหลักสูตร Front Manager ให้ กฟฟ.ชั้น 1-3 และ กฟส. | D14: ฝวธ.(ภ2) | E14: ฝวธ.(ภ2) | F14: Go to
A15: 14 | B15: C1 (CR1,CR2,CR3) | C15: 1.2 ติดตามและประเมินผลการดำเนินงาน (KPI) ของผู้จัดการศูนย์งานบริการลูกค้า | D15: กฟฟ.ชั้น 1-3 | E15: ผลส.กบล. | F15: Go to
A16: 15 | B16: C1 (CR1,CR2,CR3) | C16: 2.1 จัดอบรมหลักสูตรการบริการด้วยใจ (Service mind) ให้กับพนักงานที่ติดต่อกับ | D16: กบว.(ภ2) | E16: กบว.(ภ2) | F16: Go to
A17: 16 | B17: C1 (CR1,CR2,CR3) | C17: 2.2 กฟฟ.ชั้น 1-3 จัดอบรม/OJT การบริการด้วยใจ (Service mind) ให้กับตัวแทน เช่น | D17: ผสบ.กรท. | E17: ผสบ.กรท. | F17: Go to
A18: 17 | B18: C1 (CR1,CR2,CR3) | C18: 3.1 ทุก กฟฟ. จัดกิจกรรมประชาสัมพันธ์เชิญชวนลูกค้ารับบริการผ่าน Internet และ | D18: กฟฟ.ชั้น 1-3,กฟส. | E18: กรท.,กอก. | F18: Go to
A19: 18 | B19: C1 (CR1,CR2,CR3) | C19: 4.1 การให้บริการทางธุรกิจเพื่ออำนวยความสะดวกให้บริการขอใช้ไฟฟ้า | D19: กฟฟ.ชั้น 1-3 | E19: ผบธ.กบล. | F19: Go to
A20: 19 | B20: C1 (CR1,CR2,CR3) | C20: 5.1 การให้บริการเสริมโดยไม่คิดค่าใช้จ่ายกับลูกค้ารายสำคัญ (ตามคู่มือ KAMT) | D20: ผลส.กบล. | E20: ผลส.กบล. | F20: Go to
A21: 20 | B21: C1 (CR1,CR2,CR3) | C21: 6.1 ดำเนินการตาม SLA การจัดการข้อร้องเรียน แยกตามประเภทข้อร้องเรียน | D21: ผลส.กบล. | E21: ผลส.กบล. | F21: Go to
A22: 21 | B22: C1 (CR1,CR2,CR3) | C22: 7.1 ทุก กฟฟ. ดำเนินการระบุสถานะการปิดข้อร้องเรียน/ข้อเสนอแนะ และอื่นๆ | D22: กฟฟ.ชั้น 1-3,กฟส. | E22: ผลส.กบล. | F22: Go to
A23: 22 | B23: C1 (CR1,CR2,CR3) | C23: 7.2 ตรวจสอบและคัดกรองข้อร้องเรียน/ข้อเสนอแนะ และอื่นๆด้านคุณภาพไฟฟ้า | D23: กฟฟ.ชั้น 1-3,กฟส. | E23: ผลส.กบล. | F23: Go to
A24: 23 | B24: C2 (NW1) | C24: 8.1 ทบทวนคณะทำงานด้านธุรกิจเสริม และธุรกิจเกี่ยวเนื่อง | D24: ฝวธ.(ภ2) | E24: ฝวธ.(ภ2) | F24: Go to
A25: 24 | B25: C2 (NW1) | C25: 8.2 ทบทวนกลยุทธ์, เป้าหมาย และแผนงานด้านการตลาด | D25: คณะทำงานฯ ภ2 | E25: คณะทำงานฯ ภ2 | F25: Go to
A26: 25 | B26: C2 (NW1) | C26: 8.3 จัดประชุมชี้แจงระเบียบ กฟภ. ว่าด้วยธุรกิจเสริม ปี 2561 ให้ทุก กฟฟ. ทราบ | D26: ผบธ.กบล. | E26: ผบธ.กบล. | F26: Go to
A27: 26 | B27: C2 (NW1) | C27: 9.1.1 แต่งตั้ง พนักงานขาย ครบทุก กฟฟ. ชั้น 1-3, กฟส. และ กฟข. ละ 1 คน | D27: กฟฟ.ชั้น 1-3,กฟส. | E27: ผลส.กบล. | F27: Go to
A28: 27 | B28: C2 (NW1) | C28: 9.1.2 จัดอบรม/ประชุมชี้แจงให้ความรู้ด้านการตลาด แก่พนักงานขาย | D28: ผลส.กบล. | E28: ผลส.กบล. | F28: Go to
A29: 28 | B29: I1 OM1(SAIFISAIDI) | C29: 1.1.1 สำรวจขออนุมัติติดตั้ง Cover และเปลี่ยนสายหลีดของหม้อแปลงเป็น | D29: กฟฟ.ชั้น 1-3 | E29: ผตบ.กบษ. | F29: Go to
A30: 29 | B30: I1 OM1(SAIFISAIDI) | C30: 1.1.2 ดำเนินการติดตั้ง Cover และเปลี่ยนสายหลีดของหม้อแปลงเป็นชนิดหุ้มฉนวน | D30: กฟฟ.ชั้น 1-3 | E30: ผตบ.กบษ. | F30: Go to
A31: 30 | B31: I1 OM1(SAIFISAIDI) | C31: 1.1.3 สำรวจขออนุมัติติดตั้ง Animal Barrier ที่จุดติดตั้งฟิวส์แรงสูงป้องกันไลน์แยก, | D31: กฟฟ.ชั้น 1-3 | E31: ผตบ.กบษ. | F31: Go to
A32: 31 | B32: I1 OM1(SAIFISAIDI) | C32: 1.1.4 ดำเนินการติดตั้ง Animal Barrier (ตามข้อ 1.1.3) ให้แล้วเสร็จภายในไตรมาส 4 | D32: กฟฟ.ชั้น 1-3 | E32: ผตบ.กบษ. | F32: Go to
A33: 32 | B33: I1 OM1(SAIFISAIDI) | C33: 1.2.1 วิเคราะห์สถิติสายไฟฟ้าแรงสูงขาด และกำหนดมาตรการพร้อมจัดทำ | D33: คณะทำงานฯ ภ2 | E33: คณะทำงานฯ ภ2 | F33: Go to
A34: 33 | B34: I1 OM1(SAIFISAIDI) | C34: 1.3.1 จัดประชุมทบทวนเพื่อปรับปรุงกระบวนการตัดต้นไม้ และทบทวนการกำหนดระยะห่าง | D34: คณะทำงานฯ ภ2 | E34: คณะทำงานฯ ภ2 | F34: Go to
A35: 34 | B35: I1 OM1(SAIFISAIDI) | C35: 1.3.2 ทุก กฟฟ.ชั้น 1-3 กำหนดเส้นทางและ ดำเนินการตัดต้นไม้เพื่อทัศนียภาพที่สวยงาม | D35: กฟฟ.ชั้น 1-3 | E35: ผตบ.กบษ. | F35: Go to
A36: 35 | B36: I1 OM1(SAIFISAIDI) | C36: 1.4.1 สำรวจออกแบบ และดำเนินการปรับปรุงเสริมความมั่นคงระบบจำหน่าย | D36: กฟฟ.ชั้น 1-3,กฟส. | E36: ผตบ.กบษ. | F36: Go to
A37: 36 | B37: I1 OM1(SAIFISAIDI) | C37: 1.4.2 สำรวจออกแบบ และดำเนินการปรับปรุงเสริมความมั่นคงระบบจำหน่าย | D37: กฟฟ.ชั้น 1-3,กฟส. | E37: ผตบ.กบษ. | F37: Go to
A38: 37 | B38: I1 OM1(SAIFISAIDI) | C38: 1.4.3 สรุปเหตุการณ์เสาล้มจากวาตภัยในปี 2563 เพื่อประเมินผลการดำเนินการป้องกันฯ | D38: คณะทำงานฯ ภ2 | E38: คณะทำงานฯ ภ2 | F38: Go to
A39: 38 | B39: I1 OM1(SAIFISAIDI) | C39: 1.5 เปลี่ยนสายเปลือยเป็นสาย SAC ในเขตเทศบาลเมือง 100% (ทุกโครงการที่อนุมัติแล้ว ) | D39: กฟฟ.ชั้น 1-3,กฟส. | E39: ผจร.กกค. | F39: Go to
A40: 39 | B40: I1 OM1(SAIFISAIDI) | C40: 1.6 เปลี่ยนสายเปลือยเป็นสาย SAC ในเขตเทศบาลนคร 100% (ทุกโครงการที่อนุมัติแล้ว ) | D40: กฟฟ.ชั้น 1-3 | E40: ผจร.กกค. | F40: Go to
A41: 40 | B41: I1 OM1(SAIFISAIDI) | C41: 2.1 สำรวจ-ปรับปรุงระบบไฟฟ้า วงจรที่ชำรุดเสื่อมสภาพจำนวนมาก ตามแผนงานเปลี่ยนทดแทนฯ | D41: กฟฟ.ชั้น 1-3,กฟส. | E41: ผตบ.กบษ. | F41: Go to
A42: 41 | B42: I1 OM1(SAIFISAIDI) | C42: 3.1 ก่อสร้างระบบสายส่ง (งบ I,P) | D42: กฟฉ.2 | E42: กฟฉ.2 | F42: Go to
A43: 42 | B43: I1 OM1(SAIFISAIDI) | C43: 3.2 ก่อสร้างระบบจำหน่ายแรงสูง (งบ I,P) | D43: กฟฟ.ชั้น 1-3,กฟส. | E43: ผจร.กกค. | F43: Go to
A44: 43 | B44: I1 OM1(SAIFISAIDI) | C44: 3.3 ก่อสร้างระบบจำหน่ายแรงต่ำ (งบ I,P) | D44: กฟฟ.ชั้น 1-3,กฟส. | E44: ผปร.กวว. | F44: Go to
A45: 44 | B45: I1 OM1(SAIFISAIDI) | C45: 3.4 ติดตั้งระบบหม้อแปลง (งบ I,P) | D45: กฟฟ.ชั้น 1-3,กฟส. | E45: ผปร.กวว. | F45: Go to
A46: 45 | B46: I2 OM1(LOSS) | C46: 4.1.1.1 การตรวจสอบและแก้ปัญหามิเตอร์ผิดปกติ ตามใบสั่งงาน U-Cube โดยพิจารณาจาก | D46: กฟฟ.ชั้น 1-3,กฟส. | E46: ผมม.กบล. | F46: Go to
A47: 46 | B47: I2 OM1(LOSS) | C47: 4.1.1.2 สำรวจและปรับปรุงอุปกรณ์ประกอบมิเตอร์ ที่มีสภาพเอียง ชำรุด เสื่อมสภาพ | D47: กฟฟ.ชั้น 1-3,กฟส. | E47: ผมม.กบล. | F47: Go to
A48: 47 | B48: I2 OM1(LOSS) | C48: 4.1.2.1 มิเตอร์ AMR ดำเนินการตรวจสอบหาสาเหตุและแก้ไขตามใบสั่งงานจากระบบ AMR | D48: กฟฟ.ชั้น 1-3,กฟส. | E48: ผมม.กบล. | F48: Go to
A49: 48 | B49: I2 OM1(LOSS) | C49: 4.1.2.2 ตรวจสอบมิเตอร์ผู้ใช้ไฟฟ้ารายใหญ่ที่หน่วยการใช้ไฟฟ้าลดลงมากกว่า 25% ทุกเครื่อง | D49: กฟฟ.ชั้น 1-3,กฟส. | E49: ผมม.กบล.,กซข. | F49: Go to
A50: 49 | B50: I2 OM1(LOSS) | C50: 4.2 มาตรการตรวจสอบและแก้ไขมิเตอร์ที่มีสภาพผิดปกติที่ได้รับรายงาน | D50: กฟฟ.ชั้น 1-3,กฟส. | E50: ผมม.กบล. | F50: Go to
A51: 50 | B51: I2 OM1(LOSS) | C51: 4.3.1 มิเตอร์แรงสูง 115 kV ทุกเครื่อง (มิเตอร์ผู้ใช้ไฟ) | D51: ผมม.กบล. | E51: ผมม.กบล. | F51: Go to
A52: 51 | B52: I2 OM1(LOSS) | C52: 4.3.2 มิเตอร์แรงสูง 22/33 เควีทุกเครื่อง (มิเตอร์ผู้ใช้ไฟ) | D52: กฟฟ.ชั้น 1-3 | E52: ผมม.กบล. | F52: Go to
A53: 52 | B53: I2 OM1(LOSS) | C53: 4.3.3 มิเตอร์ประกอบซีทีแรงต่ำทุกเครื่อง (รวมมิเตอร์ผู้ใช้ไฟหม้อแปลงเฉพาะราย) (ทุกราย) | D53: กฟฟ.ชั้น 1-3,กฟส. | E53: ผมม.กบล. | F53: Go to
A54: 53 | B54: I2 OM1(LOSS) | C54: 4.3.4 มิเตอร์แรงต่ำ (รายย่อย ; 33% ของจำนวนผู้ใช้ไฟทั้งหมด ) | D54: กฟฟ.ชั้น 1-3,กฟส. | E54: ผมม.กบล. | F54: Go to
A55: 54 | B55: I2 OM1(LOSS) | C55: 4.3.5 ตรวจสอบมิเตอร์แบ่งแดนระหว่างเขต ปีละ 1 ครั้ง | D55: ผมม.กบล. | E55: ผมม.กบล. | F55: Go to
A56: 55 | B56: I2 OM1(LOSS) | C56: 4.3.6 ตรวจสอบความเที่ยงตรงมิเตอร์จุดรับซื้อ VSPP ทุกแห่ง ปีละ 1 ครั้ง | D56: ผมม.กบล. | E56: ผมม.กบล. | F56: Go to
A57: 56 | B57: I2 OM1(LOSS) | C57: 4.4.1 ตรวจสอบมิเตอร์ที่มีความเสี่ยงต่อการละเมิด เช่น โรงโม่หิน โรงน้ำแข็ง | D57: กฟฟ.ชั้น 1-3,กฟส. | E57: ผมม.กบล. | F57: Go to
A58: 57 | B58: I2 OM1(LOSS) | C58: 4.4.2 ตรวจสอบมิเตอร์ที่มีประวัติการละเมิดฯ | D58: กฟฟ.ชั้น 1-3,กฟส. | E58: ผมม.กบล. | F58: Go to
A59: 58 | B59: I2 OM1(LOSS) | C59: 4.5.1 สำรวจจุดติดตั้งดวงโคมเหมาจ่ายไฟสาธารณะและประเมินหน่วยการใช้ไฟฟ้า | D59: กฟฟ.ชั้น 1-3,กฟส. | E59: ผมม.กบล.,กซข. | F59: Go to
A60: 59 | B60: I2 OM1(LOSS) | C60: 4.5.2 ตรวจสอบและบำรุงรักษามิเตอร์ไฟฟ้าสาธารณะ และไฟทางหลวง ให้อยู่ในสภาพที่ปลอดภัย | D60: กฟฟ.ชั้น 1-3,กฟส. | E60: ผมม.กบล. | F60: Go to
A61: 60 | B61: I2 OM1(LOSS) | C61: 4.6.1 สำรวจจุดติดตั้ง ตู้โทรศัพท์สาธารณะ Wifi CCTV และประเมินหน่วยการใช้ไฟฟ้า | D61: กฟฟ.ชั้น 1-3,กฟส. | E61: ผมม.กบล. | F61: Go to
A62: 61 | B62: I2 OM1(LOSS) | C62: 4.6.2 ตรวจสอบและบำรุงรักษามิเตอร์อุปกรณ์สื่อสารต่างๆ ให้อยู่ในสภาพที่ปลอดภัย | D62: กฟฟ.ชั้น 1-3,กฟส. | E62: ผมม.กบล. | F62: Go to
A63: 62 | B63: I2 OM1(LOSS) | C63: 4.7.1 การติดตั้งและตรวจสอบและบำรุงรักษามิเตอร์แบ่งแดน | D63: คณะทำงานฯ Loss | E63: คณะทำงานฯ Loss | F63: Go to
A64: 63 | B64: I2 OM1(LOSS) | C64: 4.7.2 การสร้างแผนงานและดำเนินกิจกรรมลดหน่วยสูญเสียในวงจรไฟฟ้าที่มีหน่วยสูญเสียสูง | D64: คณะทำงานฯ Loss | E64: คณะทำงานฯ Loss | F64: Go to
A65: 64 | B65: I2 OM1(LOSS) | C65: 4.7.3 สำรวจความต้องการใช้งานสำหรับติดตั้งมิเตอร์ ซีที. วีที.จุดแบ่งแดนในแต่ละ กฟข. | D65: ผมม.กบล. | E65: ผมม.กบล. | F65: Go to
A66: 65 | B66: I2 OM1(LOSS) | C66: 4.8 มาตรการตรวจสอบมิเตอร์ประกอบซีที. แรงต่ำ และมิเตอร์ประกอบซีที. วีที.แรงสูง | D66: กฟฟ.ชั้น 1-3,กฟส. | E66: ผมม.กบล. | F66: Go to
A67: 66 | B67: I2 OM1(LOSS) | C67: 4.9.1 สับเปลี่ยนมิเตอร์อิเล็กทรอนิกส์ 1 เฟส | D67: กฟฟ.ชั้น 1-3,กฟส. | E67: ผมม.กบล. | F67: Go to
A68: 67 | B68: I2 OM1(LOSS) | C68: 4.9.2 สับเปลี่ยนมิเตอร์อิเล็กทรอนิกส์ 3 เฟส | D68: กฟฟ.ชั้น 1-3,กฟส. | E68: ผมม.กบล. | F68: Go to
A69: 68 | B69: I2 OM1(LOSS) | C69: 4.10.1 การอบรมพนักงานตรวจสอบมิเตอร์ /ตรวจสอบหน่วย ปีละ 1 ครั้ง | D69: ผมม.กบล. | E69: ผมม.กบล. | F69: Go to
A70: 69 | B70: I2 OM1(LOSS) | C70: 4.10.2 การอบรม พบช.ควบคุมผู้ใช้ไฟฟ้ารายใหญ่ /ตรวจสอบหน่วยรายย่อย ปีละ 1 ครั้ง | D70: กซข. | E70: กซข. | F70: Go to
A71: 70 | B71: I2 OM1(LOSS) | C71: 4.10.3 การอบรมพนักงานอ่านหน่วย ปีละ 1 ครั้ง | D71: กรท.,กซข.,กบล. | E71: กรท.,กซข.,กบล. | F71: Go to
A72: 71 | B72: I2 OM1(LOSS) | C72: 4.10.4 จัดทำแผนประชาสัมพันธ์เพื่อรณรงค์ป้องกันการละเมิดฯ และดำเนินการ | D72: ผสส.กอก. | E72: ผสส.กอก. | F72: Go to
A73: 72 | B73: I2 OM1(LOSS) | C73: 5.1.1 การจ่ายไฟสถานีไฟฟ้าฯ ชั่วคราว | D73: ผจค.กกค. | E73: ผจค.กกค. | F73: Go to
A74: 73 | B74: I2 OM1(LOSS) | C74: 5.1.2 การจ่ายไฟสถานีไฟฟ้าฯ ถาวร | D74: ผจค.กกค. | E74: ผจค.กกค. | F74: Go to
A75: 74 | B75: I2 OM1(LOSS) | C75: 5.2 การตัดจ่ายไฟใหม่ | D75: ผวว.กปบ. | E75: ผวว.กปบ. | F75: Go to
A76: 75 | B76: I2 OM1(LOSS) | C76: 5.3 การเปลี่ยนสายขนาดใหญ่ขึ้น 22/33 เควี | D76: กฟฟ.ชั้น 1-3,กฟส. | E76: ผจร.กกค. | F76: Go to
A77: 76 | B77: I2 OM1(LOSS) | C77: 5.4 การแก้ไขกระแสไฟฟ้า Unbalance เกินกว่า 10% ในฟีดเดอร์ที่ โหลด | D77: ผวว.กปบ. | E77: ผวว.กปบ. | F77: Go to
A78: 77 | B78: I2 OM1(LOSS) | C78: 5.5.1 Fixed Capacitor | D78: ผวว.กปบ. | E78: ผวว.กปบ. | F78: Go to
A79: 78 | B79: I2 OM1(LOSS) | C79: 5.5.2 Switching Capacitor | D79: ผวว.กปบ. | E79: ผวว.กปบ. | F79: Go to
A80: 79 | B80: I2 OM1(LOSS) | C80: 5.6.1.1 การตรวจสอบแก้ไขจุดต่อจุดสัมผัสใน สถานีไฟฟ้า | D80: ผบฟ.กบษ. | E80: ผบฟ.กบษ. | F80: Go to
A81: 80 | B81: I2 OM1(LOSS) | C81: 5.6.1.2 การตรวจสอบแก้ไขจุดต่อจุดสัมผัสใน สายส่ง | D81: ผตบ.กบษ. | E81: ผตบ.กบษ. | F81: Go to
A82: 81 | B82: I2 OM1(LOSS) | C82: 5.6.1.3 การตรวจสอบแก้ไขจุดต่อจุดสัมผัสใน ระบบจำหน่าย | D82: กฟฟ.ชั้น 1-3,กฟส. | E82: ผตบ.กบษ. | F82: Go to
A83: 82 | B83: I2 OM1(LOSS) | C83: 5.6.2 การแก้ไขคาปาซิเตอร์ 22/33 เควี ที่หลุดจากระบบให้สามารถ ใช้ได้(100%) | D83: กฟฟ.ชั้น 1-3,กฟส. | E83: ผบอ.กบษ. | F83: Go to
A84: 83 | B84: I2 OM1(LOSS) | C84: 5.7.1.1 การคำนวณ Technical Loss ระบบสายส่ง 115 kV | D84: คณะทำงานฯ Loss,กปบ. | E84: คณะทำงานฯ Loss,กปบ. | F84: Go to
A85: 84 | B85: I2 OM1(LOSS) | C85: 5.7.1.2 การคำนวณ Technical Loss หม้อแปลงกำลัง | D85: คณะทำงานฯ Loss,กปบ. | E85: คณะทำงานฯ Loss,กปบ. | F85: Go to
A86: 85 | B86: I2 OM1(LOSS) | C86: 5.7.1.3 การคำนวณ Technical Loss ระบบ 22 - 33 kV | D86: คณะทำงานฯ Loss,กปบ. | E86: คณะทำงานฯ Loss,กปบ. | F86: Go to
A87: 86 | B87: I2 OM1(LOSS) | C87: 5.7.1.4 การคำนวณ Technical Loss หม้อแปลงจำหน่าย | D87: คณะทำงานฯ Loss,กวว. | E87: คณะทำงานฯ Loss,กวว. | F87: Go to
A88: 87 | B88: I2 OM1(LOSS) | C88: 5.7.1.5 การคำนวณ Technical Loss ระบบจำหน่ายแรงต่ำ | D88: คณะทำงานฯ Loss,กวว. | E88: คณะทำงานฯ Loss,กวว. | F88: Go to
A89: 88 | B89: I2 OM1(LOSS) | C89: 5.7.2 การคำนวณ Technical Loss ของ SPP/VSPP ที่ขนานเข้าระบบ | D89: ผวว.กปบ. | E89: ผวว.กปบ. | F89: Go to
A90: 89 | B90: I2 OM1(LOSS) | C90: 5.8 การวิเคราะห์ Technical Loss แยกตามระดับแรงดันและจัดทำแผนแก้ไข | D90: ผวว.กปบ. | E90: ผวว.กปบ. | F90: Go to
A91: 90 | B91: I2 OM1(LOSS) | C91: 5.9.1 การแก้ไขหม้อแปลง Unbalance เกินกว่า 20% (เครื่อง) | D91: กฟฟ.ชั้น 1-3,กฟส. | E91: ผมม.กบล. | F91: Go to
A92: 91 | B92: I2 OM1(LOSS) | C92: 5.9.2 การสับเปลี่ยนหม้อแปลงที่จ่ายโหลดไม่เหมาะสม | D92: กฟฟ.ชั้น 1-3,กฟส. | E92: ผมม.กบล./ผปร.กวว. | F92: Go to
A93: 92 | B93: I2 OM1(LOSS) | C93: 5.9.3 การติดตั้งหม้อแปลงเสริมเพื่อเพิ่มประสิทธิภาพการจ่ายไฟ (เควีเอ) | D93: กฟฟ.ชั้น 1-3,กฟส. | E93: ผปร.กวว. | F93: Go to
A94: 93 | B94: I2 OM1(LOSS) | C94: 5.10.1 การเปลี่ยนสายแรงต่ำให้มีขนาดใหญ่ขึ้น | D94: กฟฟ.ชั้น 1-3,กฟส. | E94: ผปร.กวว. | F94: Go to
A95: 94 | B95: I2 OM1(LOSS) | C95: 5.10.2 การตัดจ่ายไฟใหม่แรงต่ำ (หน่วยนับจากจำนวนเครื่องหม้อแปลง) | D95: กฟฟ.ชั้น 1-3,กฟส. | E95: ผปร.กวว. | F95: Go to
A96: 95 | B96: I2 OM1(LOSS) | C96: 5.10.3 การปรับปรุงระบบ 1 เฟส 2 สาย เป็นระบบ 1 เฟส 3 สาย | D96: กฟฟ.ชั้น 1-3,กฟส. | E96: ผปร.กวว. | F96: Go to
A97: 96 | B97: I3 OM1(GIS) | C97: 6.1 การปรับปรุงข้อมูลงานก่อสร้างระบบจำหน่ายไฟฟ้าก่อนปี 2562 (เป้าหมายจำนวนงาน | D97: กฟฟ.ชั้น 1-3,กฟส. | E97: ผผร.กวว. | F97: Go to
A98: 97 | B98: I3 OM1(GIS) | C98: 6.2 การปรับปรุงข้อมูลงานก่อสร้างระบบจำหน่ายไฟฟ้าปี 2562 (เป้าหมายจำนวนงาน | D98: กฟฟ.ชั้น 1-3,กฟส. | E98: ผผร.กวว. | F98: Go to
A99: 98 | B99: I3 OM1(GIS) | C99: 6.3 การปรับปรุงข้อมูลงานก่อสร้างระบบจำหน่ายไฟฟ้าปี 2563 (เป้าหมายจำนวนงาน | D99: กฟฟ.ชั้น 1-3,กฟส. | E99: ผผร.กวว. | F99: Go to
A100: 99 | B100: I3 OM1(GIS) | C100: 6.4 ปรับปรุงพิกัดมิเตอร์ในระบบ GIS ให้ตรงกันกับข้อมูลพิกัดมิเตอร์จากระบบจดหน่วยที่มี | D100: กฟฟ.ชั้น 1-3 | E100: ผผร.กวว. | F100: Go to
A101: 100 | B101: I3 OM1(GIS) | C101: 6.5 ปรับปรุงพิกัดมิเตอร์ในระบบจดหน่วยสำหรับข้อมูลพิกัดมิเตอร์จากระบบจดหน่วยที่มี | D101: กฟฟ.ชั้น 1-3 | E101: ผผร.กวว. | F101: Go to
A102: 101 | B102: I3 OM1(GIS) | C102: 6.6 สำรวจและปรับปรุงข้อมูลเฟสมิเตอร์ในระบบ GIS 30% ของจำนวนหม้อแปลง กฟภ. | D102: กฟฟ.ชั้น 1-3,กฟส. | E102: ผผร.กวว. | F102: Go to
A103: 102 | B103: I4 OM4(SLA) | C103: 7.1 รายงานผลการดำเนินงานการจัดทำข้อตกลงระดับการให้บริการ (SLA) | D103: กฟฟ.ชั้น 1-3,กฟส. | E103: (ผผธ.,ผบธ.)กบล. | F103: Go to
A104: 103 | B104: I5 IP1(นวัตกรรม) | C104: 8.1 ให้รายงานตามแผนงานส่งเสริมและผลักดันงานวิจัยไปใช้ประโยชน์ | D104: ผพอ.กอก. | E104: ผพอ.กอก. | F104: Go to
A105: 104 | B105: I5 IP1(นวัตกรรม) | C105: 8.2 ขยายผลนวัตกรรมใช้งานภายใน กฟข. อย่างน้อย 2 ชิ้นงาน | D105: ผพอ.กอก. | E105: ผพอ.กอก. | F105: Go to
A106: 105 | B106: I5 IP1(นวัตกรรม) | C106: 8.3 ขยายผลนวัตกรรมใช้งานภายในภาค อย่างน้อย 1 ชิ้นงาน | D106: ฝวธ.(ภ2) | E106: คณะทำงานฯ ภ2 | F106: Go to
A107: 106 | B107: I5 IP1(นวัตกรรม) | C107: 8.4 จัดอบรมเพื่อพัฒนาศักยภาพของนักประดิษฐ์ แบ่งเป็น 2 ด้าน ได้แก่ | D107: ฝวธ.(ภ2) | E107: กบว.(ภ2) | F107: Go to
A108: 107 | B108: I5 IP1(นวัตกรรม) | C108: 8.5 จัดประชุมทบทวนนวัตกรรมและดิจิทัลของสายงานการไฟฟ้าภาค 2 | D108: คณะทำงานฯ ภ2 | E108: คณะทำงานฯ ภ2 | F108: Go to
A109: 108 | B109: I6 RS1 (พลังงาน) | C109: 9.1 ดำเนินโครงการนำร่องมาตรการบังคับใช้เกณฑ์มาตรฐานอนุรักษ์พลังงานสำหรับ | D109: ผสอ.กวว. | E109: ผสอ.กวว. | F109: Go to
A110: 109 | B110: L1 (DT1) | C110: 1.1 จัดอบรมผู้บริหารของสายงานการไฟฟ้า ภาค 2 เพื่อเตรียมความพร้อม | D110: คณะทำงานฯ ภ2 | E110: คณะทำงานฯ ภ2 | F110: Go to
A111: 110 | B111: L1 (DT1) | C111: 1.2 จัดอบรม ผจก.กฟย. เพื่อเตรียมความพร้อมสู่การเป็น PEA Digital Utility | D111: คณะทำงานฯ ภ2 | E111: คณะทำงานฯ ภ2 | F111: Go to
A112: 111 | B112: L1 (DT1) | C112: 1.3 จัดอบรมพนักงานในสายงานฯ ภาค 2 ตั้งแต่ หผ.ขึ้นไป หรือ The Trainner | D112: คณะทำงานฯ ภ2 | E112: คณะทำงานฯ ภ2 | F112: Go to
A113: 112 | B113: L1 (DT1) | C113: 1.4 จัดอบรมให้ความรู้เกี่ยวกับ Big Data และ Data Analytics | D113: คณะทำงานฯ ภ2 | E113: คณะทำงานฯ ภ2 | F113: Go to
A114: 113 | B114: L2 OC1(สู่ความยั่งยืน) | C114: 2.1 กอก.กฟข. จัดการบรรยายหรือกิจกรรมที่สอดแทรกเนื้อหาด้านการกำกับ | D114: ผพอ.กอก. | E114: ผพอ.กอก. | F114: Go to
A115: 114 | B115: L2 OC1(สู่ความยั่งยืน) | C115: 3.1 ดำเนินการตามแผนงานยกระดับความผูกพันของบุคลากร กฟภ. | D115: ผบก.กอก. | E115: ผบก.กอก. | F115: Go to
A116: 115 | B116: L2 OC1(สู่ความยั่งยืน) | C116: 3.2 ติดตามรายงานผลความก้าวหน้าตามแผนงานข้อ 3.1 ส่งให้ ฝวธ.(ภ2) ตามกำหนด | D116: ผบก.กอก. | E116: ผบก.กอก. | F116: Go to
A117: 116 | B117: L3 OC1 (ความปลอดภัย) | C117: 4.1 ทุกหน่วยงาน ทบทวนการแต่งตั้งและขึ้นทะเบียน จป. ให้เป็นปัจจุบัน | D117: ผปอ.กวว. | E117: ผปอ.กวว. | F117: Go to
A118: 117 | B118: L3 OC1 (ความปลอดภัย) | C118: 4.2 จัดหลักสูตรฝึกอบรมเจ้าหน้าที่ความปลอดภัยในการทำงาน (จป.) | D118: ผปอ.กวว. | E118: ผปอ.กวว. | F118: Go to
A119: 118 | B119: L3 OC1 (ความปลอดภัย) | C119: 4.3 จัดหลักสูตรฝึกอบรมเจ้าหน้าที่ความปลอดภัยในการทำงาน (จป.บริหาร) | D119: ผปอ.กวว. | E119: ผปอ.กวว. | F119: Go to
A120: 119 | B120: L3 OC1 (ความปลอดภัย) | C120: 4.4 ฝึกอบรมทบทวนการปฏิบัติงานด้วยความปลอดภัยสำหรับ พนักงาน, ลูกจ้าง | D120: กวว. หรือ กฟฟ.ชั้น 1-3 จัดอบรม*** | E120: ผปอ.กวว. | F120: Go to
A121: 120 | B121: L3 OC1 (ความปลอดภัย) | C121: 4.5 จัดประชุมสัมมนางานด้านความปลอดภัยของ จป.วิชาชีพ/ เทคนิค | D121: ผปอ.กวว. | E121: ผปอ.กวว. | F121: Go to
A122: 121 | B122: L3 OC1 (ความปลอดภัย) | C122: 4.6 ศึกษาดูงาน ด้านความปลอดภัย หน่วยงานภายนอกเพื่อยกระดับความปลอดภัย ของ | D122: ฝวธ.(ภ2) | E122: ฝวธ.(ภ2) | F122: Go to
A123: 122 | B123: L3 OC1 (ความปลอดภัย) | C123: 5.1 กฟฟ. ทุกแห่ง ตรวจสอบและดำเนินการแก้ไขระบบไฟฟ้าจุดที่อาจก่อให้เกิดอันตรายแก่ประชาชน | D123: กฟฟ.ชั้น 1-3,กฟส. | E123: ผปอ.กวว. | F123: Go to
A124: 123 | B124: L3 OC1 (ความปลอดภัย) | C124: 6.1 ติดตามการตรวจประเมิน ระบบการจัดการความปลอดภัยของ กฟภ. (PEA- SMS) | D124: ผปอ.กวว. | E124: ผปอ.กวว. | F124: Go to
A125: 124 | B125: L3 OC1 (ความปลอดภัย) | C125: 7.1 จัดกิจกรรม สัปดาห์ ความปลอดภัย ประจำปี (แต่ละ กฟข.) ภายในไตรมาส 2 | D125: ผปอ.กวว. | E125: ผปอ.กวว. | F125: Go to
A126: 125 | B126: L3 OC1 (ความปลอดภัย) | C126: 7.2 จัดอบรมปรับเปลี่ยน mind set ด้านความปลอดภัย สำหรับพนักงานสายงานการไฟฟ้า | D126: ฝวธ.(ภ2) | E126: ฝวธ.(ภ2) | F126: Go to
A127: 126 | B127: L4 OC1(ลดกระดาษ) | C127: 8.1 แต่งตั้งคณะทำงานลดการใช้กระดาษ เพื่อทำหน้าที่ติดตามและตรวจสอบ | D127: กอก. | E127: กอก. | F127: Go to
A128: 127 | B128: L5 ประเมินผล Enablers 8 ด้าน | C128: 9.1 จัดทำแผนบริหารความเสี่ยงระดับสายงาน ปี 2563 | D128: คณะทำงานฯ ภ2 | E128: คณะทำงานฯ ภ2 | F128: Go to
A129: 128 | B129: L5 ประเมินผล Enablers 8 ด้าน | C129: 9.2 ดำเนินการ ติดตามผล และจัดทำรายงานตามแผนบริหาร | D129: ผผธ.กบล. | E129: ผผธ.กบล. | F129: Go to
A130: 129 | B130: L5 ประเมินผล Enablers 8 ด้าน | C130: 10.1 ปรับปรุง/จัดวางระบบการควบคุมภายในของหน่วยงานประจำ ปี 2563 | D130: กฟฟ.ชั้น 1-3,กฟส. | E130: ผผธ.กบล. | F130: Go to
A131: 130 | B131: L5 ประเมินผล Enablers 8 ด้าน | C131: 10.2 ดำเนินการ ติดตามผล และจัดทำรายงานตามแผนการปรับปรุงการควบคุมภายใน | D131: กฟฟ.ชั้น 1-3 | E131: ผผธ.กบล. | F131: Go to
A132: 131 | B132: L5 ประเมินผล Enablers 8 ด้าน | C132: 11.1.1 จัดทำแผนการดำเนินการ โดยระบุกิจกรรมย่อย และเป้าหมายของแต่ละ | D132: ฝวธ.(ภ2) | E132: ฝวธ.(ภ2) | F132: Go to
A133: 132 | B133: L5 ประเมินผล Enablers 8 ด้าน | C133: 12.1 สรุปข้อมูลเสียงของลูกค้า (ความต้องการ ความคาดหวัง ความไม่พึงพอใจ | D133: ผลส.กบล. | E133: ผลส.กบล. | F133: Go to
A134: 133 | B134: L5 ประเมินผล Enablers 8 ด้าน | C134: 12.2.1 การรับฟังเสียงลูกค้าทางโทรศัพท์ (Voice-based) (VOC-03-005) | D134: กฟฟ.ชั้น 1-3 | E134: ผลส.กบล. | F134: Go to
A135: 134 | B135: L5 ประเมินผล Enablers 8 ด้าน | C135: 12.2.2 การรับฟังด้วยการปฏิสัมพันธ์ (Interaction-based) | D135: กฟฟ.ชั้น 1-3 | E135: ผลส.กบล. | F135: Go to
A136: 135 | B136: L5 ประเมินผล Enablers 8 ด้าน | C136: 12.2.3 การสำรวจข้อมูลลูกค้าธุรกิจเสริมโดยการใช้โทรศัพท์สอบถามความ | D136: กฟฟ.ชั้น 1-3 | E136: ผลส.กบล. | F136: Go to
A137: 136 | B137: L5 ประเมินผล Enablers 8 ด้าน | C137: 12.3.1 สรุปผลการสำรวจความพึงพอใจของลูกค้าที่ใช้บริการธุรกิจเสริม ทุกไตรมาส | D137: กฟฟ.ชั้น 1-3 | E137: ผลส.กบล. | F137: Go to
A138: 137 | B138: L5 ประเมินผล Enablers 8 ด้าน | C138: 12.4 จัดทำแผนการปรับปรุงกระบวนการทำงาน/แผนปฏิบัติการจากข้อมูลเสียงของลูกค้า | D138: ฝวธ.(ภ2) | E138: ฝวธ.(ภ2) | F138: Go to
A139: 138 | B139: L5 ประเมินผล Enablers 8 ด้าน | C139: 12.5 ดำเนินการปิดข้อร้องเรียนทั่วไปได้ภายใน 15 วัน | D139: กฟฟ.ชั้น 1-3 | E139: ผลส.กบล. | F139: Go to
A140: 139 | B140: L5 ประเมินผล Enablers 8 ด้าน | C140: 12.6 ดำเนินการปิดข้อร้องเรียนทั่วไป ปิดได้ภายใน 30 วัน | D140: กฟฟ.ชั้น 1-3 | E140: ผลส.กบล. | F140: Go to
A141: 140 | B141: L5 ประเมินผล Enablers 8 ด้าน | C141: 12.7.1 จัดทำแผน/แนวทางการปฏิบัติงานเชิงป้องกันข้อร้องเรียนของลูกค้า | D141: ผลส.กบล. | E141: ผลส.กบล. | F141: Go to
A142: 141 | B142: L5 ประเมินผล Enablers 8 ด้าน | C142: 12.7.2 รายงานผลตามแผน/แนวทางการปฏิบัติงานเชิงป้องกันข้อร้องเรียนของลูกค้า | D142: ผลส.กบล. | E142: ผลส.กบล. | F142: Go to
A143: 142 | B143: L5 ประเมินผล Enablers 8 ด้าน | C143: 13.1.1.1 สุ่มสอบถามลูกค้าโดยวิธีโทรศัพท์ ดังนี้ | D143: กฟฟ.ชั้น 1-3 | E143: ผลส.กบล. | F143: Go to
A144: 143 | B144: L5 ประเมินผล Enablers 8 ด้าน | C144: 13.1.1.2 สรุปรายงานสถิติ วิเคราะห์ความพึงพอใจ/ข้อคิดเห็น/ความต้องการ/ข้อเสนอแนะ | D144: กฟฟ.ชั้น 1-3 | E144: ผลส.กบล. | F144: Go to
A145: 144 | B145: L5 ประเมินผล Enablers 8 ด้าน | C145: 13.1.2 นำข้อมูลป้อนกลับจากลูกค้า จากระบบประเมินความพึงพอใจ (Smile Box) | D145: กฟฟ.ชั้น 1-3 | E145: ผลส.กบล. | F145: Go to
A146: 145 | B146: L5 ประเมินผล Enablers 8 ด้าน | C146: 13.2 เพิ่มสัดส่วนจำนวนลูกค้าที่กดประเมินความพึงพอใจ ผ่านระบบกล่อง | D146: กฟฟ.ชั้น 1-3 | E146: ผลส.กบล. | F146: Go to
A147: 146 | B147: L5 ประเมินผล Enablers 8 ด้าน | C147: 13.3.1 สรุปรายงานการสนับสนุนลูกค้ารายใหม่ตามข้อมูล BOI/หน่วยงานท้องถิ่น | D147: กฟฟ.ชั้น 1-3 | E147: ผลส.กบล. | F147: Go to
A148: 147 | B148: L5 ประเมินผล Enablers 8 ด้าน | C148: 13.3.2 การเยี่ยมเยือนลูกค้า high value และ/หรือลูกค้ารายสำคัญอื่น | D148: กฟฟ.ชั้น 1-3 | E148: ผลส.กบล. | F148: Go to
A149: 148 | B149: L5 ประเมินผล Enablers 8 ด้าน | C149: 13.3.3 เยี่ยมเยือนลูกค้ารายสำคัญโดยผู้บริหารระดับสูง/หรือผู้แทนของหน่วยงาน | D149: กฟฟ.ชั้น 1-3 | E149: ผลส.กบล. | F149: Go to
A150: 149 | B150: L5 ประเมินผล Enablers 8 ด้าน | C150: 13.3.4 พนักงาน KAMR สรุปวิเคราะห์ปัญหา/ความต้องการลูกค้า high value | D150: กฟฟ.ชั้น 1-3 | E150: ผลส.กบล. | F150: Go to
A151: 150 | B151: L5 ประเมินผล Enablers 8 ด้าน | C151: 13.4 จัดสัมมนาลูกค้ากลุ่มอุตสาหกรรม กลุ่มพาณิชย์ และหน่วยงานราชการรายใหญ่ | D151: กฟฟ.ชั้น 1-3 | E151: ผลส.กบล. | F151: Go to
A152: 151 | B152: L5 ประเมินผล Enablers 8 ด้าน | C152: 14.1.1 สรุปข้อมูลการประเมินประสิทธิภาพการส่งจ่ายแยกเป็นพื้นที่ด้านแรงดันไฟฟ้า | D152: ผวฟ.กบล. | E152: ผวฟ.กบล. | F152: Go to
A153: 152 | B153: L5 ประเมินผล Enablers 8 ด้าน | C153: 14.1.2 สรุปข้อมูลการประเมินประสิทธิภาพการส่งจ่ายแยกเป็นพื้นที่ ด้านความเพียงพอ | D153: ผวว.กปบ. | E153: ผวว.กปบ. | F153: Go to
A154: 153 | B154: L6 OC1 (งานตามนโยบาย) | C154: 15.1 งานสำรวจนำเข้าข้อมูลสายสื่อสารโทรคมนาคมของหน่วยงานต่างๆ | D154: กฟฟ.ชั้น 1-3,กฟส. | E154: ผธท.กบล. | F154: Go to
A155: 154 | B155: L6 OC1 (งานตามนโยบาย) | C155: 16.1.1 จัดระเบียบฯ เส้นทางที่มีขนาดเส้นผ่านศูนย์กลางของสายสื่อสารรวม มากกว่า 300 มม. | D155: กฟฟ.ชั้น 1-3,กฟส. | E155: ผธท.กบล. | F155: Go to
A156: 155 | B156: L6 OC1 (งานตามนโยบาย) | C156: 16.1.2 จัดระเบียบฯ เส้นทางที่มีขนาดเส้นผ่านศูนย์กลางของสายสื่อสารรวม 100- 300 มม. | D156: กฟฟ.ชั้น 1-3,กฟส. | E156: ผธท.กบล. | F156: Go to
A157: 156 | B157: L6 OC1 (งานตามนโยบาย) | C157: 16.2 สำรวจตรวจสอบสายสื่อสารที่หย่อนยาน และมีความสูง ต่ำกว่าระดับมาตรฐาน | D157: กฟฟ.ชั้น 1-3,กฟส. | E157: ผธท.กบล. | F157: Go to
A158: 157 | B158: L6 OC1 (งานตามนโยบาย) | C158: 16.3 สำรวจตรวจสอบสายสื่อสารที่หย่อนยาน และมีความสูง ต่ำกว่าระดับมาตรฐาน | D158: กฟฟ.ชั้น 1-3,กฟส. | E158: ผธท.กบล. | F158: Go to
A159: 158 | B159: L6 OC1 (งานตามนโยบาย) | C159: 17.1 ขยายผลโครงการสำนักงานสีเขียว (Green Office) และตรวจประเมิน | D159: กฟฟ.ที่เข้าร่วม | E159: คณะทำงานฯ GO | F159: Go to
A160: 159 | B160: L6 OC1 (งานตามนโยบาย) | C160: 17.1.1 จัดอบรมให้ความรู้ กฟฟ. ที่สมัครเข้าร่วมโครงการ และ กฟฟ. ที่ ขอต่ออายุ | D160: คณะทำงานฯ GO | E160: คณะทำงานฯ GO | F160: Go to
A161: 160 | B161: L6 OC1 (งานตามนโยบาย) | C161: 17.1.2 ดำเนินการ Internal Audit ให้กับการไฟฟ้าที่เข้าโครงการสำนักงานสีเขียว โดยทีม | D161: คณะทำงานฯ GO | E161: คณะทำงานฯ GO | F161: Go to
A162: 161 | B162: L6 OC1 (งานตามนโยบาย) | C162: 17.2 รักษามาตรฐานการพัฒนาสำนักงาน กฟภ. ให้เป็นสำนักงานสีเขียว (Green Office) | D162: กฟฟ.ที่เข้าร่วม | E162: คณะทำงานฯ GO | F162: Go to
A163: 162 | B163: L6 OC1 (งานตามนโยบาย) | C163: 17.3 ดำเนินการ Internal Audit ให้กับ กฟฟ. ที่ขอต่ออายุ โดย ทีม Auditor ของ กฟฟ.เขต | D163: คณะทำงานฯ GO | E163: คณะทำงานฯ GO | F163: Go to
A164: 163 | B164: L6 OC1 (งานตามนโยบาย) | C164: 18.1 รักษามาตรฐานการให้บริการของศูนย์ราชการสะดวก (Government Easy Contact | D164: กฟฟ.ที่เข้าร่วม | E164: ผลส.กบล. | F164: Go to
A165: 164 | B165: L6 OC1 (งานตามนโยบาย) | C165: 18.1.1 จัดอบรมให้ความรู้ เกี่ย่วกับมาตรฐานศูนย์ราชการสะดวก (GECC) ให้กับ กฟฟ.ที่ขอ | D165: กฟฟ.ที่เข้าร่วม | E165: ผลส.กบล. | F165: Go to
A166: 165 | B166: L6 OC1 (งานตามนโยบาย) | C166: 18.2 ขยายผลการดำเนินงานได้รับการรับรองมาตรฐานการให้บริการของศูนย์ราชการสะดวก | D166: กฟฟ. ที่เข้าร่วม | E166: ผลส.กบล. | F166: Go to
A167: 166 | B167: L6 OC1 (งานตามนโยบาย) | C167: 19.1 ติดตามประเมินผลการจัดเก็บข้อมูลงานยานพาหนะ โดยมีการ Update | D167: กฟฟ.ชั้น 1-3,กฟส. | E167: ผยค.กกค. | F167: Go to
A168: 167 | B168: L6 OC1 (งานตามนโยบาย) | C168: 19.2 ประชุมชี้แจงแผนงานและเร่งรัดดำเนินงานทุกงบทุกโครงการ | D168: คณะทำงานฯ ภ2 | E168: คณะทำงานฯ ภ2 | F168: Go to
A169: 168 | B169: L6 OC1 (งานตามนโยบาย) | C169: 20.1.1 รายงานการเบิกจ่ายเงินงบลงทุนทุกโครงการ | D169: ผงป.กซข. | E169: ผงป.กซข. | F169: Go to
A170: 169 | B170: L6 OC1 (งานตามนโยบาย) | C170: 20.1.2 รายงานจัดซื้อจัดจ้าง | D170: ผจซ.กบญ. | E170: ผจซ.กบญ. | F170: Go to

Sheet Goal
A1: แผนปฏิบัติการ กฟฉ.1 ประจำปี 2563 | C1: ด้านเป้าหมายองค์กร
A2: (ฉบับทบทวนครั้งที่ 1) | C2: (Goal)
A3: 1. วัตถุประสงค์เชิงยุทธศาสตร์ | C3: 2. กลยุทธ์ระดับองค์กร | E3: 3. เกณฑ์วัดการดำเนินงานระดับองค์กร | M3: 4. เป้าหมาย
A4: (Strategic Objective) | C4: - | E4: - อัตราผลตอบแทนต่อสินทรัพย์รวม (ROA) | M4: - ไม่น้อยกว่าร้อยละ 4.83
C5: 5. กลยุทธ์ระดับสายงาน | E5: - การบริหารค่าใช้จ่ายในการดำเนินงาน CPI-X | M5: - ไม่มากกว่า 31,723 ล้านบาท
C6: - | E6: 6. เกณฑ์วัดการดำเนินงานระดับสายงาน | M6: 7. เป้าหมาย
E7: - อัตราผลตอบแทนต่อสินทรัพย์รวม (ROA)µ | M7: - ไม่น้อยกว่าร้อยละ 4.83
E8: - ค่าใช้จ่ายในการดำเนินงานส่วนกลาง | M8: - ไม่มากกว่าร้อยละ …….
E9: - ค่าใช้จ่ายในการดำเนินงานส่วนภูมิภาค | M9: - ไม่มากกว่า……... ล้านบาท
A11: 8. แผนงาน/โครงการ/งาน | B11: 9. แผนปฏิบัติ | E11: 10 | F11: 11 | N11: 12
A12: (Operating Strategies หรือ Strategic Initiatives) | B12: (ระบุกิจกรรมหลักพร้อมปริมาณหรือเป้าหมาย) | E12: หน่วยงาน | F12: ช่วงเวลาดำเนินการ และหรือ ปริมาณงานในไตรมาส | N12: หน่วยงาน
B13: (Activities / Action Steps) | E13: ดำเนินการ | F13: Plan Q1 | G13: Action Q1 | H13: Plan Q2 | I13: Action Q2 | J13: Plan Q23 | K13: Action Q3 | L13: Plan Q4 | M13: Action Q4 | N13: หลัก
A14: 2. แผนงานเร่งรัดการปิดใบสั่งงานงานบริการ | B14: 2.1 เร่งรัดการเบิกต้นทุนงานเข้าใบสั่งงานงานติดตั้งมิเตอร์ใหม่และงานสับเปลี่ยนมิเตอร์ให้ | E14: กฟฟ.ชั้น 1-3,กฟส. | N14: ผบต.กบญ.
B15: ผู้ใช้ไฟ (ZW01, ZW02) ที่มีการรับชำระเงินจากผู้ใช้ไฟให้ครบถ้วนและปิดใบสั่งงานให้ทัน
B16: ภายในรอบการรับชำระเงินของทุกเดือนจากผู้ขอบริการงานบริการ (WMS)
B17: (เฉพาะที่ได้รับชำระเงิน) ไม่น้อยกว่าร้อยละ 90
B18: กฟจ.หนองบัวลำภู | C18: 0.9 | F18: 0.9 | H18: 0.9 | J18: 0.9 | L18: 0.9
B19: กฟส.ศรีบุญเรือง | C19: 0.9 | F19: 0.9 | H19: 0.9 | J19: 0.9 | L19: 0.9
B20: กฟส.นากลาง | C20: 0.9 | F20: 0.9 | H20: 0.9 | J20: 0.9 | L20: 0.9
B21: กฟจ.หนองบัวลำภู (รวมสังกัด) | C21: 0.9 | F21: 0.9 | H21: 0.9 | J21: 0.9 | L21: 0.9
B22: กฟอ.บ้านไผ่ | C22: 0.9 | F22: 0.9 | H22: 0.9 | J22: 0.9 | M22: 0.9
B23: กฟส.พล | C23: 0.9 | F23: 0.9 | H23: 0.9 | J23: 0.9 | M23: 0.9
B24: กฟส.มัญจาคีรี | C24: 0.9 | F24: 0.9 | H24: 0.9 | J24: 0.9 | M24: 0.9
B25: กฟส.หนองสองห้อง | C25: 0.9 | F25: 0.9 | H25: 0.9 | J25: 0.9 | M25: 0.9
B26: 2.2 เร่งรัดการเบิกต้นทุนงานเข้าใบสั่งงานบริการหลังการขาย (ZW03) ที่มีการรับชำระเงิน | E26: กฟฟ.ชั้น 1-3,กฟส. | N26: ผบต.กบญ.
B27: จากผู้ใช้ไฟให้ครบถ้วนและปิดใบสั่งงานให้ทันภายในรอบการรับชำระเงินจากผู้ขอบริการ
B28: งานบริการ (WMS) (เฉพาะที่ได้รับชำระเงิน) ไม่น้อยกว่าร้อยละ 90
B29: กฟจ.หนองบัวลำภู | C29: 0.9 | F29: 0.9 | H29: 0.9 | J29: 0.9 | L29: 0.9
B30: กฟส.ศรีบุญเรือง | C30: 0.9 | F30: 0.9 | H30: 0.9 | J30: 0.9 | L30: 0.9
B31: กฟส.นากลาง | C31: 0.9 | F31: 0.9 | H31: 0.9 | J31: 0.9 | L31: 0.9
B32: กฟจ.หนองบัวลำภู (รวมสังกัด) | C32: 0.9 | F32: 0.9 | H32: 0.9 | J32: 0.9 | L32: 0.9
B33: กฟอ.บ้านไผ่ | C33: 0.9 | F33: 0.9 | H33: 0.9 | J33: 0.9 | M33: 0.9
B34: กฟส.พล | C34: 0.9 | F34: 0.9 | H34: 0.9 | J34: 0.9 | M34: 0.9
B35: กฟส.มัญจาคีรี | C35: 0.9 | F35: 0.9 | H35: 0.9 | J35: 0.9 | M35: 0.9
B36: กฟส.หนองสองห้อง | C36: 0.9 | F36: 0.9 | H36: 0.9 | J36: 0.9 | M36: 0.9
A37: 3. แผนงานเพิ่มรายได้อื่น | B37: 3.1 ตรวจสอบการละเมิดพาดสายสื่อสาร ด้วยระบบ TAMS ในส่วนที่เหลือจากปี 2562
B38: ดำเนินการตรวจสอบผู้ประกอบการทุกราย ทุก กฟฟ.ชั้น 1-3 รวม กฟฟ.ในสังกัด
B39: 3.1.1 ตรวจสอบมิเตอร์และเส้นทางการพาดสายสื่อสารระหว่างมิเตอร์ | E39: กฟฟ.ชั้น 1-3,กฟส. | N39: ผธท.กบล.
B40: ของผู้ประกอบการด้านสื่อสาร
B41: กฟฉ.1 | C41: 1 | H41: 1
B42: 3.1.2 จัดทำและจัดส่งใบแจ้งค่าใช้จ่าย (ใบเสนอราคา) ค่าพาดสายสื่อสารก่อนได้รับอนุญาต | E42: กฟฟ.ชั้น 1-3,กฟส. | N42: ผธท.กบล.
B43: ทุก operater ภายใน 7 วัน
B44: กฟฉ.1 | C44: 1 | H44: 1
A45: 5. แผนงานบริหารจัดการสินทรัพย์ | B45: 5.1 การปิดงานก่อสร้าง (สถานะ Closed F4 และ Close E2 (ยกเลิกงาน)) | E45: กฟฟ.ชั้น 1-3,กฟส. | N45: กบญ.,กกค.
B46: ทุกงบ (C,P,I) งานโครงการ เฉพาะ คฟม.2,คขก.2 ในส่วน ที่เกิดขึ้น ก่อนปี 2562 ให้ได้ 100%
B47: (ยกเว้นงานที่ดิน-หมู่บ้านจัดสรร และงานก่อสร้างที่ส่วนกลางดำเนินงาน)
B48: กฟจ.หนองบัวลำภู | C48: 1 | F48: 0.15 | H48: 0.5 | J48: 0.85 | L48: 1
B49: กฟส.ศรีบุญเรือง | C49: 1 | F49: 0.15 | H49: 0.5 | J49: 0.85 | L49: 1
B50: กฟส.นากลาง | C50: 1 | F50: 0.15 | H50: 0.5 | J50: 0.85 | L50: 1
B51: กฟจ.หนองบัวลำภู (รวมสังกัด) | C51: 1 | F51: 0.15 | H51: 0.5 | J51: 0.85 | L51: 1
B52: กฟอ.บ้านไผ่ | C52: 1 | F52: 0.15 | H52: 0.5 | J52: 0.85 | M52: 1
B53: กฟส.พล | C53: 1 | F53: 0.15 | H53: 0.5 | J53: 0.85 | M53: 1
B54: กฟส.มัญจาคีรี | C54: 1 | F54: 0.15 | H54: 0.5 | J54: 0.85 | M54: 1
B55: กฟส.หนองสองห้อง | C55: 1 | F55: 0.15 | H55: 0.5 | J55: 0.85 | M55: 1
B56: 5.2 การปิดงานก่อสร้าง (สถานะ Closed F4 และ Close E2 (ยกเลิกงาน)) | E56: กฟฟ.ชั้น 1-3,กฟส. | N56: กบญ.,กกค.
B57: ทุกงบ (C,P,I) งานโครงการ เฉพาะ คฟม.2,คขก.2 ในส่วน ที่เกิดขึ้น ในปี 2562 ให้ได้ 80%
B58: (ยกเว้นงานที่ดิน-หมู่บ้านจัดสรร และงานก่อสร้างที่ส่วนกลางดำเนินงาน)
B59: กฟจ.หนองบัวลำภู | C59: 0.8 | F59: 0.15 | H59: 0.4 | J59: 0.65 | L59: 0.8
B60: กฟส.ศรีบุญเรือง | C60: 0.8 | F60: 0.15 | H60: 0.4 | J60: 0.65 | L60: 0.8
B61: กฟส.นากลาง | C61: 0.8 | F61: 0.15 | H61: 0.4 | J61: 0.65 | L61: 0.8
B62: กฟจ.หนองบัวลำภู (รวมสังกัด) | C62: 0.8 | F62: 0.15 | H62: 0.4 | J62: 0.65 | L62: 0.8
B63: กฟอ.บ้านไผ่ | C63: 0.8 | F63: 0.15 | H63: 0.4 | J63: 0.65 | M63: 0.8
B64: กฟส.พล | C64: 0.8 | F64: 0.15 | H64: 0.4 | J64: 0.65 | M64: 0.8
B65: กฟส.มัญจาคีรี | C65: 0.8 | F65: 0.15 | H65: 0.4 | J65: 0.65 | M65: 0.8
B66: กฟส.หนองสองห้อง | C66: 0.8 | F66: 0.15 | H66: 0.4 | J66: 0.65 | M66: 0.8
B67: end | M67: 5 | N67: 9

Sheet Goal (CSR)
A1: แผนปฏิบัติการ กฟฉ.1 ประจำปี 2563 | C1: ด้านเป้าหมายองค์กร
A2: (ฉบับทบทวนครั้งที่ 1) | C2: (Goal) (Social and Environment)
A3: 1. วัตถุประสงค์เชิงยุทธศาสตร์ | C3: 2. กลยุทธ์ระดับองค์กร | E3: 3. เกณฑ์วัดการดำเนินงานระดับองค์กร | L3: 4. เป้าหมาย
A4: (Strategic Objective) | C4: - | E4: - | L4: -
A5: SO1 ดำเนินธุรกิจตามหลักธรรมาภิบาลเพื่อการเติบโตอย่างยั่งยืน
C6: 5. กลยุทธ์ระดับสายงาน | E6: 6. เกณฑ์วัดการดำเนินงานระดับสายงาน | L6: 7. เป้าหมาย
C7: - | E7: - | L7: -
A8: 8. แผนงาน/โครงการ/งาน | B8: 9. แผนปฏิบัติ | E8: 10 | F8: 11 | N8: 12
A9: (Operating Strategies หรือ Strategic Initiatives) | B9: (ระบุกิจกรรมหลักพร้อมปริมาณหรือเป้าหมาย) | E9: หน่วยงาน | F9: ช่วงเวลาดำเนินการ และหรือ ปริมาณงานในไตรมาส | N9: หน่วยงาน
B10: (Activities / Action Steps) | E10: ดำเนินการ | F10: Plan Q1 | G10: Action Q1 | H10: Plan Q2 | I10: Action Q2 | J10: Plan Q3 | K10: Action Q3 | L10: Plan Q4 | M10: Action Q4 | N10: หลัก
A11: 6. แผนปฏิบัติการด้าน CSR ประจำปี 2563 | B11: 6.1 ดำเนินงานตามกิจกรรมของแผนงาน CSR ตามที่ กฟภ. กำหนด | E11: กอก.,กฟฟ.ชั้น 1-3 | N11: ผสส.กอก.
A12: (นโยบาย KEEN 14 ด้าน NH 4 : Smart CSV.) | B12: 1. โครงการ PEA รักษ์น้ำ สร้างฝาย
B13: 2. โครงการ PEA LED
B14: 3. โครงการชุมชนปลอดภัยใช้ไฟ PEA
B15: 4. โครงการ 1 ตำบล 1 ช่างไฟฟ้า
B16: 5. โครงการ PEA ส่งเสริมพลังงานทดแทนเพื่อวิสาหกิจชุมชน
B17: 6. โครงการ ปันยิ้ม อิ่มบุญ คืนความสุขสู่สังคม
B18: 7. โครงการ PEA ทำนุบำรุงศาสนา
B19: 8. โครงการ PEA หน่วยแพทย์เคลื่อนที่
B20: 9. โครงการ PEA วันเด็กแห่งชาติ
B21: 10. โครงการ "Save Your Life ใส่ใจเลือดสมอง"
B22: 11. โครงการ PEA ใส่ใจทุกชีวิต บริจาคโลหิต
B23: 12. โครงการ PEA พลังงานสะอาดเพื่อชุมชน (สนับสนุนพลังงานทดแทนด้วยระบบ Solar Pump)
B24: กฟฉ.1 | F24: รออนุมัติหลักการจาก ฝสส.
B25: จัดส่งรายงานให้ ฝวธ.(ภ2) ภายในวันที่ 1 หลังสิ้นไตรมาส
A26: 6. แผนปฏิบัติการด้าน CSR ประจำปี 2563 (ต่อ) | B26: 6.2 ดำเนินงานตามแผนปรับภูมิทัศน์ระบบจำหน่ายแบบบูรณาการ | E26: กฟฟ.ชั้น 1-3 | N26: ผสส.กอก.,กบษ.
A27: (นโยบาย KEEN 14 ด้าน NH 4 : Smart CSV.) | B27: (Integrated Distribution System Townescape) (IDST)
B28: - ดำเนินการตามหลักรุกขกรรม (CSV)
B29: กฟจ.หนองบัวลำภู (รวมสังกัด) | C29: 5 | D29: กม. | H29: 5 กม.
B30: end | M30: 2 | N30: 3
M31: =M30+'Goal '!M67 -> 7 | N31: =N30+'Goal '!N67 -> 12

Sheet C1 (CR1,CR2,CR3)
A1: แผนปฏิบัติการ กฟฉ.1 ประจำปี 2563 | C1: ด้านลูกค้า
A2: (ฉบับทบทวนครั้งที่ 1) | C2: (Customer Value Proposition )
A3: 1. วัตถุประสงค์เชิงยุทธศาสตร์ | C3: 2. กลยุทธ์ระดับองค์กร | E3: 3. เกณฑ์วัดการดำเนินงานระดับองค์กร | L3: 4. เป้าหมาย
A4: (Strategic Objective) | C4: CR1 ยกระดับมาตรฐานของผลิตภัณฑ์ | E4: - ความพึงพอใจของลูกค้า | L4: - ไม่น้อยกว่าระดับ 4.37
A5: SO3 มุ่งเน้นการตอบสนองความต้องการของทุกกลุ่มลูกค้า | C5: และการให้บริการของลูกค้า โดยใช้เทคโนโลยีดิจิทัล | E5: กลุ่มลูกค้ารายย่อย (บ้านอยู่อาศัย และพาณิชย์รายย่อย) | L5: - ไม่น้อยกว่าร้อยละ 4.40
C6: (Customer Service) | E6: กลุ่มลูกค้ารายใหญ่ (อุตสาหกรรม และพาณิชย์รายใหญ่) | L6: - ไม่น้อยกว่าร้อยละ 4.32
C7: CR2 การสร้างความสัมพันธ์กับลูกค้าในระยะยาว | E7: ภาครัฐและอื่นๆ (ราชการ และรัฐวิสาหกิจ และอื่นๆ) | L7: - ไม่น้อยกว่าร้อยละ 4.33
C8: และรักษาฐานลูกค้ารายสำคัญ (CRM) | E8: - ร้อยละต้นทุนการให้บริการลูกค้าที่ลดลง | L8: - ไม่น้อยกว่าร้อยละ 10
C9: CR3 สร้างประสบการณ์ที่ดีกับลูกค้า (Customer Experience) | E9: -ความสำเร็จในการวิเคราะห์และจัดทาฐานข้อมูลของ Potential | L9: - ไม่น้อยกว่าระดับ 5
E10: Customer (Strategic และ Star) เพื่อกาหนด กลยุทธ์ทางการตลาด
E11: ในกลุ่มธุรกิจเกี่ยวเนื่อง
E12: - ความพึงพอใจลูกค้า Key Account, High Valua | L12: - ไม่น้อยกว่าร้อยละ 4.34
E13: - ความสำเร็จของแผนงานพัฒนา PEA Customer Journey | L13: - ไม่น้อยกว่าร้อยละ 100
C15: 5. กลยุทธ์ระดับสายงาน | E15: 6. เกณฑ์วัดการดำเนินงานระดับสายงาน | L15: 7. เป้าหมาย
C16: CR1 ยกระดับมาตรฐานของผลิตภัณฑ์ | E16: - ความพึงพอใจของลูกค้าของสายงานการไฟฟ้า ภาค 2 | L16: - ไม่น้อยกว่าระดับ 4.37
C17: และการให้บริการของลูกค้า โดยใช้เทคโนโลยีดิจิทัล | E17: - ความพึงพอใจลูกค้า
C18: (Customer Service) | E18: กลุ่มลูกค้ารายย่อย (บ้านอยู่อาศัย และพาณิชย์รายย่อย) | L18: - ไม่น้อยกว่าระดับ…………
C19: CR2 การสร้างความสัมพันธ์กับลูกค้าในระยะยาว | E19: กลุ่มลูกค้ารายใหญ่ (อุตสาหกรรม และพาณิชย์รายใหญ่) | L19: - ไม่น้อยกว่าระดับ…………
C20: และรักษาฐานลูกค้ารายสำคัญ (CRM) | E20: ภาครัฐและอื่นๆ (ราชการ และรัฐวิสาหกิจ และอื่นๆ) | L20: - ไม่น้อยกว่าระดับ…………
C21: CR3 สร้างประสบการณ์ที่ดีกับลูกค้า (Customer Experience) | E21: - ร้อยละต้นทุนการให้บริการลูกค้าที่ลดลง µ | L21: - ไม่น้อยกว่าร้อยละ .........
E22: - ความพึงพอใจลูกค้า Key Account, High Valua | L22: - ไม่น้อยกว่าระดับ…………
E23: - ความสำเร็จของแผนงานพัฒนา PEA Customer Journey | L23: - ไม่น้อยกว่าร้อยละ 100
A24: 8. แผนงาน/โครงการ/งาน | B24: 9. แผนปฏิบัติ | E24: 10 | F24: 11 | N24: 12
A25: (Operating Strategies หรือ Strategic Initiatives) | B25: (ระบุกิจกรรมหลักพร้อมปริมาณหรือเป้าหมาย) | E25: หน่วยงาน | F25: ช่วงเวลาดำเนินการ และหรือ ปริมาณงานในไตรมาส | N25: หน่วยงาน
B26: (Activities / Action Steps) | E26: ดำเนินการ | F26: Plan Q1 | G26: Action Q1 | H26: Plan Q2 | I26: Action Q2 | J26: Plan Q3 | K26: Action Q3 | L26: Plan Q4 | M26: Action Q4 | N26: หลัก | Q26: ข้อ 1.1 | R26: จำนวน | S26: 52022010 | T26: 52022020 | U26: 52022030 | V26: 52030030
A27: 1. แผนงานขยายผลปฏิบัติงานของผู้จัดการศูนย์ | B27: 1.2 ติดตามและประเมินผลการดำเนินงาน (KPI) ของผู้จัดการศูนย์งานบริการลูกค้า | E27: กฟฟ.ชั้น 1-3 | N27: ผลส.กบล.
A28: งานบริการลูกค้า (Front Manager) (ต่อ) | B28: (Front manager) ตามคู่มือการปฏิบัติงานของผู้จัดการศูนย์งานบริการลูกค้า
A29: (นโยบาย KEEN 14 ด้าน NH1: Smart Workforce)
B30: กฟจ.หนองบัวลำภู (รวมสังกัด) | C30: 4 | D30: ครั้ง | F30: 1 ครั้ง | H30: 1 ครั้ง | J30: 1 ครั้ง | L30: 1 ครั้ง
A31: 2. แผนงานพัฒนาศักยภาพพนักงานในด้าน | B31: 2.2 กฟฟ.ชั้น 1-3 จัดอบรม/OJT การบริการด้วยใจ (Service mind) ให้กับตัวแทน เช่น | E31: ผสบ.กรท. | N31: ผสบ.กรท. | S31: =#REF!*1000000 ->  | T31: =#REF!*1000000 ->  | U31: =#REF!*1000000 ->  | V31: =#REF!*1000000 -> 
A32: การสร้างความสัมพันธ์กับลูกค้า | B32: ตัวแทนตัด ต่อกลับมิเตอร์, ตัวแทนตัดต้นไม้, ตัวแทนติดตั้ง รื้อถอน สับเปลี่ยน มิเตอร์ เป็นต้น | Q32: ข้อ 3.2 ไม่ของบ
A33: (นโยบาย KEEN 14 ด้าน NH1: Smart Workforce)
A34: (แผนการดำเนินงาน กฟภ. ปี2563)
B35: กฟจ.หนองบัวลำภู (รวมสังกัด) | C35: 1 | D35: ครั้ง (ภายในไตรมาส 2) | H35: 1 ครั้ง
A36: 3. แผนงานพัฒนาการให้บริการลูกค้า | B36: 3.1 ทุก กฟฟ. จัดกิจกรรมประชาสัมพันธ์เชิญชวนลูกค้ารับบริการผ่าน Internet และ | E36: กฟฟ.ชั้น 1-3,กฟส. | N36: กรท.,กอก. | Q36: ข้อ 3.1 | R36: งบประชาสัมพันธ์อื่นๆ
A37: ด้วยเทคโนโลยีดิจิทัล | B37: PEA smart plus | R37: ค่าแผ่นพับ เขตละ 10,000 แผ่นๆละ 10 บาท | S37: บูธPEA Smart plus | T37: ของที่ระลึก
A38: (แผนการดำเนินงาน กฟภ. ปี2563) | Q38: กฟฉ.1 | R38: 0.1 | S38: 0.2 | T38: 0.05 | U38: =SUM(R38:T38) -> 0.35
B39: กฟจ.อุดรธานี | C39: 12 | D39: " | F39: 3 | H39: 3 | J39: 3 | L39: 3
B40: กฟส.บ้านผือ | C40: 12 | D40: " | F40: 3 | H40: 3 | J40: 3 | L40: 3
B41: กฟส.หนองวัวซอ | C41: 12 | D41: " | F41: 3 | H41: 3 | J41: 3 | L41: 3
B42: กฟส.กุดจับ | C42: 12 | D42: " | F42: 3 | H42: 3 | J42: 3 | L42: 3
B43: กฟจ.หนองบัวลำภู | C43: 12 | D43: ครั้ง (จัดกิจกรรม 3 ครั้ง/ไตรมาส) | F43: 3 | H43: 3 | J43: 3 | L43: 3
B44: กฟส.ศรีบุญเรือง | C44: 12 | D44: " | F44: 3 | H44: 3 | J44: 3 | L44: 3
B45: กฟส.นากลาง | C45: 12 | D45: " | F45: 3 | H45: 3 | J45: 3 | L45: 3
B46: กฟจ.หนองบัวลำภู (รวมสังกัด) | C46: =SUM(C43:C45) -> 36 | D46: " | F46: =SUM(F43:F45) -> 9 | H46: =SUM(H43:H45) -> 9 | J46: =SUM(J43:J45) -> 9 | L46: =SUM(L43:L45) -> 9
B47: กฟอ.บ้านไผ่ | C47: 12 | D47: " | F47: 3 | H47: 3 | J47: 3 | L47: 3
B48: กฟส.พล | C48: 12 | D48: " | F48: 3 | H48: 3 | J48: 3 | L48: 3
B49: กฟส.มัญจาคีรี | C49: 12 | D49: " | F49: 3 | H49: 3 | J49: 3 | L49: 3
A50: 4. แผนงานพัฒนากระบวนการให้บริการธุรกิจ | B50: 4.1 การให้บริการทางธุรกิจเพื่ออำนวยความสะดวกให้บริการขอใช้ไฟฟ้า | E50: กฟฟ.ชั้น 1-3 | N50: ผบธ.กบล.
A51: ตามแนวทาง Doing Business : World Bank | B51: ตามแนวทาง (Doing Business : World Bank) ให้กับลูกค้าประเภทธุรกิจ | Q51: ไม่ของบ
A52: (แผนการดำเนินงาน กฟภ. ปี2563) | B52: อุตสาหกรรม สามารถดำเนินการได้ด้วยความสะดวก รวดเร็ว และคล่องตัวยิ่งขึ้น
B53: ดำเนินการภายใน 20 วันปฏิทิน
B54: (ติดตั้งมิเตอร์ 3 เฟส 30(100) หรือติดตั้งหม้อแปลงไม่เกิน 250 kVA)
B55: กฟจ.หนองบัวลำภู (รวมสังกัด) | C55: 1 | F55: 1 | H55: 1 | J55: 1 | L55: 1
A56: 7. แผนงานเพิ่มประสิทธิภาพการจัดการข้อร้องเรียน | B56: 7.1 ทุก กฟฟ. ดำเนินการระบุสถานะการปิดข้อร้องเรียน/ข้อเสนอแนะ และอื่นๆ | E56: กฟฟ.ชั้น 1-3,กฟส. | N56: ผลส.กบล.
A57: ด้านคุณภาพไฟฟ้า | B57: ด้านคุณภาพไฟฟ้า (แก้ไขปัญหาสิ้นสุด/จำเป็นต้องวางแผนแก้ไขต่อ) ลงในเอกสาร VOC 03
B58: พร้อมแนบเอกสารในระบบ PEA VOC SYSTEM ทุกครั้งที่มีการปิดข้อร้องเรียน
B59: กฟฉ.1 | C59: 1 | F59: 1 | H59: 1 | J59: 1 | L59: 1
B60: เริ่มดำเนินการตามแนวทางฯ ตั้งแต่เดือนมกราคม 2563
B61: 7.2 ตรวจสอบและคัดกรองข้อร้องเรียน/ข้อเสนอแนะ และอื่นๆด้านคุณภาพไฟฟ้า | E61: กฟฟ.ชั้น 1-3,กฟส. | N61: ผลส.กบล.
B62: ที่ปิดข้อร้องเรียนแล้ว จากระบบ PEA VOC SYSTEM แต่ยังไม่ดำเนินการแก้ไข
B63: (ให้ดำเนินการแก้ไขให้แล้วเสร็จ)
B64: กฟฉ.1 | C64: รายงานงานที่คงเหลือทุกไตรมาส | F64: 1 | H64: 1 | J64: 1 | L64: 1
B65: end | L65: 7 | N65: 10

Sheet C2 (NW1)
A1: แผนปฏิบัติการ กฟฉ.1 ประจำปี 2563 | C1: ด้านลูกค้า
A2: (ฉบับทบทวนครั้งที่ 1) | C2: (Customer Value Proposition )
A3: 1. วัตถุประสงค์เชิงยุทธศาสตร์ | C3: 2. กลยุทธ์ระดับองค์กร | E3: 3. เกณฑ์วัดการดำเนินงานระดับองค์กร | L3: 4. เป้าหมาย
A4: (Strategic Objective) | C4: NM1 ส่งเสริมการลงทุนและใช้ประโยชน์ความร่วมือ | E4: - ความสำเร็จของแผนการดำเนินธุรกิจเกี่ยวเนื่อง | L4: -ไม่น้อยกว่าร้อยละ 100
A5: SO4 การเพิ่มมูลค่าทางธุรกิจขององค์กร โดยสร้าง Advantaged Portfolio | C5: เพื่อพัฒนาธุรกิจเกี่ยวเนื่อง | E5: - รายได้ธุรกิจเกี่ยวเนื่อง | L5: -ไม่น้อยกว่า 6,525 ล้านบาท
C8: 5. กลยุทธ์ระดับสายงาน | E8: 6. เกณฑ์วัดการดำเนินงานระดับสายงาน | L8: 7. เป้าหมาย
C9: NM1 ส่งเสริมการลงทุนและใช้ประโยชน์ความร่วมือ | E9: - รายได้ธุรกิจเกี่ยวเนื่อง | L9: -ไม่น้อยกว่า………ล้านบาท
C10: เพื่อพัฒนาธุรกิจเกี่ยวเนื่อง
A12: 8. แผนงาน/โครงการ/งาน | B12: 9. แผนปฏิบัติ | E12: 10 | F12: 11 | N12: 12
A13: (Operating Strategies หรือ Strategic Initiatives) | B13: (ระบุกิจกรรมหลักพร้อมปริมาณหรือเป้าหมาย) | E13: หน่วยงาน | F13: ช่วงเวลาดำเนินการ และหรือ ปริมาณงานในไตรมาส | N13: หน่วยงาน
B14: (Activities / Action Steps) | E14: ดำเนินการ | F14: Plan Q1 | G14: Action Q1 | H14: Plan Q2 | I14: Action Q2 | J14: Plan Q3 | K14: Action Q3 | L14: Plan Q4 | M14: Action Q4 | N14: หลัก
A15: 9. แผนงานเพิ่มรายได้ธุรกิจเสริมและธุรกิจที่เกี่ยวเนื่อง | B15: 9.1 ดำเนินการตลาดเชิงรุกกับกลุ่มลูกค้าเป้าหมาย เช่น กลุ่มราชการ,
A16: ทั้งหมด 17 บัญชี | B16: องค์กรปกครองส่วนท้องถิ่น, กลุ่มลูกค้าหม้อแปลงเฉพาะราย
A17: (นโยบาย KEEN 14 ด้าน KE2 : Smart Service) | B17: 9.1.1 แต่งตั้ง พนักงานขาย ครบทุก กฟฟ. ชั้น 1-3, กฟส. และ กฟข. ละ 1 คน | E17: กฟฟ.ชั้น 1-3,กฟส. | N17: ผลส.กบล.
B18: กฟจ.หนองบัวลำภู | C18: 1 | D18: คน | F18: 1 คน
B19: กฟส.ศรีบุญเรือง | C19: 1 | D19: " | F19: 1 คน
B20: กฟส.นากลาง | C20: 1 | D20: " | F20: 1 คน
B21: กฟจ.หนองบัวลำภู (รวมสังกัด) | C21: =SUM(C18:C20) -> 3 | D21: " | F21: 3 คน
B22: กฟอ.บ้านไผ่ | C22: 1 | D22: " | F22: 1 คน
B23: กฟส.พล | C23: 1 | D23: " | F23: 1 คน
B24: กฟส.มัญจาคีรี | C24: 1 | D24: " | F24: 1 คน
B25: กฟส.หนองสองห้อง | C25: 1 | D25: " | F25: 1 คน
B26: end | L26: 2 | N26: 5
L27: =L26+'C1 (CR1,CR2,CR3)'!L65 -> 9 | N27: =N26+'C1 (CR1,CR2,CR3)'!N65 -> 15

Sheet I1 OM1(SAIFISAIDI)
A1: แผนปฏิบัติการ กฟฉ.1 ประจำปี 2563 | C1: ด้านกระบวนการภายใน
A2: (ฉบับทบทวนครั้งที่ 1) | C2: (Internal Process)
A3: 1. วัตถุประสงค์เชิงยุทธศาสตร์ | C3: 2. กลยุทธ์ระดับองค์กร | E3: 3. เกณฑ์วัดการดำเนินงานระดับองค์กร | J3: 4. เป้าหมาย
A4: (Strategic Objective) | C4: OM1 การเพิ่มประสิทธิภาพและความน่าเชื่อถือ | E4: - ดัชนีจำนวนครั้งที่ไฟฟ้าขัดข้อง (SAIFI) | J4: -ไม่มากกว่า 2.91 ครั้ง/ราย/ปี
A5: SO2 มุ่งสู่องค์กรที่เป็นเลิศในด้านจำหน่ายกระแสไฟฟ้า | C5: ของระบบจำหน่าย | E5: - ดัชนีจำนวนครั้งที่ไฟฟ้าขัดข้อง (SAIFI) เมืองใหญ่ | J5: -ไม่มากกว่า 1.075 ครั้ง/ราย/ปี
A6: โดยบูรณาการทุกระบบงานด้วย Digitalization | E6: - ดัชนีระยะเวลาที่ไฟฟ้าขัดข้อง (SAIDI) | J6: - ไม่มากกว่า 69.84 นาที/ราย/ปี
E7: - ดัชนีระยะเวลาที่ไฟฟ้าขัดข้อง (SAIDI) เมืองใหญ่ | J7: - ไม่มากกว่า 14.860 นาที/ราย/ปี
E8: - ความพึงพอใจด้านคุณภาพผลิตภัณฑ์ของ กฟภ. | J8: ไม่น้อยกว่าระดับ 4.39
C9: 5. กลยุทธ์ระดับสายงาน | E9: 6. เกณฑ์วัดการดำเนินงานระดับสายงาน | J9: 7. เป้าหมาย
C10: OM1 การเพิ่มประสิทธิภาพและความน่าเชื่อถือ | E10: - ดัชนีจำนวนครั้งที่ไฟฟ้าขัดข้อง (SAIFI) | J10: -ไม่มากกว่า…... ครั้ง/ราย/ปี
C11: ของระบบจำหน่าย | E11: - ดัชนีจำนวนครั้งที่ไฟฟ้าขัดข้อง (SAIFI) เมืองใหญ่ | J11: -ไม่มากกว่า…….ครั้ง/ราย/ปี
E12: - ดัชนีจำนวนครั้งที่ไฟฟ้าขัดข้อง (SAIFI) | J12: -ไม่มากกว่า……..ครั้ง/ราย/ปี
E13: ใน 6 กฟฟ.จุดรวมงาน(รวมสังกัด)
E14: ที่มีค่ามากสุดในปี 2562 (PA)
E15: - ดัชนีระยะเวลาที่ไฟฟ้าขัดข้อง (SAIDI) | J15: - ไม่มากกว่า…….นาที/ราย/ปี
E16: - ดัชนีระยะเวลาที่ไฟฟ้าขัดข้อง (SAIDI) เมืองใหญ่ | J16: - ไม่มากกว่า……..นาที/ราย/ปี
E17: - ดัชนีระยะเวลาที่ไฟฟ้าขัดข้อง (SAIDI) | J17: - ไม่มากกว่า……...นาที/ราย/ปี
E18: ใน 6 กฟฟ.จุดรวมงาน(รวมสังกัด)
E19: ที่มีค่ามากสุดในปี 2562 (PA)
E20: - ความพึงพอใจด้านคุณภาพผลิตภัณฑ์ของ กฟภ.µ | J20: ไม่น้อยกว่าระดับ 4.37
A21: 8. แผนงาน/โครงการ/งาน | B21: 9. แผนปฏิบัติ | E21: 10 | F21: 11 | N21: 12
A22: (Operating Strategies หรือ Strategic Initiatives) | B22: (ระบุกิจกรรมหลักพร้อมปริมาณหรือเป้าหมาย) | E22: หน่วยงาน | F22: ช่วงเวลาดำเนินการ และหรือ ปริมาณงานในไตรมาส | N22: หน่วยงาน
B23: (Activities / Action Steps) | E23: ดำเนินการ | F23: Plan Q1 | G23: Action Q1 | H23: Plan Q2 | I23: Action Q2 | J23: Plan Q3 | K23: Action Q3 | L23: Plan Q4 | M23: Action Q4 | N23: หลัก
A24: 1. แผนงานเพิ่มคุณภาพระบบจำหน่ายไฟฟ้า | B24: 1.1 กิจกรรมป้องกันไฟดับจากสัตว์
A25: (นโยบาย KEEN 14 ด้าน EI3 : Smart Utilization) | B25: 1.1.1 สำรวจขออนุมัติติดตั้ง Cover และเปลี่ยนสายหลีดของหม้อแปลงเป็น | E25: กฟฟ.ชั้น 1-3 | N25: ผตบ.กบษ.
B26: ชนิดหุ้มฉนวนสำหรับหม้อแปลงของ กฟฟ.ชั้น 1-3 เป้าหมาย 20% ของหม้อแปลง 3 เฟส ทั้งหมด
B27: (สำรวจ-ขออนุมัติภายใน ไตรมาส 1)
B28: กฟจ.หนองบัวลำภู (รวมสังกัด) | C28: 137 | D28: เครื่อง | F28: 137
B29: 1.1.2 ดำเนินการติดตั้ง Cover และเปลี่ยนสายหลีดของหม้อแปลงเป็นชนิดหุ้มฉนวน | E29: กฟฟ.ชั้น 1-3 | N29: ผตบ.กบษ.
B30: ตามข้อ 1.1.1 ให้แล้วเสร็จภายในไตรมาส 4
B31: กฟจ.หนองบัวลำภู (รวมสังกัด) | C31: 137 | D31: เครื่อง | L31: 137
B32: 1.3.2 ทุก กฟฟ.ชั้น 1-3 กำหนดเส้นทางและ ดำเนินการตัดต้นไม้เพื่อทัศนียภาพที่สวยงาม | E32: กฟฟ.ชั้น 1-3 | N32: ผตบ.กบษ.
B33: ตามหลักรุกขกรรม (ควบคุม/ตรวจสอบโดยรุกขกร)
B34: โดยดำเนินการ กฟฟ.ชั้น 1-3 ละ 5 กม. อย่างน้อยปีละ 1 ครั้ง
B35: กฟจ.หนองบัวลำภู (รวมสังกัด) | C35: 5 | D35: กม. | H35: 5
B36: 1.4 กิจกรรมป้องกันไฟดับจากภัยธรรมชาติ
B37: 1.4.1 สำรวจออกแบบ และดำเนินการปรับปรุงเสริมความมั่นคงระบบจำหน่าย | E37: กฟฟ.ชั้น 1-3,กฟส. | N37: ผตบ.กบษ.
B38: (เพิ่มสายยึดโยง,ปรับแต่งเสาเอน,เทโคนเสา,ปักเสาแซมไลน์ ฯลฯ)
B39: เพื่อป้องกันความเสียหายจากวาตภัย ในปี 2563 ดำเนินการทุกจุดในไลน์ที่มีความเสี่ยงสูง
B40: (จุดต่อสตับ,สายยึดโยงไม่เพียงพอและอยู่ในที่โล่ง) ดำเนินการโดยทีม Patrol
B41: ภายในไตรมาส 1 หรืออย่างช้าไม่เกินไตรมาส 2
B42: กฟจ.หนองบัวลำภู (รวมสังกัด) | C42: ทุกจุดในไลน์ที่มีความเสี่ยง | H42: 1
B43: 1.4.2 สำรวจออกแบบ และดำเนินการปรับปรุงเสริมความมั่นคงระบบจำหน่าย | E43: กฟฟ.ชั้น 1-3,กฟส. | N43: ผตบ.กบษ.
B44: (เพิ่มสายยึดโยง,ปรับแต่งเสาเอน,เทโคนเสา,ปักเสาแซมไลน์ ฯลฯ)
B45: เพื่อป้องกันความเสียหายจากวาตภัย ในปี 2564 ดำเนินการทุกจุดในไลน์ที่มีความเสี่ยงสูง
B46: (สำรวจออกแบบขออนุมัติฯ ภายในไตรมาส 2 และดำเนินการปรับปรุงฯ ภายในไตรมาส 4/2563) | V46: รวมทั้งสิ้น
B47: กฟจ.หนองบัวลำภู (รวมสังกัด) | C47: ทุกจุดในไลน์ที่มีความเสี่ยง | L47: 1
B48: **เพื่อป้องกันวาตภัยในปี 2564
B49: 1.5 เปลี่ยนสายเปลือยเป็นสาย SAC ในเขตเทศบาลเมือง 100% (ทุกโครงการที่อนุมัติแล้ว ) | E49: กฟฟ.ชั้น 1-3,กฟส. | N49: ผจร.กกค.
B50: กฟจ.หนองบัวลำภู | C50: 1
B51: กฟส.ศรีบุญเรือง | C51: 1
B52: กฟส.นากลาง | C52: 1
B53: กฟจ.หนองบัวลำภู (รวมสังกัด) | C53: 1
A54: 2. แผนงาน Smart Patrol | B54: 2.1 สำรวจ-ปรับปรุงระบบไฟฟ้า วงจรที่ชำรุดเสื่อมสภาพจำนวนมาก ตามแผนงานเปลี่ยนทดแทนฯ | E54: กฟฟ.ชั้น 1-3,กฟส. | N54: ผตบ.กบษ.
A55: (นโยบาย KEEN 14 ด้าน EI3 : Smart Utilization) | B55: (MR.2000) รวบรวมข้อมูลแจ้ง กบร. ปีละครั้ง
B56: ค่าเกณฑ์วัด
B57: - มีงานสำรวจ-ประมาณการปรับปรุงฯ ได้ ระดับ 5
B58: - ไมมีงานสำรวจ-ประมาณการปรับปรุงฯ ได้ ระดับ 1
B59: กฟจ.หนองบัวลำภู | C59: 1 | D59: งาน (อย่างน้อย 1 งาน) | H59: 1
B60: กฟส.ศรีบุญเรือง | C60: 1 | D60: " | H60: 1
B61: กฟส.นากลาง | C61: 1 | D61: " | H61: 1
B62: กฟจ.หนองบัวลำภู (รวมสังกัด) | C62: 1 | D62: " | H62: 1
A63: 3. แผนงานก่อสร้าง/ปรับปรุงระบบสายส่ง, หม้อแปลง | B63: 3.2 ก่อสร้างระบบจำหน่ายแรงสูง (งบ I,P) | E63: กฟฟ.ชั้น 1-3,กฟส. | F63: 0.2 | H63: 0.3 | J63: 0.3 | L63: 0.2 | N63: ผจร.กกค.
A64: และระบบจำหน่าย (แรงสูง-แรงต่ำ) | B64: กฟจ.หนองบัวลำภู | C64: 0 | D64: วงจร - กม. | F64: =C64*$F$63 -> 0 | H64: =C64*$H$63 -> 0 | J64: =C64*$J$63 -> 0 | L64: =C64*$L$63 -> 0
B65: กฟส.ศรีบุญเรือง | C65: 0 | D65: " | F65: 0 | H65: 0 | J65: 0 | L65: 0
B66: กฟส.นากลาง | C66: 0 | D66: " | F66: 0 | H66: 0 | J66: 0 | L66: 0
B67: กฟจ.หนองบัวลำภู (รวมสังกัด) | C67: 0 | D67: " | F67: 0 | H67: 0 | J67: 0 | L67: 0
B68: กฟอ.บ้านไผ่ | C68: 0 | D68: " | F68: 0 | H68: 0 | J68: 0 | L68: 0
B69: กฟส.พล | C69: 5.081384661 | D69: " | F69: 1.016276932 | H69: 1.524415398 | J69: 1.524415398 | L69: 1.016276932
B70: กฟส.มัญจาคีรี | C70: 4.84 | D70: " | F70: 0.968 | H70: 1.452 | J70: 1.452 | L70: 0.968
B71: กฟส.หนองสองห้อง | C71: 0 | D71: " | F71: 0 | H71: 0 | J71: 0 | L71: 0
B72: 3.3 ก่อสร้างระบบจำหน่ายแรงต่ำ (งบ I,P) | E72: กฟฟ.ชั้น 1-3,กฟส. | F72: 0.15 | H72: 0.35 | J72: 0.35 | L72: 0.15 | N72: ผปร.กวว.
B73: กฟจ.หนองบัวลำภู | C73: 21 | D73: วงจร - กม. | F73: =+C73*0.15 -> 3.15 | H73: =+C73*0.35 -> 7.35 | J73: =+C73*0.35 -> 7.35 | L73: =+C73*0.15 -> 3.15
B74: กฟส.ศรีบุญเรือง | C74: 10 | D74: " | F74: 1.5 | H74: 3.5 | J74: 3.5 | L74: 1.5
B75: กฟส.นากลาง | C75: 10 | D75: " | F75: 1.5 | H75: 3.5 | J75: 3.5 | L75: 1.5
B76: กฟจ.หนองบัวลำภู (รวมสังกัด) | C76: 41 | D76: " | F76: 6.15 | H76: 14.35 | J76: 14.35 | L76: 6.15
B77: กฟอ.บ้านไผ่ | C77: 21 | D77: " | F77: 3.15 | H77: 7.35 | J77: 7.35 | L77: 3.15
B78: กฟส.พล | C78: 10 | D78: " | F78: 1.5 | H78: 3.5 | J78: 3.5 | L78: 1.5
B79: กฟส.มัญจาคีรี | C79: 10 | D79: " | F79: 1.5 | H79: 3.5 | J79: 3.5 | L79: 1.5
B80: กฟส.หนองสองห้อง | C80: 10 | D80: " | F80: 1.5 | H80: 3.5 | J80: 3.5 | L80: 1.5
B81: 3.4 ติดตั้งระบบหม้อแปลง (งบ I,P) | E81: กฟฟ.ชั้น 1-3,กฟส. | F81: 0.15 | H81: 0.35 | J81: 0.35 | L81: 0.15 | N81: ผปร.กวว.
B82: กฟจ.หนองบัวลำภู | C82: 2000 | D82: kVA | F82: =+C82*0.15 -> 300 | H82: =+C82*0.35 -> 700 | J82: =+C82*0.35 -> 700 | L82: =+C82*0.15 -> 300
B83: กฟส.ศรีบุญเรือง | C83: 1000 | D83: " | F83: 150 | H83: 350 | J83: 350 | L83: 150
B84: กฟส.นากลาง | C84: 1000 | D84: " | F84: 150 | H84: 350 | J84: 350 | L84: 150
B85: กฟจ.หนองบัวลำภู (รวมสังกัด) | C85: 4000 | D85: " | F85: 600 | H85: 1400 | J85: 1400 | L85: 600
B86: กฟอ.บ้านไผ่ | C86: 2000 | D86: " | F86: 300 | H86: 700 | J86: 700 | L86: 300
B87: กฟส.พล | C87: 1000 | D87: " | F87: 150 | H87: 350 | J87: 350 | L87: 150
B88: กฟส.มัญจาคีรี | C88: 1000 | D88: " | F88: 150 | H88: 350 | J88: 350 | L88: 150
B89: กฟส.หนองสองห้อง | C89: 1000 | D89: " | F89: 150 | H89: 350 | J89: 350 | L89: 150
B90: end | L90: 3 | N90: 17

Sheet I2 OM1(LOSS)
A1: แผนปฏิบัติการ กฟฉ.1 ประจำปี 2563 | C1: ด้านกระบวนการภายใน
A2: (ฉบับทบทวนครั้งที่ 1) | C2: (Internal Process)
A3: 1. วัตถุประสงค์เชิงยุทธศาสตร์ | C3: 2. กลยุทธ์ระดับองค์กร | E3: 3. เกณฑ์วัดการดำเนินงานระดับองค์กร | J3: 4. เป้าหมาย
A4: (Strategic Objective) | C4: OM1 การเพิ่มประสิทธิภาพและความน่าเชื่อถือของระบบจำหน่าย | E4: - ร้อยละของหน่วยสูญเสีย (Loss) | J4: - ไม่มากกว่าร้อยละ 5.18
A5: SO2 มุ่งสู่องค์กรที่เป็นเลิศในด้านจำหน่ายกระแสไฟฟ้า
A6: โดยบูรณาการทุกระบบงานด้วย Digitalization | C6: 5. กลยุทธ์ระดับสายงาน | E6: 6. เกณฑ์วัดการดำเนินงานระดับสายงาน | J6: 7. เป้าหมาย
C7: OM1 การเพิ่มประสิทธิภาพและความน่าเชื่อถือของระบบจำหน่าย | E7: - ร้อยละของหน่วยสูญเสีย (Loss) | J7: - ไม่มากกว่าร้อยละ……….
A9: 8. แผนงาน/โครงการ/งาน | B9: 9. แผนปฏิบัติ | E9: 10 | F9: 11 | N9: 12
A10: (Operating Strategies หรือ Strategic Initiatives) | B10: (ระบุกิจกรรมหลักพร้อมปริมาณหรือเป้าหมาย) | E10: หน่วยงาน | F10: ช่วงเวลาดำเนินการ และหรือ ปริมาณงานในไตรมาส | N10: หน่วยงาน
B11: (Activities / Action Steps) | E11: ดำเนินการ | F11: Plan Q1 | G11: Action Q1 | H11: Plan Q2 | I11: Action Q2 | J11: Plan Q3 | K11: Action Q3 | L11: Plan Q4 | M11: Action Q4 | N11: หลัก
A12: 4. แผนงานด้าน Non-Technical Loss | B12: 4.1 มาตรการ Big Patrolling and Cleansing for Strong Grid ด้านมิเตอร์
A13: (นโยบาย KEEN 14 ด้าน KE2 : Smart Service) | B13: 4.1.1 มิเตอร์ผู้ใช้ไฟฟ้ารายย่อย
B14: 4.1.1.1 การตรวจสอบและแก้ปัญหามิเตอร์ผิดปกติ ตามใบสั่งงาน U-Cube โดยพิจารณาจาก | E14: กฟฟ.ชั้น 1-3,กฟส. | N14: ผมม.กบล.
B15: คะแนน (NL1) โดยได้ระดับคะแนน NL1 (สะสม) มากกว่าหรือเท่ากับ 4.5
B16: กฟจ.หนองบัวลำภู | C16: 4.5 | D16: โดยได้ระดับคะแนน NL1 (สะสม) มากกว่าหรือเท่ากับ 4.5 | F16: 4.5 | H16: 4.5 | J16: 4.5 | L16: 4.5
B17: กฟส.ศรีบุญเรือง | C17: 4.5 | F17: 4.5 | H17: 4.5 | J17: 4.5 | L17: 4.5
B18: กฟส.นากลาง | C18: 4.5 | F18: 4.5 | H18: 4.5 | J18: 4.5 | L18: 4.5
B19: กฟจ.หนองบัวลำภู (รวมสังกัด) | C19: 4.5 | F19: 4.5 | H19: 4.5 | J19: 4.5 | L19: 4.5
B20: 4.1.1.2 สำรวจและปรับปรุงอุปกรณ์ประกอบมิเตอร์ ที่มีสภาพเอียง ชำรุด เสื่อมสภาพ | E20: กฟฟ.ชั้น 1-3,กฟส. | N20: ผมม.กบล.
B21: หรือไม่ปลอดภัยตามมิเตอร์ชำรุด รหัส 05 ใน U-Cube
B22: กฟจ.หนองบัวลำภู | C22: 1 | D22: (ติดตามการเปิด/ปิดงานจากโปรแกรม ucube) | F22: 1 | H22: 1 | J22: 1 | L22: 1
B23: กฟส.ศรีบุญเรือง | C23: 1 | F23: 1 | H23: 1 | J23: 1 | L23: 1
B24: กฟส.นากลาง | C24: 1 | F24: 1 | H24: 1 | J24: 1 | L24: 1
B25: 4.1.2 มิเตอร์ผู้ใช้ไฟฟ้ารายใหญ่
B26: 4.1.2.1 มิเตอร์ AMR ดำเนินการตรวจสอบหาสาเหตุและแก้ไขตามใบสั่งงานจากระบบ AMR | E26: กฟฟ.ชั้น 1-3,กฟส. | N26: ผมม.กบล.
B27: กฟจ.หนองบัวลำภู | C27: 4.5 | F27: 4.5 | H27: 4.5 | J27: 4.5 | L27: 4.5
B28: กฟส.ศรีบุญเรือง | C28: 4.5 | F28: 4.5 | H28: 4.5 | J28: 4.5 | L28: 4.5
B29: กฟส.นากลาง | C29: 4.5 | F29: 4.5 | H29: 4.5 | J29: 4.5 | L29: 4.5
B30: กฟจ.หนองบัวลำภู (รวมสังกัด) | C30: 4.5 | F30: 4.5 | H30: 4.5 | J30: 4.5 | L30: 4.5
B31: 4.1.2.2 ตรวจสอบมิเตอร์ผู้ใช้ไฟฟ้ารายใหญ่ที่หน่วยการใช้ไฟฟ้าลดลงมากกว่า 25% ทุกเครื่อง | E31: กฟฟ.ชั้น 1-3,กฟส. | N31: ผมม.กบล.,กซข.
B32: กฟจ.หนองบัวลำภู | C32: 1 | F32: 1 | H32: 1 | J32: 1 | L32: 1
B33: กฟส.ศรีบุญเรือง | C33: 1 | F33: 1 | H33: 1 | J33: 1 | L33: 1
B34: กฟส.นากลาง | C34: 1 | F34: 1 | H34: 1 | J34: 1 | L34: 1
B35: กฟจ.หนองบัวลำภู (รวมสังกัด) | C35: 1 | F35: 1 | H35: 1 | J35: 1 | L35: 1
B36: 4.2 มาตรการตรวจสอบและแก้ไขมิเตอร์ที่มีสภาพผิดปกติที่ได้รับรายงาน | E36: กฟฟ.ชั้น 1-3,กฟส. | N36: ผมม.กบล.
B37: จากผู้อ่านหน่วย (NL2)
B38: กฟจ.หนองบัวลำภู | C38: 4.5 | D38: โดยได้ระดับคะแนน NL2 (สะสม) มากกว่าหรือเท่ากับ 4.5 | F38: 4.5 | H38: 4.5 | J38: 4.5 | L38: 4.5
B39: กฟส.ศรีบุญเรือง | C39: 4.5 | F39: 4.5 | H39: 4.5 | J39: 4.5 | L39: 4.5
B40: กฟส.นากลาง | C40: 4.5 | F40: 4.5 | H40: 4.5 | J40: 4.5 | L40: 4.5
B41: กฟจ.หนองบัวลำภู (รวมสังกัด) | C41: 4.5 | F41: 4.5 | H41: 4.5 | J41: 4.5 | L41: 4.5
B42: กฟอ.บ้านไผ่ | C42: 4.5 | F42: 4.5 | H42: 4.5 | J42: 4.5 | L42: 4.5
B43: กฟส.พล | C43: 4.5 | F43: 4.5 | H43: 4.5 | J43: 4.5 | L43: 4.5
B44: กฟส.มัญจาคีรี | C44: 4.5 | F44: 4.5 | H44: 4.5 | J44: 4.5 | L44: 4.5
B45: กฟส.หนองสองห้อง | C45: 4.5 | F45: 4.5 | H45: 4.5 | J45: 4.5 | L45: 4.5
B46: 4.3.2 มิเตอร์แรงสูง 22/33 เควีทุกเครื่อง (มิเตอร์ผู้ใช้ไฟ) | E46: กฟฟ.ชั้น 1-3 | N46: ผมม.กบล.
B48: กฟจ.หนองบัวลำภู (รวมสังกัด) | C48: 116 | D48: เครื่อง | F48: =ROUNDUP(C48/4,0) -> 29 | H48: =2*ROUNDUP(C48/4,0) -> 58 | J48: =3*ROUNDUP(C48/4,0) -> 87 | L48: =C48 -> 116
B49: 4.3.3 มิเตอร์ประกอบซีทีแรงต่ำทุกเครื่อง (รวมมิเตอร์ผู้ใช้ไฟหม้อแปลงเฉพาะราย) (ทุกราย) | E49: กฟฟ.ชั้น 1-3,กฟส. | N49: ผมม.กบล.
B50: กฟจ.หนองบัวลำภู | C50: 201 | D50: เครื่อง | F50: =ROUNDUP(C50/4,0) -> 51 | H50: =2*ROUNDUP(C50/4,0) -> 102 | J50: =3*ROUNDUP(C50/4,0) -> 153 | L50: =C50 -> 201
B51: กฟส.ศรีบุญเรือง | C51: 63 | D51: " | F51: 16 | H51: 32 | J51: 48 | L51: 63
B52: กฟส.นากลาง | C52: 69 | D52: " | F52: 18 | H52: 36 | J52: 54 | L52: 69
B53: กฟจ.หนองบัวลำภู (รวมสังกัด) | C53: =SUM(C50:C52) -> 333 | D53: " | F53: 84 | H53: 168 | J53: 252 | L53: 333
B54: กฟอ.บ้านไผ่ | C54: 265 | D54: " | F54: 67 | H54: 134 | J54: 201 | L54: 265
B55: กฟส.พล | C55: 135 | D55: " | F55: 34 | H55: 68 | J55: 102 | L55: 135
B56: กฟส.มัญจาคีรี | C56: 74 | D56: " | F56: 19 | H56: 38 | J56: 57 | L56: 74
B57: กฟส.หนองสองห้อง | C57: 32 | D57: " | F57: 8 | H57: 16 | J57: 24 | L57: 32
B58: 4.3.4 มิเตอร์แรงต่ำ (รายย่อย ; 33% ของจำนวนผู้ใช้ไฟทั้งหมด ) | E58: กฟฟ.ชั้น 1-3,กฟส. | N58: ผมม.กบล.
B59: กฟจ.หนองบัวลำภู | C59: 25000 | D59: เครื่อง | F59: =ROUNDUP(C59/4,0) -> 6250 | H59: =2*ROUNDUP(C59/4,0) -> 12500 | J59: =3*ROUNDUP(C59/4,0) -> 18750 | L59: =C59 -> 25000
B60: กฟส.ศรีบุญเรือง | C60: 11000 | D60: " | F60: 2750 | H60: 5500 | J60: 8250 | L60: 11000
B61: กฟส.นากลาง | C61: 11000 | D61: " | F61: 2750 | H61: 5500 | J61: 8250 | L61: 11000
B62: กฟจ.หนองบัวลำภู (รวมสังกัด) | C62: =SUM(C59:C61) -> 47000 | D62: " | F62: 11750 | H62: 23500 | J62: 35250 | L62: 47000
B63: กฟอ.บ้านไผ่ | C63: 25000 | D63: " | F63: 6250 | H63: 12500 | J63: 18750 | L63: 25000
B64: กฟส.พล | C64: 11000 | D64: " | F64: 2750 | H64: 5500 | J64: 8250 | L64: 11000
B65: กฟส.มัญจาคีรี | C65: 11000 | D65: " | F65: 2750 | H65: 5500 | J65: 8250 | L65: 11000
B66: กฟส.หนองสองห้อง | C66: 11000 | D66: " | F66: 2750 | H66: 5500 | J66: 8250 | L66: 11000
B67: 4.4 ตรวจสอบมิเตอร์ที่มีความเสี่ยงต่อการละเมิดการใช้ไฟฟ้า
B68: และที่มีประวัติการละเมิดฯ ซ้ำซ้อน
B69: 4.4.1 ตรวจสอบมิเตอร์ที่มีความเสี่ยงต่อการละเมิด เช่น โรงโม่หิน โรงน้ำแข็ง | E69: กฟฟ.ชั้น 1-3,กฟส. | N69: ผมม.กบล.
B70: กฟฉ.1 | C70: 100 | D70: เครื่อง | F70: 25 | H70: 50 | J70: 75 | L70: 100
B71: กฟฟ.หน้างาน รับผิดชอบ โดย ผมม.จะเป็นผู้กำหนดจำนวนและ PEA ให้แต่ละ กฟฟ.
B72: 4.4.2 ตรวจสอบมิเตอร์ที่มีประวัติการละเมิดฯ | E72: กฟฟ.ชั้น 1-3,กฟส. | N72: ผมม.กบล.
B73: กฟฉ.1 | C73: 200 | D73: เครื่อง | F73: 50 | H73: 100 | J73: 150 | L73: 200
B74: กฟฟ.หน้างาน รับผิดชอบ โดย ผมม.จะเป็นผู้กำหนดจำนวนและ PEA ให้แต่ละ กฟฟ.
B75: 4.5 มาตรการสำรวจและตรวจสอบมิเตอร์ไฟฟ้าสาธารณะ และไฟทางหลวง
B76: กรณีติดตั้งมิเตอร์และเหมาจ่าย
B77: 4.5.1 สำรวจจุดติดตั้งดวงโคมเหมาจ่ายไฟสาธารณะและประเมินหน่วยการใช้ไฟฟ้า | E77: กฟฟ.ชั้น 1-3,กฟส. | N77: ผมม.กบล.,กซข.
B78: ให้ถูกต้องครบถ้วน
B79: กฟจ.หนองบัวลำภู | C79: 1 | D79: ดวงโคม | F79: 0.25 | H79: 0.5 | J79: 0.75 | L79: 1
B80: กฟส.ศรีบุญเรือง | C80: 1 | D80: " | F80: 0.25 | H80: 0.5 | J80: 0.75 | L80: 1
B81: กฟส.นากลาง | C81: 1 | D81: " | F81: 0.25 | H81: 0.5 | J81: 0.75 | L81: 1
B82: กฟจ.หนองบัวลำภู (รวมสังกัด) | C82: 1 | D82: " | F82: 0.25 | H82: 0.5 | J82: 0.75 | L82: 1
B83: กฟอ.บ้านไผ่ | C83: 1 | D83: " | F83: 0.25 | H83: 0.5 | J83: 0.75 | L83: 1
B84: กฟส.พล | C84: 1 | D84: " | F84: 0.25 | H84: 0.5 | J84: 0.75 | L84: 1
B85: กฟส.มัญจาคีรี | C85: 1 | D85: " | F85: 0.25 | H85: 0.5 | J85: 0.75 | L85: 1
B86: กฟส.หนองสองห้อง | C86: 1 | D86: " | F86: 0.25 | H86: 0.5 | J86: 0.75 | L86: 1
B87: 4.5.2 ตรวจสอบและบำรุงรักษามิเตอร์ไฟฟ้าสาธารณะ และไฟทางหลวง ให้อยู่ในสภาพที่ปลอดภัย | E87: กฟฟ.ชั้น 1-3,กฟส. | N87: ผมม.กบล.
B88: พร้อมใช้และวัดค่าการใช้ไฟฟ้าได้ถูกต้อง
B89: กฟจ.หนองบัวลำภู | C89: 1 | D89: " | F89: 0.25 | H89: 0.5 | J89: 0.75 | L89: 1
B90: กฟส.ศรีบุญเรือง | C90: 1 | D90: " | F90: 0.25 | H90: 0.5 | J90: 0.75 | L90: 1
B91: กฟส.นากลาง | C91: 1 | D91: " | F91: 0.25 | H91: 0.5 | J91: 0.75 | L91: 1
B92: กฟจ.หนองบัวลำภู (รวมสังกัด) | C92: 1 | D92: " | F92: 0.25 | H92: 0.5 | J92: 0.75 | L92: 1
B93: กฟอ.บ้านไผ่ | C93: 1 | D93: " | F93: 0.25 | H93: 0.5 | J93: 0.75 | L93: 1
B94: กฟส.พล | C94: 1 | D94: " | F94: 0.25 | H94: 0.5 | J94: 0.75 | L94: 1
B95: กฟส.มัญจาคีรี | C95: 1 | D95: " | F95: 0.25 | H95: 0.5 | J95: 0.75 | L95: 1
B96: กฟส.หนองสองห้อง | C96: 1 | D96: " | F96: 0.25 | H96: 0.5 | J96: 0.75 | L96: 1
B97: 4.6 มาตรการตรวจสอบมิเตอร์อุปกรณ์สื่อสารต่างๆ เช่น ตู้โทรศัพท์สาธารณะ Wifi CCTV
B98: และอื่น ๆ กรณีติดตั้งมิเตอร์และเหมาจ่าย
B99: 4.6.1 สำรวจจุดติดตั้ง ตู้โทรศัพท์สาธารณะ Wifi CCTV และประเมินหน่วยการใช้ไฟฟ้า | E99: กฟฟ.ชั้น 1-3,กฟส. | N99: ผมม.กบล.
B100: ให้ถูกต้องครบถ้วน
B101: กฟฉ.1 | C101: 1 | D101: จุดติดตั้ง | F101: 0.25 | H101: 0.5 | J101: 0.75 | L101: 1
B102: 4.6.2 ตรวจสอบและบำรุงรักษามิเตอร์อุปกรณ์สื่อสารต่างๆ ให้อยู่ในสภาพที่ปลอดภัย | E102: กฟฟ.ชั้น 1-3,กฟส. | N102: ผมม.กบล.
B103: พร้อมใช้และวัดค่าการใช้ไฟฟ้าได้ถูกต้อง
B104: กฟฉ.1 | C104: 1 | D104: เครื่อง | F104: 0.25 | H104: 0.5 | J104: 0.75 | L104: 1
B105: 4.8 มาตรการตรวจสอบมิเตอร์ประกอบซีที. แรงต่ำ และมิเตอร์ประกอบซีที. วีที.แรงสูง | E105: กฟฟ.ชั้น 1-3,กฟส. | N105: ผมม.กบล.
B106: ในกรณีติดตั้งใหม่ให้ครบถ้วนทุกราย ภายใน 30 วันหลังจ่ายไฟฟ้า
B107: กฟฉ.1 | C107: 1 | F107: 1 | H107: 1 | J107: 1 | L107: 1
B109: 4.9 มาตรการสับเปลี่ยนมิเตอร์ อิเล็กทรอนิกส์
B110: 4.9.1 สับเปลี่ยนมิเตอร์อิเล็กทรอนิกส์ 1 เฟส | E110: กฟฟ.ชั้น 1-3,กฟส. | N110: ผมม.กบล.
B111: กฟจ.หนองบัวลำภู | C111: 10000 | D111: เครื่อง | F111: =ROUNDUP(C111/4,0) -> 2500 | H111: =2*ROUNDUP(C111/4,0) -> 5000 | J111: =3*ROUNDUP(C111/4,0) -> 7500 | L111: =C111 -> 10000
B112: กฟส.ศรีบุญเรือง | C112: 4000 | D112: " | F112: 1000 | H112: 2000 | J112: 3000 | L112: 4000
B113: กฟส.นากลาง | C113: 4000 | D113: " | F113: 1000 | H113: 2000 | J113: 3000 | L113: 4000
B114: กฟจ.หนองบัวลำภู (รวมสังกัด) | C114: =SUM(C111:C113) -> 18000 | D114: " | F114: 4500 | H114: 9000 | J114: 13500 | L114: 18000
B115: กฟอ.บ้านไผ่ | C115: 10000 | D115: " | F115: 2500 | H115: 5000 | J115: 7500 | L115: 10000
B116: กฟส.พล | C116: 4000 | D116: " | F116: 1000 | H116: 2000 | J116: 3000 | L116: 4000
B117: กฟส.มัญจาคีรี | C117: 4000 | D117: " | F117: 1000 | H117: 2000 | J117: 3000 | L117: 4000
B118: กฟส.หนองสองห้อง | C118: 4000 | D118: " | F118: 1000 | H118: 2000 | J118: 3000 | L118: 4000
B119: 4.9.2 สับเปลี่ยนมิเตอร์อิเล็กทรอนิกส์ 3 เฟส | E119: กฟฟ.ชั้น 1-3,กฟส. | N119: ผมม.กบล.
B120: กฟจ.หนองบัวลำภู | C120: 1000 | D120: เครื่อง | F120: =ROUNDUP(C120/4,0) -> 250 | H120: =2*ROUNDUP(C120/4,0) -> 500 | J120: =3*ROUNDUP(C120/4,0) -> 750 | L120: =C120 -> 1000
B121: กฟส.ศรีบุญเรือง | C121: 500 | D121: " | F121: 125 | H121: 250 | J121: 375 | L121: 500
B122: กฟส.นากลาง | C122: 500 | D122: " | F122: 125 | H122: 250 | J122: 375 | L122: 500
B123: กฟจ.หนองบัวลำภู (รวมสังกัด) | C123: =SUM(C120:C122) -> 2000 | D123: " | F123: 500 | H123: 1000 | J123: 1500 | L123: 2000
B124: กฟอ.บ้านไผ่ | C124: 1000 | D124: " | F124: 250 | H124: 500 | J124: 750 | L124: 1000
B125: กฟส.พล | C125: 500 | D125: " | F125: 125 | H125: 250 | J125: 375 | L125: 500
B126: กฟส.มัญจาคีรี | C126: 500 | D126: " | F126: 125 | H126: 250 | J126: 375 | L126: 500
B127: กฟส.หนองสองห้อง | C127: 500 | D127: " | F127: 125 | H127: 250 | J127: 375 | L127: 500
A128: 5. แผนงานด้าน Technical Loss | B128: 5.3 การเปลี่ยนสายขนาดใหญ่ขึ้น 22/33 เควี | E128: กฟฟ.ชั้น 1-3,กฟส. | F128: 0.2 | H128: 0.3 | J128: 0.3 | L128: 0.2 | N128: ผจร.กกค.
A129: (นโยบาย KEEN 14 ด้าน KE1 : Grid Excellence)
B130: กฟจ.อุดรธานี | C130: 22.52842794 | D130: " | F130: =C130*$F$128 -> 4.505685588 | H130: =C130*$H$128 -> 6.758528382 | J130: =C130*$J$128 -> 6.758528382 | L130: =C130*$L$128 -> 4.505685588
B131: กฟส.บ้านผือ | C131: 0 | D131: " | F131: 0 | H131: 0 | J131: 0 | L131: 0
B132: กฟส.หนองวัวซอ | C132: 1.353462707 | D132: " | F132: 0.2706925413 | H132: 0.406038812 | J132: 0.406038812 | L132: 0.2706925413
B133: กฟส.กุดจับ | C133: 0 | D133: " | F133: 0 | H133: 0 | J133: 0 | L133: 0
B134: กฟจ.หนองบัวลำภู | C134: 0 | D134: วงจร-กม. | F134: 0 | H134: 0 | J134: 0 | L134: 0
B135: กฟส.ศรีบุญเรือง | C135: 0 | D135: " | F135: 0 | H135: 0 | J135: 0 | L135: 0
B136: กฟส.นากลาง | C136: 0 | D136: " | F136: 0 | H136: 0 | J136: 0 | L136: 0
B137: กฟจ.หนองบัวลำภู (รวมสังกัด) | C137: 0 | D137: " | F137: 0 | H137: 0 | J137: 0 | L137: 0
B138: กฟอ.บ้านไผ่ | C138: 0 | D138: " | F138: 0 | H138: 0 | J138: 0 | L138: 0
B139: กฟส.พล | C139: 5.081384661 | D139: " | F139: 1.016276932 | H139: 1.524415398 | J139: 1.524415398 | L139: 1.016276932
B140: กฟส.มัญจาคีรี | C140: 4.84 | D140: " | F140: 0.968 | H140: 1.452 | J140: 1.452 | L140: 0.968
B141: กฟส.หนองสองห้อง | C141: 0 | D141: " | F141: 0 | H141: 0 | J141: 0 | L141: 0
B142: 5.6.1.3 การตรวจสอบแก้ไขจุดต่อจุดสัมผัสใน ระบบจำหน่าย | E142: กฟฟ.ชั้น 1-3,กฟส. | N142: ผตบ.กบษ.
B143: กฟจ.หนองบัวลำภู | C143: 12 | D143: ฟีดเดอร์ | F143: =ROUNDUP(C143/3,) -> 4 | H143: =C143-F143-J143 -> 4 | J143: =ROUNDDOWN(C143/3,) -> 4
B144: กฟส.ศรีบุญเรือง | C144: 5 | D144: " | F144: 2 | H144: 2 | J144: 1
B145: กฟส.นากลาง | C145: 4 | D145: " | F145: 2 | H145: 1 | J145: 1
B146: กฟจ.หนองบัวลำภู (รวมสังกัด) | C146: =SUM(C143:C145) -> 21 | D146: " | F146: 7 | H146: 7 | J146: 7
B147: กฟอ.บ้านไผ่ | C147: 8 | D147: " | F147: 3 | H147: 3 | J147: 2
B148: กฟส.พล | C148: 10 | D148: " | F148: 4 | H148: 3 | J148: 3
B149: กฟส.มัญจาคีรี | C149: 6 | D149: " | F149: =ROUNDUP(C149/3,) -> 2 | H149: 2 | J149: =ROUNDDOWN(C149/3,) -> 2
B150: กฟส.หนองสองห้อง | C150: 2 | D150: " | F150: 1 | H150: 1 | J150: 0
B151: 5.6.2 การแก้ไขคาปาซิเตอร์ 22/33 เควี ที่หลุดจากระบบให้สามารถ ใช้ได้(100%) | E151: กฟฟ.ชั้น 1-3,กฟส. | N151: ผบอ.กบษ.
B152: กฟจ.หนองบัวลำภู | C152: 1 | F152: 1 | H152: 1 | J152: 1 | L152: 1
B153: กฟส.ศรีบุญเรือง | C153: 1 | F153: 1 | H153: 1 | J153: 1 | L153: 1
B154: กฟส.นากลาง | C154: 1 | F154: 1 | H154: 1 | J154: 1 | L154: 1
B155: กฟจ.หนองบัวลำภู (รวมสังกัด) | C155: 1 | F155: 1 | H155: 1 | J155: 1 | L155: 1
B156: กฟอ.บ้านไผ่ | C156: 1 | F156: 1 | H156: 1 | J156: 1 | L156: 1
B157: กฟส.พล | C157: 1 | F157: 1 | H157: 1 | J157: 1 | L157: 1
B158: กฟส.มัญจาคีรี | C158: 1 | F158: 1 | H158: 1 | J158: 1 | L158: 1
B159: กฟส.หนองสองห้อง | C159: 1 | F159: 1 | H159: 1 | J159: 1 | L159: 1
B160: ชำรุด...จุด ดำเนินการได้…จุด
B161: 5.9 หม้อแปลงจำหน่าย
B162: 5.9.1 การแก้ไขหม้อแปลง Unbalance เกินกว่า 20% (เครื่อง) | E162: กฟฟ.ชั้น 1-3,กฟส. | N162: ผมม.กบล.
B163: กฟจ.หนองบัวลำภู | C163: 20 | D163: เครื่อง | F163: =ROUNDUP(C163/4,0) -> 5 | H163: =2*ROUNDUP(C163/4,0) -> 10 | J163: =3*ROUNDUP(C163/4,0) -> 15 | L163: =C163 -> 20
B164: กฟส.ศรีบุญเรือง | C164: 20 | F164: 5 | H164: 10 | J164: 15 | L164: 20
B165: กฟส.นากลาง | C165: 20 | F165: 5 | H165: 10 | J165: 15 | L165: 20
B166: กฟจ.หนองบัวลำภู (รวมสังกัด) | C166: 60 | F166: 15 | H166: 30 | J166: 45 | L166: 60
B167: กฟอ.บ้านไผ่ | C167: 20 | F167: 5 | H167: 10 | J167: 15 | L167: 20
B168: กฟส.พล | C168: 20 | F168: 5 | H168: 10 | J168: 15 | L168: 20
B169: กฟส.มัญจาคีรี | C169: 20 | F169: 5 | H169: 10 | J169: 15 | L169: 20
B170: กฟส.หนองสองห้อง | C170: 20 | F170: 5 | H170: 10 | J170: 15 | L170: 20
B171: 5.9.2 การสับเปลี่ยนหม้อแปลงที่จ่ายโหลดไม่เหมาะสม | E171: กฟฟ.ชั้น 1-3,กฟส. | N171: ผมม.กบล./ผปร.กวว.
B172: (จ่ายโหลดน้อยกว่า 40 %ของขนาดหม้อแปลง)
B173: กฟจ.หนองบัวลำภู | C173: 10 | D173: เครื่อง | F173: =ROUNDUP(C173/4,0) -> 3 | H173: =2*ROUNDUP(C173/4,0) -> 6 | J173: =3*ROUNDUP(C173/4,0) -> 9 | L173: =C173 -> 10
B174: กฟส.ศรีบุญเรือง | C174: 10 | F174: 3 | H174: 6 | J174: 9 | L174: 10
B175: กฟส.นากลาง | C175: 10 | F175: 3 | H175: 6 | J175: 9 | L175: 10
B176: กฟจ.หนองบัวลำภู (รวมสังกัด) | C176: 30 | F176: 8 | H176: 16 | J176: 24 | L176: 30
B177: กฟอ.บ้านไผ่ | C177: 10 | F177: 3 | H177: 6 | J177: 9 | L177: 10
B178: กฟส.พล | C178: 10 | F178: 3 | H178: 6 | J178: 9 | L178: 10
B179: กฟส.มัญจาคีรี | C179: 10 | F179: 3 | H179: 6 | J179: 9 | L179: 10
B180: กฟส.หนองสองห้อง | C180: 10 | F180: 3 | H180: 6 | J180: 9 | L180: 10
B181: 5.9.3 การติดตั้งหม้อแปลงเสริมเพื่อเพิ่มประสิทธิภาพการจ่ายไฟ (เควีเอ) | E181: กฟฟ.ชั้น 1-3,กฟส. | F181: 0.15 | H181: 0.35 | J181: 0.35 | L181: 0.15 | N181: ผปร.กวว.
B182: กฟจ.หนองบัวลำภู | C182: 2000 | D182: kVA | F182: =+C182*0.15 -> 300 | H182: =+C182*0.35 -> 700 | J182: =+C182*0.35 -> 700 | L182: =+C182*0.15 -> 300
B183: กฟส.ศรีบุญเรือง | C183: 1000 | D183: " | F183: 150 | H183: 350 | J183: 350 | L183: 150
B184: กฟส.นากลาง | C184: 1000 | D184: " | F184: 150 | H184: 350 | J184: 350 | L184: 150
B185: กฟจ.หนองบัวลำภู (รวมสังกัด) | C185: 4000 | D185: " | F185: 600 | H185: 1400 | J185: 1400 | L185: 600
B186: กฟอ.บ้านไผ่ | C186: 2000 | D186: " | F186: 300 | H186: 700 | J186: 700 | L186: 300
B187: กฟส.พล | C187: 1000 | D187: " | F187: 150 | H187: 350 | J187: 350 | L187: 150
B188: กฟส.มัญจาคีรี | C188: 1000 | D188: " | F188: 150 | H188: 350 | J188: 350 | L188: 150
B189: กฟส.หนองสองห้อง | C189: 1000 | D189: " | F189: 150 | H189: 350 | J189: 350 | L189: 150
B190: 5.10 ระบบจำหน่ายแรงต่ำ
B191: 5.10.1 การเปลี่ยนสายแรงต่ำให้มีขนาดใหญ่ขึ้น | E191: กฟฟ.ชั้น 1-3,กฟส. | F191: 0.15 | H191: 0.35 | J191: 0.35 | L191: 0.15 | N191: ผปร.กวว.
B192: กฟจ.หนองบัวลำภู | C192: 15 | D192: วงจร-กม. | F192: =C192*0.15 -> 2.25 | H192: =C192*0.35 -> 5.25 | J192: =C192*0.35 -> 5.25 | L192: =C192*0.15 -> 2.25
B193: กฟส.ศรีบุญเรือง | C193: 5 | F193: 0.75 | H193: 1.75 | J193: 1.75 | L193: 0.75
B194: กฟส.นากลาง | C194: 5 | F194: 0.75 | H194: 1.75 | J194: 1.75 | L194: 0.75
B195: กฟจ.หนองบัวลำภู (รวมสังกัด) | C195: =SUM(C192:C194) -> 25 | F195: 3.75 | H195: 8.75 | J195: 8.75 | L195: 3.75
B196: กฟอ.บ้านไผ่ | C196: 15 | F196: 2.25 | H196: 5.25 | J196: 5.25 | L196: 2.25
B197: กฟส.พล | C197: 5 | F197: 0.75 | H197: 1.75 | J197: 1.75 | L197: 0.75
B198: กฟส.มัญจาคีรี | C198: 5 | F198: 0.75 | H198: 1.75 | J198: 1.75 | L198: 0.75
B199: กฟส.หนองสองห้อง | C199: 5 | F199: 0.75 | H199: 1.75 | J199: 1.75 | L199: 0.75
B200: 5.10.2 การตัดจ่ายไฟใหม่แรงต่ำ (หน่วยนับจากจำนวนเครื่องหม้อแปลง) | E200: กฟฟ.ชั้น 1-3,กฟส. | F200: 0.15 | H200: 0.35 | J200: 0.35 | L200: 0.15 | N200: ผปร.กวว.
B201: กฟจ.หนองบัวลำภู | C201: 17 | D201: เครื่อง | F201: =C201*0.15 -> 2.55 | H201: =C201*0.35 -> 5.95 | J201: =C201*0.35 -> 5.95 | L201: =C201*0.15 -> 2.55
B202: กฟส.ศรีบุญเรือง | C202: 8 | F202: 1.2 | H202: 2.8 | J202: 2.8 | L202: 1.2
B203: กฟส.นากลาง | C203: 8 | F203: 1.2 | H203: 2.8 | J203: 2.8 | L203: 1.2
... 15 more rows

Sheet I3 OM1(GIS)
A1: แผนปฏิบัติการ กฟฉ.1 ประจำปี 2563 | C1: ด้านกระบวนการภายใน
A2: (ฉบับทบทวนครั้งที่ 1) | C2: (Internal Process)
A3: 1. วัตถุประสงค์เชิงยุทธศาสตร์ | C3: 2. กลยุทธ์ระดับองค์กร | E3: 3. เกณฑ์วัดการดำเนินงานระดับองค์กร | J3: 4. เป้าหมาย
A4: (Strategic Objective) | C4: OM1 การเพิ่มประสิทธิภาพและความน่าเชื่อถือ | E4: - | J4: -
A5: SO2 มุ่งสู่องค์กรที่เป็นเลิศในด้านจำหน่ายกระแสไฟฟ้า | C5: ของระบบจำหน่าย
A6: โดยบูรณาการทุกระบบงานด้วย Digitalization | C6: 5. กลยุทธ์ระดับสายงาน | E6: 6. เกณฑ์วัดการดำเนินงานระดับสายงาน | J6: 7. เป้าหมาย
C7: OM1 การเพิ่มประสิทธิภาพและความน่าเชื่อถือ | E7: - ร้อยละของความถูกต้องของข้อมูลหม้อแปลง | J7: - ไม่น้อยกว่าร้อยละ………………
C8: ของระบบจำหน่าย | E8: ในฐานข้อมูลระบบ GIS
E9: - ร้อยละของความถูกต้องของข้อมูลมิเตอร์ | J9: - ไม่น้อยกว่าร้อยละ………………
E10: ในฐานข้อมูลระบบ GIS
E11: - ร้อยละของความถูกต้องของข้อมูลอุปกรณ์ตัดตอน | J11: - ไม่น้อยกว่าร้อยละ……………….
E12: และอุปกรณ์ป้องกันในฐานข้อมูลระบบ GIS
E13: - ร้อยละความสำเร็จของการปรับปรุงคุณภาพ | J13: - ไม่น้อยกว่าร้อยละ………………..
E14: เชิงข้อมูลตำแหน่งของข้อมูลมิเตอร์ในระบบ GIS
E15: เมื่อเทียบกับระบบจดหน่วย
A17: 8. แผนงาน/โครงการ/งาน | B17: 9. แผนปฏิบัติ | E17: 10 | F17: 11 | N17: 12
A18: (Operating Strategies หรือ Strategic Initiatives) | B18: (ระบุกิจกรรมหลักพร้อมปริมาณหรือเป้าหมาย) | E18: หน่วยงาน | F18: ช่วงเวลาดำเนินการ และหรือ ปริมาณงานในไตรมาส | N18: หน่วยงาน
B19: (Activities / Action Steps) | E19: ดำเนินการ | F19: Plan Q1 | G19: Action Q1 | H19: Plan Q2 | I19: Action Q2 | J19: Plan Q3 | K19: Action Q3 | L19: Plan Q4 | M19: Action Q4 | N19: หลัก
A20: 6. แผนการปรับปรุงข้อมูลในระบบ GIS | B20: 6.1 การปรับปรุงข้อมูลงานก่อสร้างระบบจำหน่ายไฟฟ้าก่อนปี 2562 (เป้าหมายจำนวนงาน | E20: กฟฟ.ชั้น 1-3,กฟส. | N20: ผผร.กวว.
A21: (นโยบาย KEEN 14 ด้าน EB3 : Behind Meter, | B21: ธ.ค.2561 สถานะ F4) ตรงกันใน 2 ระบบ (GIS เฟส 2 กับ SAP (PS)) ทุกงบ ทุกโครงการ
A22: EI2 : Digital revolution และ EI3 : Smart Utilization) | B22: ข้อมูลของ GIS เฟส 2 เมื่อเปรียบเทียบกับSAP (PS)
B23: กฟจ.หนองบัวลำภู | C23: 1 | F23: 0.8 | H23: 1
B24: กฟส.ศรีบุญเรือง | C24: 1 | F24: 0.8 | H24: 1
B25: กฟส.นากลาง | C25: 1 | F25: 0.8 | H25: 1
B26: กฟจ.หนองบัวลำภู (รวมสังกัด) | C26: 1 | F26: 0.8 | H26: 1
B27: กฟอ.บ้านไผ่ | C27: 1 | F27: 0.8 | H27: 1
B28: กฟส.พล | C28: 1 | F28: 0.8 | H28: 1
B29: กฟส.มัญจาคีรี | C29: 1 | F29: 0.8 | H29: 1
B30: กฟส.หนองสองห้อง | C30: 1 | F30: 0.8 | H30: 1
B31: 6.2 การปรับปรุงข้อมูลงานก่อสร้างระบบจำหน่ายไฟฟ้าปี 2562 (เป้าหมายจำนวนงาน | E31: กฟฟ.ชั้น 1-3,กฟส. | N31: ผผร.กวว.
B32: ธ.ค. 2562 สถานะ F4) ตรงกันใน 2 ระบบ (GIS เฟส 2 กับ SAP (PS)) ทุกงบ ทุกโครงการ
B33: ข้อมูลของ GIS เฟส 2 เมื่อเปรียบเทียบกับSAP (PS)
B34: กฟจ.หนองบัวลำภู | C34: 0.8 | F34: 0.6 | H34: 0.8 | J34: 1
B35: กฟส.ศรีบุญเรือง | C35: 0.8 | F35: 0.6 | H35: 0.8 | J35: 1
B36: กฟส.นากลาง | C36: 0.8 | F36: 0.6 | H36: 0.8 | J36: 1
B37: กฟจ.หนองบัวลำภู (รวมสังกัด) | C37: 0.8 | F37: 0.6 | H37: 0.8 | J37: 1
B38: กฟอ.บ้านไผ่ | C38: 0.8 | F38: 0.6 | H38: 0.8 | J38: 1
B39: กฟส.พล | C39: 0.8 | F39: 0.6 | H39: 0.8 | J39: 1
B40: กฟส.มัญจาคีรี | C40: 0.8 | F40: 0.6 | H40: 0.8 | J40: 1
B41: กฟส.หนองสองห้อง | C41: 0.8 | F41: 0.6 | H41: 0.8 | J41: 1
B43: 6.3 การปรับปรุงข้อมูลงานก่อสร้างระบบจำหน่ายไฟฟ้าปี 2563 (เป้าหมายจำนวนงาน | E43: กฟฟ.ชั้น 1-3,กฟส. | N43: ผผร.กวว.
B44: ทุกสิ้นไตรมาส สถานะ F4) ตรงกันใน 2 ระบบ (GIS เฟส 2 กับ SAP (PS)) ทุกงบ ทุกโครงการ
B45: ข้อมูลของ GIS เฟส 2 เมื่อเปรียบเทียบกับSAP (PS)
B46: กฟจ.หนองบัวลำภู | C46: 0.6 | F46: 0.6 | H46: 0.6 | J46: 0.6 | L46: 0.6
B47: กฟส.ศรีบุญเรือง | C47: 0.6 | F47: 0.6 | H47: 0.6 | J47: 0.6 | L47: 0.6
B48: กฟส.นากลาง | C48: 0.6 | F48: 0.6 | H48: 0.6 | J48: 0.6 | L48: 0.6
B49: กฟจ.หนองบัวลำภู (รวมสังกัด) | C49: 0.6 | F49: 0.6 | H49: 0.6 | J49: 0.6 | L49: 0.6
B50: กฟอ.บ้านไผ่ | C50: 0.6 | F50: 0.6 | H50: 0.6 | J50: 0.6 | L50: 0.6
B51: กฟส.พล | C51: 0.6 | F51: 0.6 | H51: 0.6 | J51: 0.6 | L51: 0.6
B52: กฟส.มัญจาคีรี | C52: 0.6 | F52: 0.6 | H52: 0.6 | J52: 0.6 | L52: 0.6
B53: กฟส.หนองสองห้อง | C53: 0.6 | F53: 0.6 | H53: 0.6 | J53: 0.6 | L53: 0.6
B54: 6.4 ปรับปรุงพิกัดมิเตอร์ในระบบ GIS ให้ตรงกันกับข้อมูลพิกัดมิเตอร์จากระบบจดหน่วยที่มี | E54: กฟฟ.ชั้น 1-3 | N54: ผผร.กวว.
B55: พิกัดมีค่าคาดเคลื่อนไม่เกิน 10 เมตรต่อเนื่อง 4 เดือน (เป้าหมายจากรายงานเทียบพิกัด
B56: จดหน่วยตำแหน่งเดียวกัน) ทุก กฟฟ.ชั้น 1-3 (ไตรมาส 1 รายงาน 80% ของเป้าหมาย)
B57: กฟจ.หนองบัวลำภู (รวมสังกัด) | C57: 0.9 | F57: 0.8 | H57: 0.9 | J57: 1
B58: 6.6 สำรวจและปรับปรุงข้อมูลเฟสมิเตอร์ในระบบ GIS 30% ของจำนวนหม้อแปลง กฟภ. | E58: กฟฟ.ชั้น 1-3,กฟส. | N58: ผผร.กวว.
B59: ในพื้นที่ รายงานไตรมาสละ 25% ของเป้าหมาย
B60: กฟจ.อุดรธานี | C60: 350 | D60: " | F60: 88 | H60: 88 | J60: 88 | L60: 86
B61: กฟส.บ้านผือ | C61: 220 | D61: " | F61: 55 | H61: 55 | J61: 55 | L61: 55
B62: กฟส.หนองวัวซอ | C62: 80 | D62: " | F62: 20 | H62: 20 | J62: 20 | L62: 20
B63: กฟส.กุดจับ | C63: 80 | D63: " | F63: 20 | H63: 20 | J63: 20 | L63: 20
B64: กฟจ.หนองบัวลำภู | C64: 290 | D64: เครื่อง (หม้อแปลง) | F64: 73 | H64: 73 | J64: 73 | L64: 71
B65: กฟส.ศรีบุญเรือง | C65: 130 | D65: " | F65: 33 | H65: 33 | J65: 33 | L65: 31
B66: กฟส.นากลาง | C66: 130 | D66: " | F66: 33 | H66: 33 | J66: 33 | L66: 31
B67: กฟจ.หนองบัวลำภู (รวมสังกัด) | C67: =SUM(C64:C66) -> 550 | D67: " | F67: =SUM(F64:F66) -> 139 | H67: =SUM(H64:H66) -> 139 | J67: =SUM(J64:J66) -> 139 | L67: =SUM(L64:L66) -> 133
B68: กฟอ.บ้านไผ่ | C68: 325 | D68: " | F68: 81 | H68: 81 | J68: 81 | L68: 82
B69: กฟส.พล | C69: 150 | D69: " | F69: 38 | H69: 38 | J69: 38 | L69: 36
B70: กฟส.มัญจาคีรี | C70: 100 | D70: " | F70: 25 | H70: 25 | J70: 25 | L70: 25
B71: กฟส.หนองสองห้อง | C71: 100 | D71: " | F71: 25 | H71: 25 | J71: 25 | L71: 25
B72: end | L72: 1 | N72: 6
J75: =255*2 -> 510

Sheet I4 OM4(SLA)
A1: แผนปฏิบัติการ กฟฉ.1 ประจำปี 2563 | C1: ด้านกระบวนการภายใน
A2: (ฉบับทบทวนครั้งที่ 1) | C2: (Internal Process)
A3: 1. วัตถุประสงค์เชิงยุทธศาสตร์ | C3: 2. กลยุทธ์ระดับองค์กร | E3: 3. เกณฑ์วัดการดำเนินงานระดับองค์กร | J3: 4. เป้าหมาย
A4: (Strategic Objective) | C4: OM4 ปรับปรุงกระบวนการดำเนินงานให้มีประสิทธิภาพ | E4: - ความสำเร็จของการดำเนินการตาม Service | J4: -ไม่น้อยกว่าระดับ 5
A5: SO2 มุ่งสู่องค์กรที่เป็นเลิศในด้านจำหน่ายกระแสไฟฟ้า | C5: โดยให้ครอบคลุมทั้งห่วงโซ่อุปทาน | E5: level Agreement ที่ระบุในห่วงโซ่อุปทาน
A6: โดยบูรณาการทุกระบบงานด้วย Digitalization | E6: โดยบูรณาการระดับหน่วยงาน
E7: - ความสำเร็จของการปรับปรุงกระบวนการทำงาน | J7: -ไม่น้อยกว่าระดับ 5
E8: ขององค์กร (Digital Operational Excellence)
E9: ด้วยการสนับสนุนของเทคโนโลยีดิจิทัล
C10: 5. กลยุทธ์ระดับสายงาน | E10: 6. เกณฑ์วัดการดำเนินงานระดับสายงาน | J10: 7. เป้าหมาย
C11: OM4 ปรับปรุงกระบวนการดำเนินงานให้มีประสิทธิภาพ | E11: - ความสำเร็จของการดำเนินการตาม Service | J11: -ไม่น้อยกว่าระดับ 5
C12: โดยให้ครอบคลุมทั้งห่วงโซ่อุปทาน | E12: Level Agreement ที่ระบุในห่วงโซ่อุปทาน
E13: โดยบูรณาการระดับหน่วยงานµ
A15: 8. แผนงาน/โครงการ/งาน | B15: 9. แผนปฏิบัติ | E15: 10 | F15: 11 | N15: 12
A16: (Operating Strategies หรือ Strategic Initiatives) | B16: (ระบุกิจกรรมหลักพร้อมปริมาณหรือเป้าหมาย) | E16: หน่วยงาน | F16: ช่วงเวลาดำเนินการ และหรือ ปริมาณงานในไตรมาส | N16: หน่วยงาน
B17: (Activities / Action Steps) | E17: ดำเนินการ | F17: Plan Q1 | G17: Action Q1 | H17: Plan Q2 | I17: Action Q2 | J17: Plan Q3 | K17: Action Q3 | L17: Plan Q4 | M17: Action Q4 | N17: หลัก
A18: 7. แผนงานดำเนินงานตามระบบประกันคุณภาพ | B18: 7.1 รายงานผลการดำเนินงานการจัดทำข้อตกลงระดับการให้บริการ (SLA) | E18: กฟฟ.ชั้น 1-3,กฟส. | N18: (ผผธ.,ผบธ.)กบล.
A19: งานตามข้อตกลงระดับการให้บริการ (SLA) | B19: กระบวนการ P1-P11 ของ กฟฟ.ชั้น 1-3 และ กฟส.
A20: (นโยบาย KEEN 14 ด้าน KE3: Smart Operation) | B20: กฟฉ.1
B21: กบล.ฉ.1 สรุปข้อมูลจาก http://om.pea.co.th/ รายงาน กบว.(ภ2) ภายใน 10 วันหลังสิ้นไตรมาส
B23: end | L23: 1 | N23: 1

Sheet I5 IP1(นวัตกรรม)
A1: แผนปฏิบัติการ กฟฉ.1 ประจำปี 2563 | C1: ด้านกระบวนการภายใน
A2: (ฉบับทบทวนครั้งที่ 1) | C2: (Internal Process)
A3: 1. วัตถุประสงค์เชิงยุทธศาสตร์ | C3: 2. กลยุทธ์ระดับองค์กร | E3: 3. เกณฑ์วัดการดำเนินงานระดับองค์กร | H3: 4. เป้าหมาย
A4: (Strategic Objective) | C4: IP 1 พัฒนาโครงสร้างและกระบวนการด้านนวัตกรรม | E4: - ความสำเร็จการดำเนินงานตามแผนงาน | H4: - ไม่น้อยกว่าระดับ 5
A5: SO5 ขับเคลื่อนองค์กรให้ทันสมัยด้วยทุนมนุษย์ | E5: การพัฒนาระบบการจัดการนวัตกรรมองค์กร
A6: เทคโนโลยีดิจิทัล และนวัตกรรม | E6: ( Corporate Innovation System)
C7: 5. กลยุทธ์ระดับสายงาน | E7: 6. เกณฑ์วัดการดำเนินงานระดับสายงาน | H7: 7. เป้าหมาย
C8: IP 1 พัฒนาโครงสร้างและกระบวนการด้านนวัตกรรม | E8: - ความสำเร็จการดำเนินงานตามแผนงาน | H8: - ไม่น้อยกว่าระดับ…………
E9: การพัฒนาระบบการจัดการนวัตกรรมองค์กร
E10: ( Corporate Innovation System)
A11: 8. แผนงาน/โครงการ/งาน | B11: 9. แผนปฏิบัติ | E11: 10 | F11: 11 | J11: 12
A12: (Operating Strategies หรือ Strategic Initiatives) | B12: (ระบุกิจกรรมหลักพร้อมปริมาณหรือเป้าหมาย) | E12: หน่วยงาน | F12: ช่วงเวลาดำเนินการ และหรือ ปริมาณงานในไตรมาส | J12: หน่วยงาน
B13: (Activities / Action Steps) | E13: ดำเนินการ | F13: 1 | G13: 2 | H13: 3 | I13: 4 | J13: หลัก
A14: 8. แผนงานส่งเสริมและผลักดันงานวิจัยไปใช้ประโยชน์ | B14: 8.1 ให้รายงานตามแผนงานส่งเสริมและผลักดันงานวิจัยไปใช้ประโยชน์ | E14: ผพอ.กอก. | J14: ผพอ.กอก.
A15: (นโยบาย KEEN 14 ด้าน NH1 : Smart Workforce | B15: ตามแผนงานของ กวน.
A16: และ EI1 : Innovative Process) | B16: กฟฉ.1 | C16: รายงานไตรมาสละ 1 ครั้ง | F16: 1 ครั้ง | G16: 1 ครั้ง | H16: 1 ครั้ง | I16: 1 ครั้ง
B17: รายงานภายใน 20 วันหลังวันสิ้นไตรมาส
B20: 8.2 ขยายผลนวัตกรรมใช้งานภายใน กฟข. อย่างน้อย 2 ชิ้นงาน | E20: ผพอ.กอก. | J20: ผพอ.กอก.
B21: กฟฉ.1 | C21: 2 | D21: ชิ้นงาน | I21: 2 ชิ้นงาน
B24: 8.3 ขยายผลนวัตกรรมใช้งานภายในภาค อย่างน้อย 1 ชิ้นงาน | E24: ฝวธ.(ภ2) | J24: คณะทำงานฯ ภ2
B25: ภาค 2 | C25: 1 | D25: ชิ้นงาน | I25: 1 ชิ้นงาน
B28: 8.4 จัดอบรมเพื่อพัฒนาศักยภาพของนักประดิษฐ์ แบ่งเป็น 2 ด้าน ได้แก่ | E28: ฝวธ.(ภ2) | J28: กบว.(ภ2)
B29: สิ่งประดิษฐ์ 1 ครั้ง และ ดิจิทัล 1 ครั้ง ฝวธ.(ภ2) ดำเนินการภายในเดือน พ.ย. 2563
B30: ภาค 2 | C30: 2 | D30: ครั้ง | I30: 2 ครั้ง
B33: 8.5 จัดประชุมทบทวนนวัตกรรมและดิจิทัลของสายงานการไฟฟ้าภาค 2 | E33: คณะทำงานฯ ภ2 | J33: คณะทำงานฯ ภ2
B34: ไตรมาสละ 1 ครั้ง
B35: ภาค 2 | C35: 3 | D35: ครั้ง | F35: 1 ครั้ง | G35: 1 ครั้ง | H35: 1 ครั้ง
B38: end | I38: 1 | J38: 5

Sheet I6 RS1 (พลังงาน)
A1: แผนปฏิบัติการ กฟฉ.1 ประจำปี 2563 | C1: ด้านกระบวนการภายใน
A2: (ฉบับทบทวนครั้งที่ 1) | C2: (Internal Process)
A3: 1. วัตถุประสงค์เชิงยุทธศาสตร์ | C3: 2. กลยุทธ์ระดับองค์กร | E3: 3. เกณฑ์วัดการดำเนินงานระดับองค์กร | I3: 4. เป้าหมาย
A4: (Strategic Objective) | C4: RS1 สนับสนุนการใช้พลังงานอย่างมีประสิทธิภาพ | E4: - มาตรการส่งเสริมการเพิ่มประสิทธิภาพ | I4: - ไม่น้อยกว่าระดับ 5
A5: SO1 ดำเนินธุรกิจตามหลักธรรมาภิบาลเพื่อการเติบโตอย่างยั่งยืน | E5: การใช้พลังงานสำหรับผู้ผลิตและจำหน่าย
E6: พลังงาน (Energy Efficiency Resources
E7: Standards : EERS)
E8: - จำนวนหน่วย (kWh) ที่ประหยัดพลังงานไฟฟ้าได้สะสม | I8: - ไม่น้อยกว่า 80 ล้าน kWh
C9: 5. กลยุทธ์ระดับสายงาน | E9: 6. เกณฑ์วัดการดำเนินงานระดับสายงาน | I9: 7. เป้าหมาย
C10: RS1 สนับสนุนการใช้พลังงานอย่างมีประสิทธิภาพ | E10: - มาตรการส่งเสริมการเพิ่มประสิทธิภาพ | I10: - ไม่น้อยกว่าระดับ………
E11: การใช้พลังงานสำหรับผู้ผลิตและจำหน่าย
E12: พลังงาน (Energy Efficiency Resources
E13: Standards : EERS)
E14: -จำนวนหน่วย (kWh) ที่ประหยัดพลังงาน | I14: - ไม่น้อยกว่า………... kWh
E15: ไฟฟ้าได้เหมาะสม
A16: 8. แผนงาน/โครงการ/งาน | B16: 9. แผนปฏิบัติ | E16: 10 | F16: 11 | J16: 12
A17: (Operating Strategies หรือ Strategic Initiatives) | B17: (ระบุกิจกรรมหลักพร้อมปริมาณหรือเป้าหมาย) | E17: หน่วยงาน | F17: ช่วงเวลาดำเนินการ และหรือ ปริมาณงานในไตรมาส | J17: หน่วยงาน
B18: (Activities / Action Steps) | E18: ดำเนินการ | F18: 1 | G18: 2 | H18: 3 | I18: 4 | J18: หลัก
A19: 9. สนับสนุนการใช้พลังงานอย่างมีประสิทธิภาพ | B19: 9.1 ดำเนินโครงการนำร่องมาตรการบังคับใช้เกณฑ์มาตรฐานอนุรักษ์พลังงานสำหรับ | E19: ผสอ.กวว. | J19: ผสอ.กวว.
A20: (นโยบาย KEEN 14 ด้าน EB3 : Behind Meter) | B20: ผู้ผลิตและจำหน่ายพลังงาน (Energy Efficiency Resource Standdards : EERS)
B21: ระดับคะแนน | C21: กิจกรรมที่ต้องดำเนินการ ปี 2563
B22: 1 | C22: - จัดสัมมนารับฟังความคิดเห็นโครงการนำร่องแก่ผู้รับบริการไฟฟ้า
B23: 2 | C23: - กำหนดแผนปฏิบัติการ และเป้าหมายผลประหยัดพลังงาน ในการดำเนินโครงการ
C24: นำร่องเพื่อส่งเสริมให้เกิดการใช้พลังงานอย่างมีประสิทธิภาพตามเกณฑ์ EERS
B25: 3 | C25: - ดำเนินการครบถ้วนตามกิจกรรมที่ได้กำหนดไว้ในแผนงานโครงการนำร่อง
B26: 4 | C26: - ประหยัดพลังงานได้ไม่น้อยกว่า (กฟฉ.1 = 300,000 หน่วย, กฟฉ.2 = 250,000 หน่วย, กฟฉ.3 = 300,000 หน่วย)
B27: 5 | C27: - ประหยัดพลังงานได้ไม่น้อยกว่า (กฟฉ.1 = 600,000 หน่วย, กฟฉ.2 = 500,000 หน่วย, กฟฉ.3 = 600,000 หน่วย)
B28: กฟฉ.1 | C28: คะแนนระดับ 5 | F28: 1 ครั้ง | G28: 1 ครั้ง | H28: 1 ครั้ง | I28: 1 ครั้ง
B29: สรุปรายงานผลการดำเนินงานทุกวันที่ 15 หลังสิ้นไตรมาส
B32: end | I32: 1 | J32: 1
I33: =I32+'I5 IP1(นวัตกรรม)'!I38+'I4 OM4(SLA)'!L23+'I3 OM1(GIS)'!L72+'I2 OM1(LOSS)'!L218+'I1 OM1(SAIFISAIDI)'!L90 -> 9 | J33: =J32+'I5 IP1(นวัตกรรม)'!J38+'I4 OM4(SLA)'!N23+'I3 OM1(GIS)'!N72+'I2 OM1(LOSS)'!N218+'I1 OM1(SAIFISAIDI)'!N90 -> 81

Sheet L1 (DT1)
A1: แผนปฏิบัติการ กฟฉ.1 ประจำปี 2563 | C1: ด้านการเรียนรู้และพัฒนา
A2: (ฉบับทบทวนครั้งที่ 1) | C2: (Learning and Growth)
A3: 1. วัตถุประสงค์เชิงยุทธศาสตร์ | C3: 2. กลยุทธ์ระดับองค์กร | E3: 3. เกณฑ์วัดการดำเนินงานระดับองค์กร | H3: 4. เป้าหมาย
A4: (Strategic Objective) | C4: DT 1 พัฒนาขีดความสามารถด้านเทคโนโลยีดิจิทัล | E4: - ความสำเร็จของแผนปฏิบัติการดิจิทัลของ กฟภ. | H4: - ไม่น้อยกว่าร้อยละ 100
A5: SO5 ขับเคลื่อนองค์กรให้ทันสมัยด้วยทุนมนุษย์ | C5: เพื่อสะท้อนถึงประสิทธิภาพของการบริหารค่าใช้จ่าย | E5: - ความสำเร็จการดำเนินงานตามแผนงาน | H5: - ไม่น้อยกว่าร้อยละ 100
A6: เทคโนโลยีดิจิทัล และนวัตกรรม | C6: และประสิทธิภาพของกระบวนการดำเนินงาน | E6: การยกระดับการกำกับดูแลข้อมูลฯ
E7: -ความสาเร็จในการพัฒนามาตรฐานการกากับดูแลที่ดี | H7: - ไม่น้อยกว่าร้อยละ 100
E8: และบริหารจัดการด้านเทคโนโลยีสารสนเทศ
E9: - ความสาเร็จการดาเนินงานตามแผนงาน | H9: - ไม่น้อยกว่าร้อยละ 100
E10: EA Governance & Development
C11: 5. กลยุทธ์ระดับสายงาน | E11: 6. เกณฑ์วัดการดำเนินงานระดับสายงาน | H11: 7. เป้าหมาย
C12: DT 1 พัฒนาขีดความสามารถด้านเทคโนโลยีดิจิทัล | E12: - ความสำเร็จการดำเนินงานตามแผนงาน | H12: - ไม่น้อยกว่าร้อยละ 100
C13: เพื่อสะท้อนถึงประสิทธิภาพของการบริหารค่าใช้จ่าย | E13: การยกระดับการกำกับดูแลข้อมูลฯ
C14: และประสิทธิภาพของกระบวนการดำเนินงาน
A15: 8. แผนงาน/โครงการ/งาน | B15: 9. แผนปฏิบัติ | E15: 10 | F15: 11 | J15: 12
A16: (Operating Strategies หรือ Strategic Initiatives) | B16: (ระบุกิจกรรมหลักพร้อมปริมาณหรือเป้าหมาย) | E16: หน่วยงาน | F16: ช่วงเวลาดำเนินการ และหรือ ปริมาณงานในไตรมาส | J16: หน่วยงาน
B17: (Activities / Action Steps) | E17: ดำเนินการ | F17: 1 | G17: 2 | H17: 3 | I17: 4 | J17: หลัก
A18: 1. แผนงานการขับเคลื่อนองค์กรเป็น Digital Utility | B18: 1.1 จัดอบรมผู้บริหารของสายงานการไฟฟ้า ภาค 2 เพื่อเตรียมความพร้อม | E18: คณะทำงานฯ ภ2 | J18: คณะทำงานฯ ภ2
A19: แผนการดำเนินงานด้าน Digital Utility | B19: สู่การเป็น PEA Digital Utility
B20: ภาค 2 | C20: 1 | D20: ครั้ง | G20: 1 ครั้ง
B21: คณะทำงานด้านนวัตกรรมและดิจิทัล จัดอบรมภายในไตรมาส 2/2563
B23: 1.2 จัดอบรม ผจก.กฟย. เพื่อเตรียมความพร้อมสู่การเป็น PEA Digital Utility | E23: คณะทำงานฯ ภ2 | J23: คณะทำงานฯ ภ2
B24: ภาค 2 | C24: 1 | D24: ครั้ง | G24: 1 ครั้ง
B25: คณะทำงานด้านนวัตกรรมและดิจิทัล จัดอบรมภายในไตรมาส 2/2563
B27: 1.3 จัดอบรมพนักงานในสายงานฯ ภาค 2 ตั้งแต่ หผ.ขึ้นไป หรือ The Trainner | E27: คณะทำงานฯ ภ2 | J27: คณะทำงานฯ ภ2
B28: (ตัวแทนของ กฟฟ.) เพื่อเตรียมความพร้อมสู่การเป็น PEA Digital Utility
B29: ภาค 2 | C29: 1 | D29: ครั้ง | G29: 1 ครั้ง
B30: คณะทำงานด้านนวัตกรรมและดิจิทัล จัดอบรมภายในไตรมาส 2/2563
B32: 1.4 จัดอบรมให้ความรู้เกี่ยวกับ Big Data และ Data Analytics | E32: คณะทำงานฯ ภ2 | J32: คณะทำงานฯ ภ2
B33: ผู้เข้ารับการอบรม จำนวน 26 คน ได้แก่ ผู้บริหาร ฝวธ.(ภ2) จำนวน 2 คน, ผู้บริหารของ กฟฉ.1-2-3 | G33: 1 ครั้ง
B34: เขตละ 2 คน, ตัวแทน กฟฉ.1-2-3 เขตละ 5 คน และตัวแทน ฝวธ.(ภ2) จำนวน 3 คน
B35: ภาค 2 | C35: 1 | D35: ครั้ง | F35: 1 ครั้ง
B38: end

Sheet L2 OC1(สู่ความยั่งยืน)
A1: แผนปฏิบัติการ กฟฉ.1 ประจำปี 2563 | C1: ด้านการเรียนรู้และพัฒนา
A2: (ฉบับทบทวนครั้งที่ 1) | C2: (Learning and Growth)
A3: 1. วัตถุประสงค์เชิงยุทธศาสตร์ | C3: 2. กลยุทธ์ระดับองค์กร | E3: 3. เกณฑ์วัดการดำเนินงานระดับองค์กร | H3: 4. เป้าหมาย
A4: (Strategic Objective) | C4: OC 1 วิเคราะห์ GAP และแนวทางการผักดันองค์กรสู่ความยั่งยืน | E4: - คะแนนประเมิน ITA | H4: - ไม่น้อยกว่า 80-100 คะแนน
A5: SO1 ดำเนินธุรกิจหลักธรรมาภิบาลเพื่อการเติบโตอย่างยั่งยืน | E5: - ความสำเร็จเพื่อยกระดับการดำเนินงาน | H5: - ไม่น้อยกว่าร้อยละ 100
E6: ให้ได้ตามมาตรฐาน OECD, DJSI และเกณฑ์
E7: การกำกับดูแลของ สคร.
E8: - ความสำเร็จในการดำเนินงานเพื่อยกระดับ | H8: - ไม่น้อยกว่าร้อยละ 100
E9: สู่ความยั่งยืน
E10: - ความสำเร็จในการยกระดับโครงการ | H10: - ไม่น้อยกว่าร้อยละ 100
E11: ด้านสังคมและสิ่งแวดล้อม
C12: 5. กลยุทธ์ระดับสายงาน | E12: 6. เกณฑ์วัดการดำเนินงานระดับสายงาน | H12: 7. เป้าหมาย
C13: OC 1 วิเคราะห์ GAP และแนวทางการผักดันองค์กรสู่ความยั่งยืน | E13: - คะแนนประเมิน ITAµ | H13: - ไม่น้อยกว่า 80-100 คะแนน
E14: - ความสำเร็จเพื่อยกระดับการดำเนินงาน | H14: - ไม่น้อยกว่าร้อยละ 100
E15: ให้ได้ตามมาตรฐาน OECD, DJSI และเกณฑ์
E16: การกำกับดูแลของ สคร.µ
E17: - ความสำเร็จในการดำเนินงานเพื่อยกระดับ | H17: - ไม่น้อยกว่าร้อยละ 100
E18: สู่ความยั่งยืน µ
E19: - ความสำเร็จในการยกระดับโครงการ | H19: - ไม่น้อยกว่าร้อยละ 100
E20: ด้านสังคมและสิ่งแวดล้อม µ
A21: 8. แผนงาน/โครงการ/งาน | B21: 9. แผนปฏิบัติ | E21: 10 | F21: 11 | J21: 12
A22: (Operating Strategies หรือ Strategic Initiatives) | B22: (ระบุกิจกรรมหลักพร้อมปริมาณหรือเป้าหมาย) | E22: หน่วยงาน | F22: ช่วงเวลาดำเนินการ และหรือ ปริมาณงานในไตรมาส | J22: หน่วยงาน
B23: (Activities / Action Steps) | E23: ดำเนินการ | F23: 1 | G23: 2 | H23: 3 | I23: 4 | J23: หลัก
A24: 2. แผนงานเสริมสร้างการกำกับดูแลกิจการที่ดี วัฒนธรรมและ | B24: 2.1 กอก.กฟข. จัดการบรรยายหรือกิจกรรมที่สอดแทรกเนื้อหาด้านการกำกับ | E24: ผพอ.กอก. | J24: ผพอ.กอก.
A25: ค่านิยมสุจริต คุณธรรม จริยธรรม ความโปร่งใส และการ | B25: ดูแลกิจการที่ดี คุณธรรม จริยธรรม และความโปร่งใส ให้พนักงาน กฟข,กฟฟ.
A26: ต่อต้านการทุจริตในการปฏิบัติงาน (Soft Control) | B26: ในสังกัด
A27: (นโยบาย KEEN 14 ด้าน KE4 : Good Governance) | B27: กฟฉ.1 | D27: คน(จำนวนผู้เข้ารอค่าเป้าหมายจากองค์กร) | F27: 1 ครั้ง
A30: 3. แผนงานยกระดับความผูกพันของบุคคลากร กฟภ. | B30: 3.1 ดำเนินการตามแผนงานยกระดับความผูกพันของบุคลากร กฟภ. | E30: ผบก.กอก. | J30: ผบก.กอก.
A31: (นโยบาย KEEN 14 ด้าน NH2 : Smart Workplace) | B31: กฟฉ.1 | C31: 1 | I31: 1
B32: ดำเนินการตามแผนงานยกระดับความผูกพันของบุคลากร กฟภ. ทุกไตรมาส หลังจากได้รับอนุมัติจาก รผก.(ภ2)
B35: 3.2 ติดตามรายงานผลความก้าวหน้าตามแผนงานข้อ 3.1 ส่งให้ ฝวธ.(ภ2) ตามกำหนด | E35: ผบก.กอก. | J35: ผบก.กอก.
B36: กฟฉ.1 | G36: 1 ครั้ง | I36: 1 ครั้ง
B38: end | I38: 2 | J38: 3

Sheet L3 OC1 (ความปลอดภัย)
A1: แผนปฏิบัติการ กฟฉ.1 ประจำปี 2563 | C1: ด้านการเรียนรู้และพัฒนา
A2: (ฉบับทบทวนครั้งที่ 1) | C2: (Learning and Growth)
A3: 1. วัตถุประสงค์เชิงยุทธศาสตร์ | C3: 2. กลยุทธ์ระดับองค์กร | E3: 3. เกณฑ์วัดการดำเนินงานระดับองค์กร | J3: 4. เป้าหมาย
A4: (Strategic Objective) | C4: OC 1 วิเคราะห์ GAP และแนวทางการผักดันองค์กรสู่ความยั่งยืน | E4: - ค่าดัชนีการประสบอุบัติภัย | J4: - ดัชนีไม่มากกว่า 0.0978
A5: SO1 ดำเนินธุรกิจหลักธรรมาภิบาลเพื่อการเติบโตอย่างยั่งยืน | E5: (Disabling Injury Index: √DI)
E6: - ความสาเร็จของการดาเนินงานด้านความปลอดภัย | J6: - ไม่น้อยกว่าร้อยละ 100
E7: และอาชีวอนามัย
E8: - ความสำเร็จเพื่อยกระดับการดำเนินงาน | J8: - ไม่น้อยกว่าร้อยละ 100
E9: ให้ได้ตามมาตรฐาน OECD, DJSI และเกณฑ์
E10: การกำกับดูแลของ สคร.
E11: - ความสำเร็จในการดำเนินงานเพื่อยกระดับ | J11: - ไม่น้อยกว่าร้อยละ 100
E12: สู่ความยั่งยืน
E13: - ความสำเร็จในการยกระดับโครงการ | J13: - ไม่น้อยกว่าร้อยละ 100
E14: ด้านสังคมและสิ่งแวดล้อม
C16: 5. กลยุทธ์ระดับสายงาน | E16: 6. เกณฑ์วัดการดำเนินงานระดับสายงาน | J16: 7. เป้าหมาย
C17: OC 1 วิเคราะห์ GAP และแนวทางการผักดันองค์กรสู่ความยั่งยืน | E17: - ค่าดัชนีการประสบอุบัติภัยของสายงานการไฟฟ้า
E18: ภาค 2 (Disabling Injury Index: )µ | J18: - ดัชนี ≤ 0.0978
E19: - ความสำเร็จของการดำเนินงาน | J19: - ไม่น้อยกว่าร้อยละ 100
E20: ด้านความปลอดภัยและอาชีวอนามัยµ
A22: 8. แผนงาน/โครงการ/งาน | B22: 9. แผนปฏิบัติ | E22: 10 | F22: 11 | N22: 12
A23: (Operating Strategies หรือ Strategic Initiatives) | B23: (ระบุกิจกรรมหลักพร้อมปริมาณหรือเป้าหมาย) | E23: หน่วยงาน | F23: ช่วงเวลาดำเนินการ และหรือ ปริมาณงานในไตรมาส | N23: หน่วยงาน
B24: (Activities / Action Steps) | E24: ดำเนินการ | F24: Plan Q1 | G24: Action Q1 | H24: Plan Q2 | I24: Action Q2 | J24: Plan Q3 | K24: Action Q3 | L24: Plan Q4 | M24: Action Q4 | N24: หลัก
A25: 4. แผนงานความปลอดภัย สำหรับพนักงานและลูกจ้าง | B25: 4.1 ทุกหน่วยงาน ทบทวนการแต่งตั้งและขึ้นทะเบียน จป. ให้เป็นปัจจุบัน | E25: ผปอ.กวว. | N25: ผปอ.กวว.
B26: ให้แล้วเสร็จ ภายในไตรมาส 2/2563
B27: กฟฉ.1 | C27: 117 | D27: แห่ง | H27: 117 แห่ง
B28: 4.2 จัดหลักสูตรฝึกอบรมเจ้าหน้าที่ความปลอดภัยในการทำงาน (จป.) | E28: ผปอ.กวว. | N28: ผปอ.กวว. | AB28: บล | AC28: 255 | AD28: =AC28*$Q$32*#REF! ->  | AE28: =315*#REF!*$Q$36 ->  | AF28: =AC28*#REF!*#REF! ->  | AG28: =AC28*#REF!*$Q$43 ->  | AH28: =315*#REF!*#REF! ->  | AI28: =SUM(AD28:AH28) -> 
B29: เพิ่มเติมให้ครบถ้วน เพื่อให้ทุกสถานประกอบการ (สนง.เขต, สนง.กฟฟ. | AB29: ทพ | AC29: 500 | AD29: =AC29*$Q$32*#REF! ->  | AE29: =750*#REF!*$Q$36 ->  | AF29: =AC29*#REF!*#REF! ->  | AG29: =AC29*#REF!*$Q$43 ->  | AH29: =750*#REF!*#REF! -> 
B30: ชั้น1-3/กฟส./กฟย.) ทุกแห่ง มีการแต่งตั้งและขึ้นทะเบียน จป. ครบถ้วน | AB30: เบรก | AC30: 80 | AD30: =AC30*2*2*Q32 -> 0 | AE30: =AC30*2*2*Q36 -> 0 | AF30: =50*2*#REF! ->  | AG30: =AC30*2*2*$Q$43 -> 0 | AH30: =AC30*#REF!*2 -> 
B31: ตามที่กฎหมายกำหนด (โดยเฉพาะอย่างยิ่งกรณีโยกย้ายแต่งตั้ง) | AD31: =SUM(AD28:AD30) ->  | AE31: =SUM(AE28:AE30) ->  | AF31: =SUM(AF28:AF30) ->  | AG31: =SUM(AG28:AG30) ->  | AH31: =SUM(AH28:AH30) -> 
B32: กฟฉ.1 | C32: 117 | D32: แห่ง | J32: 1 ครั้ง | AB32: วิทยากร+ค่าห้อง | AD32: 25000 | AE32: 25000 | AF32: 0 | AG32: 5000 | AH32: 1000 | AI32: 56000
B33: 4.3 จัดหลักสูตรฝึกอบรมเจ้าหน้าที่ความปลอดภัยในการทำงาน (จป.บริหาร) | E33: ผปอ.กวว. | N33: ผปอ.กวว.
B34: สำหรับหัวหน้าแผนก (หผ.ปบ., หผ.กส., หผ.บค., หผ.มต., หผ.วต.) ให้ทุกสถานประกอบการ
B35: ให้แล้วเสร็จ ภายในไตรมาส 2/2563
B36: กฟฉ.1 | C36: 16 | D36: แห่ง | H36: 16 แห่ง
B37: 4.4 ฝึกอบรมทบทวนการปฏิบัติงานด้วยความปลอดภัยสำหรับ พนักงาน, ลูกจ้าง | E37: กวว. หรือ กฟฟ.ชั้น 1-3 จัดอบรม*** | N37: ผปอ.กวว.
B38: ที่มีความเสี่ยงในการปฏิบัติงาน ในระบบไฟฟ้า ภายในไตรมาส 2 | E38: (รอ ผปอ.กวว. หารือเพื่อกำหนดแนวทาง)
B39: (กฟข., กฟฟ.ชั้น 1-3,กฟส.,กฟย. จัดอบรมรวม กฟฟ. ในสังกัด)
B40: กฟจ.หนองบัวลำภู (รวมสังกัด)
A41: 4. แผนงานความปลอดภัย สำหรับพนักงานและลูกจ้าง | B41: 4.5 จัดประชุมสัมมนางานด้านความปลอดภัยของ จป.วิชาชีพ/ เทคนิค | E41: ผปอ.กวว. | N41: ผปอ.กวว. | AD41: ค่าพาหนะ | AE41: ค่าเบี้ยเลี้ยง | AF41: ค่าที่พัก | AG41: ค่าใช้จ่ายประชุมชี้แจง
A42: (ต่อ) | B42: ขั้นสูง เพื่อแลกเปลี่ยนความรู้และประสบการณ์ด้านความปลอดภัย (ภายในไตรมาส 3) | AD42: 500 | AE42: 315 | AF42: 750 | AG42: 80 | AH42: ค่าห้องประชุม
B43: กฟฉ.1 | C43: 1 | D43: ครั้ง | F43: 1 ครั้ง | AB43: ฝวธ.(ภ2) | AC43: 15 | AD43: =AC43*$R$24 -> 0 | AE43: =AC43*$S$24 -> 0 | AF43: =AC43*$T$24 -> 0 | AG43: =AC43*$U$24 -> 0
B44: 4.6 ศึกษาดูงาน ด้านความปลอดภัย หน่วยงานภายนอกเพื่อยกระดับความปลอดภัย ของ | E44: ฝวธ.(ภ2) | N44: ฝวธ.(ภ2)
B45: จป.บริหาร (1 รุ่น), จป.หัวหน้างาน (1 รุ่น) รวม 2 รุ่น (ภาค 2 เป็นเจ้าภาพในการจัด)
B46: ภาค 2 | H46: 2 รุ่น
A47: 5. แผนงานความปลอดภัย สำหรับประชาชน | B47: 5.1 กฟฟ. ทุกแห่ง ตรวจสอบและดำเนินการแก้ไขระบบไฟฟ้าจุดที่อาจก่อให้เกิดอันตรายแก่ประชาชน | E47: กฟฟ.ชั้น 1-3,กฟส. | N47: ผปอ.กวว.
B48: - รายงานผลการตรวจสอบ และดำเนินการแก้ไขจุดบกพร่องให้แล้วเสร็จ
B49: (พร้อมภาพถ่ายแนบ) เป็นประจำทุกไตรมาส
B50: กฟจ.หนองบัวลำภู | C50: รายงานทุกไตรมาส | F50: 1 ครั้ง | H50: 1 ครั้ง | J50: 1 ครั้ง | L50: 1 ครั้ง
B51: กฟส.ศรีบุญเรือง | C51: รายงานทุกไตรมาส | F51: 1 ครั้ง | H51: 1 ครั้ง | J51: 1 ครั้ง | L51: 1 ครั้ง
B52: กฟส.นากลาง | C52: รายงานทุกไตรมาส | F52: 1 ครั้ง | H52: 1 ครั้ง | J52: 1 ครั้ง | L52: 1 ครั้ง
B53: กฟจ.หนองบัวลำภู (รวมสังกัด) | C53: รายงานทุกไตรมาส | F53: 1 ครั้ง | H53: 1 ครั้ง | J53: 1 ครั้ง | L53: 1 ครั้ง
B54: กฟอ.บ้านไผ่ | C54: รายงานทุกไตรมาส | F54: 1 ครั้ง | H54: 1 ครั้ง | J54: 1 ครั้ง | L54: 1 ครั้ง
B55: กฟส.พล | C55: รายงานทุกไตรมาส | F55: 1 ครั้ง | H55: 1 ครั้ง | J55: 1 ครั้ง | L55: 1 ครั้ง
B56: กฟส.มัญจาคีรี | C56: รายงานทุกไตรมาส | F56: 1 ครั้ง | H56: 1 ครั้ง | J56: 1 ครั้ง | L56: 1 ครั้ง
B57: กฟส.หนองสองห้อง | C57: รายงานทุกไตรมาส | F57: 1 ครั้ง | H57: 1 ครั้ง | J57: 1 ครั้ง | L57: 1 ครั้ง
A58: 6. แผนงานระบบการจัดการความปลอดภัยของ กฟภ. | B58: 6.1 ติดตามการตรวจประเมิน ระบบการจัดการความปลอดภัยของ กฟภ. (PEA- SMS) | E58: ผปอ.กวว. | N58: ผปอ.กวว.
A59: (PEA- SMS) | B59: สำหรับ กฟข.,กฟฟ.ชั้น.1-3,กฟส. โดยมีเป้าหมาย จำนวนหน่วยงานที่ผ่าน
B60: เกณฑ์ประเมิน
B61: กฟฉ.1 | C61: 43 | D61: แห่ง | F61: 1 ครั้ง | H61: 1 ครั้ง | J61: 1 ครั้ง | L61: 1 ครั้ง
B62: ผปอ.กวว. ติดตามทุกไตรมาส
A63: 7. แผนงานกิจกรรม ส่งเสริมความปลอดภัย | B63: 7.1 จัดกิจกรรม สัปดาห์ ความปลอดภัย ประจำปี (แต่ละ กฟข.) ภายในไตรมาส 2 | E63: ผปอ.กวว. | N63: ผปอ.กวว. | AA63: 255 | AB63: 500 | AC63: 80
B64: กฟฉ.1 | C64: 1 | D64: ครั้ง | H64: 1 ครั้ง | AA64: =Y64*$S$24 -> 0 | AB64: =Y64*$T$24 -> 0 | AC64: =Y64*$U$24 -> 0 | AD64: =((500+255+500)*3*60)+(2*80*60) -> 235500 | AE64: 5000 | AF64: =AD64+AE64 -> 240500
B65: 7.2 จัดอบรมปรับเปลี่ยน mind set ด้านความปลอดภัย สำหรับพนักงานสายงานการไฟฟ้า | E65: ฝวธ.(ภ2) | N65: ฝวธ.(ภ2)
B66: ภาค 2 จำนวน 60 คน จำนวน 1 รุ่น ภายในไตรมาส 2 (ภาค 2 เป็นเจ้าภาพในการจัด) | AE66: ค่าใช้จ่าย 7. แผนงานกิจกรรม ส่งเสริมความปลอดภัย
B67: ภาค 2 | H67: 1 ครั้ง | AE67: บล | AF67: 255 | AG67: =AF67*$Y$64*3 -> 0 | AH67: =315*$Q$67*3 -> 0 | AI67: =AG67+AH67 -> 0
B68: end | L68: 4 | N68: 10

Sheet L4 OC1(ลดกระดาษ)
A1: แผนปฏิบัติการ กฟฉ.1 ประจำปี 2563 | C1: ด้านการเรียนรู้และพัฒนา
A2: (ฉบับทบทวนครั้งที่ 1) | C2: (Learning and Growth)
A3: 1. วัตถุประสงค์เชิงยุทธศาสตร์ | C3: 2. กลยุทธ์ระดับองค์กร | E3: 3. เกณฑ์วัดการดำเนินงานระดับองค์กร | H3: 4. เป้าหมาย
A4: (Strategic Objective) | C4: OC 1 วิเคราะห์ GAP และแนวทางการผักดันองค์กรสู่ความยั่งยืน | F4: - | H4: -
A5: SO1 ดำเนินธุรกิจหลักธรรมาภิบาลเพื่อการเติบโตอย่างยั่งยืน
C7: 5. กลยุทธ์ระดับสายงาน | E7: 6. เกณฑ์วัดการดำเนินงานระดับสายงาน | H7: 7. เป้าหมาย
C8: OC 1 วิเคราะห์ GAP และแนวทางการผักดันองค์กรสู่ความยั่งยืน | E8: - ร้อยละของปริมาณกระดาษที่ลดได้ | H8: - ไม่น้อยกว่าร้อยละ................
E9: (ของสายงานฯ)
A11: 8. แผนงาน/โครงการ/งาน | B11: 9. แผนปฏิบัติ | E11: 10 | F11: 11 | J11: 12
A12: (Operating Strategies หรือ Strategic Initiatives) | B12: (ระบุกิจกรรมหลักพร้อมปริมาณหรือเป้าหมาย) | E12: หน่วยงาน | F12: ช่วงเวลาดำเนินการ และหรือ ปริมาณงานในไตรมาส | J12: หน่วยงาน
B13: (Activities / Action Steps) | E13: ดำเนินการ | F13: 1 | G13: 2 | H13: 3 | I13: 4 | J13: หลัก
A14: 8. แผนงานการลดการใช้กระดาษ | B14: 8.1 แต่งตั้งคณะทำงานลดการใช้กระดาษ เพื่อทำหน้าที่ติดตามและตรวจสอบ | E14: กอก. | J14: กอก.
B15: ความถูกต้องของการบันทึกข้อมูลในระบบ SAP (ZAPE007)
B16: กฟฉ.1 | C16: ภายในไตรมาส 1 | F16: แต่งตั้งคณะทำงานฯ
B17: แต่งตั้งคณะทำงานฯ ภายใน มกราคม 2563
B18: end | I18: 1 | J18: 1

Sheet L5 ประเมินผล Enablers 8 ด้าน
A1: แผนปฏิบัติการ กฟฉ.1 ประจำปี 2563 | C1: ด้านการเรียนรู้และพัฒนา
A2: (ฉบับทบทวนครั้งที่ 1) | C2: (Learning and Growth)
A3: 1. วัตถุประสงค์เชิงยุทธศาสตร์ | C3: 2. กลยุทธ์ระดับองค์กร | E3: 3. เกณฑ์วัดการดำเนินงานระดับองค์กร | J3: 4. เป้าหมาย
A4: (Strategic Objective) | C4: OC 1 วิเคราะห์ GAP และแนวทางการผักดันองค์กรสู่ความยั่งยืน | F4: - | J4: -
A5: SO1 ดำเนินธุรกิจหลักธรรมาภิบาลเพื่อการเติบโตอย่างยั่งยืน
C7: 5. กลยุทธ์ระดับสายงาน | E7: 6. เกณฑ์วัดการดำเนินงานระดับสายงาน | J7: 7. เป้าหมาย
C8: OC 1 วิเคราะห์ GAP และแนวทางการผักดันองค์กรสู่ความยั่งยืน | E8: -ระบบประเมินผลใหม่ของ สคร. | J8: - ไม่น้อยกว่า...............คะแนน
E9: (Enablers 8 ด้าน) ขององค์กร µ
E10: -ระบบประเมินผลใหม่ของ สคร. | J10: - ไม่น้อยกว่าระดับ 5
E11: (Enablers 8 ด้าน) ของสายงานฯ
A13: 8. แผนงาน/โครงการ/งาน | B13: 9. แผนปฏิบัติ | E13: 10 | F13: 11 | N13: 12
A14: (Operating Strategies หรือ Strategic Initiatives) | B14: (ระบุกิจกรรมหลักพร้อมปริมาณหรือเป้าหมาย) | E14: หน่วยงาน | F14: ช่วงเวลาดำเนินการ และหรือ ปริมาณงานในไตรมาส | N14: หน่วยงาน
B15: (Activities / Action Steps) | E15: ดำเนินการ | F15: Plan Q1 | G15: Action Q1 | H15: Plan Q2 | I15: Action Q2 | J15: Plan Q3 | K15: Action Q3 | L15: Plan Q4 | M15: Action Q4 | N15: หลัก
A16: 10. แผนงานการปรับปรุงการควบคุมภายใน | B16: 10.1 ปรับปรุง/จัดวางระบบการควบคุมภายในของหน่วยงานประจำ ปี 2563 | E16: กฟฟ.ชั้น 1-3,กฟส. | N16: ผผธ.กบล.
A17: (นโยบาย KEEN 14 ด้าน KE3: Smart Operation) | B17: กฟฉ.1 | C17: ภายในวันที่ 30 มกราคม 2563 | F17: 1 ครั้ง
B18: 10.2 ดำเนินการ ติดตามผล และจัดทำรายงานตามแผนการปรับปรุงการควบคุมภายใน | E18: กฟฟ.ชั้น 1-3 | N18: ผผธ.กบล.
B19: (ตามแผน ปย.2 รายงานผล) (ไตรมาสละ 1 ครั้ง)
B20: กฟฉ.1 | C20: รายงานภายใน 10 วัน หลังสิ้นไตรมาส | F20: 1 ครั้ง | H20: 1 ครั้ง | J20: 1 ครั้ง | L20: 1 ครั้ง
A21: 12. แผนงานปรับปรุงความพึงพอใจของลูกค้า | B21: 12.2 สรุปข้อมูลเสียงของลูกค้าแต่ละกลุ่ม (ความต้องการ ความคาดหวัง
A22: (นโยบาย KEEN 14 ด้าน KE2 : Smart Service) | B22: ความไม่พึงพอใจ/ ร้องเรียน/ข้อร้องขอ ความพึงพอใจ/ข้อชื่นชม และข้อเสนอแนะ)
B23: ปี 2562 ในแต่ละช่องทาง ส่งให้คณะทำงานด้านการบริการลูกค้า ทุกไตรมาส
B24: 12.2.1 การรับฟังเสียงลูกค้าทางโทรศัพท์ (Voice-based) (VOC-03-005) | E24: กฟฟ.ชั้น 1-3 | N24: ผลส.กบล.
B25: - โทรศัพท์สำนักงาน
B26: -1129 PEA Call Center
B27: กฟจ.หนองบัวลำภู (รวมสังกัด) | C27: รายงานภายใน 5 วันหลังสิ้นไตรมาส | F27: 1 ครั้ง | H27: 1 ครั้ง | J27: 1 ครั้ง | L27: 1 ครั้ง
A28: 12. แผนงานปรับปรุงความพึงพอใจของลูกค้า (ต่อ) | B28: 12.2.2 การรับฟังด้วยการปฏิสัมพันธ์ (Interaction-based) | E28: กฟฟ.ชั้น 1-3 | N28: ผลส.กบล.
A29: (นโยบาย KEEN 14 ด้าน KE2 : Smart Service) | B29: -การสานเสวนา ปีละ 1 ครั้ง (กบล. ดำเนินการ) | D29: (VOC-IB-2-01,VOC-IB-2-02, VOC-60-003) | H29: 1 ครั้ง
B30: - ติดต่อโดยตรงที่สำนักงาน | D30: (VOC-60-001)
B31: -กิจกรรมลูกค้าสัมพันธ์ | D31: (VOC-60-001,VOC-60-003, VOC-60-004)
B32: กฟจ.หนองบัวลำภู (รวมสังกัด) | C32: รายงานภายใน 5 วันหลังสิ้นไตรมาส | F32: 1 ครั้ง | H32: 1 ครั้ง | J32: 1 ครั้ง | L32: 1 ครั้ง
B33: 12.2.3 การสำรวจข้อมูลลูกค้าธุรกิจเสริมโดยการใช้โทรศัพท์สอบถามความ | E33: กฟฟ.ชั้น 1-3 | N33: ผลส.กบล.
B34: พึงพอใจภายหลังจากใช้บริการ 15 วัน ตามแบบฟอร์ม (ธุรกิจเสริม 6 กิจกรรม)
B35: กฟจ.หนองบัวลำภู (รวมสังกัด) | C35: รายงานภายใน 5 วันหลังสิ้นไตรมาส | F35: 1 ครั้ง | H35: 1 ครั้ง | J35: 1 ครั้ง | L35: 1 ครั้ง
B36: 12.3 ความพึงพอใจและความภักดีโดยรวมของลูกค้าปี 2563
B37: 12.3.1 สรุปผลการสำรวจความพึงพอใจของลูกค้าที่ใช้บริการธุรกิจเสริม ทุกไตรมาส | E37: กฟฟ.ชั้น 1-3 | N37: ผลส.กบล.
B38: กฟจ.หนองบัวลำภู (รวมสังกัด) | C38: รายงานภายใน 5 วันหลังสิ้นไตรมาส | F38: 1 ครั้ง | H38: 1 ครั้ง | J38: 1 ครั้ง | L38: 1 ครั้ง
A40: 12. แผนงานปรับปรุงความพึงพอใจของลูกค้า (ต่อ) | B40: 12.5 ดำเนินการปิดข้อร้องเรียนทั่วไปได้ภายใน 15 วัน | E40: กฟฟ.ชั้น 1-3 | N40: ผลส.กบล.
A41: (นโยบาย KEEN 14 ด้าน KE2 : Smart Service) | B41: กฟฉ.1 | C41: ประสิทธิภาพการตอบสนองข้อร้องเรียน ร้อยละ 60 | F41: 0.6 | H41: 0.6 | J41: 0.6 | L41: 0.6
B42: กฟจ.หนองบัวลำภู (รวมสังกัด) | C42: 0.6 | F42: 0.6 | H42: 0.6 | J42: 0.6 | L42: 0.6
B43: 12.6 ดำเนินการปิดข้อร้องเรียนทั่วไป ปิดได้ภายใน 30 วัน | E43: กฟฟ.ชั้น 1-3 | N43: ผลส.กบล.
B44: กฟจ.หนองบัวลำภู (รวมสังกัด) | C44: 1 | F44: 1 | H44: 1 | J44: 1 | L44: 1
A45: 13.แผนงานขยายผลการนำระบบรับฟังเสียงลูกค้า | B45: 13.1 สรุปรายงานสถิติ วิเคราะห์ความพึงพอใจ/ความต้องการ/ข้อเสนอแนะ
A46: (PEA VOC System) และระบบบริหารลูกค้าสัมพันธ์ | B46: จากการสำรวจข้อมูลป้อนกลับจากลูกค้า ส่งให้คณะทำงานด้านการบริการลูกค้า
A47: (Customer Relationship Management : CRM) | B47: 13.1.1 สรุปผลการสำรวจข้อมูลป้อนกลับจากลูกค้า โดยวิธีโทรศัพท์สอบถาม
A48: (นโยบาย KEEN 14 ด้าน KE2 : Smart Service) | B48: ความพึงพอใจภายหลังจากใช้บริการ ทุกไตรมาส
B49: 13.1.1.1 สุ่มสอบถามลูกค้าโดยวิธีโทรศัพท์ ดังนี้ | E49: กฟฟ.ชั้น 1-3 | N49: ผลส.กบล.
B50: - งานขอใช้ไฟติดตั้งมิเตอร์ กฟฟ.ชั้น1-3 จำนวน 3 ราย/ไตรมาส
B51: - งานขอขยายเขตแรงต่ำและติดตั้งมิเตอร์ กฟฟ.ชั้น1-3 จำนวน 3 ราย/ไตรมาส
B52: - งานขยายเขตติดตั้งหม้อแปลงเฉพาะราย กฟฟ.ชั้น1-3
B53: กฟจ.หนองบัวลำภู (รวมสังกัด) | C53: 7 | D53: ราย/ไตรมาส | F53: 7 ราย | H53: 7 ราย | J53: 7 ราย | L53: 7 ราย
B54: 13.1.1.2 สรุปรายงานสถิติ วิเคราะห์ความพึงพอใจ/ข้อคิดเห็น/ความต้องการ/ข้อเสนอแนะ | E54: กฟฟ.ชั้น 1-3 | N54: ผลส.กบล.
B55: จากการสำรวจข้อมูลป้อนกลับจากลูกค้าให้คณะทำงานด้าน การบริการลูกค้า ทุกไตรมาส
B56: กฟจ.หนองบัวลำภู (รวมสังกัด) | C56: รายงานภายใน 5 วันหลังสิ้นไตรมาส | F56: 1 ครั้ง | H56: 1 ครั้ง | J56: 1 ครั้ง | L56: 1 ครั้ง
B57: 13.1.2 นำข้อมูลป้อนกลับจากลูกค้า จากระบบประเมินความพึงพอใจ (Smile Box) | E57: กฟฟ.ชั้น 1-3 | N57: ผลส.กบล.
B58: มาสรุปวิเคราะห์และรายงานผล ทุกไตรมาส
B59: กฟจ.หนองบัวลำภู (รวมสังกัด) | C59: รายงานภายใน 5 วันหลังสิ้นไตรมาส | F59: 1 ครั้ง | H59: 1 ครั้ง | J59: 1 ครั้ง | L59: 1 ครั้ง
A60: 13.แผนงานขยายผลการนำระบบรับฟังเสียงลูกค้า | B60: 13.2 เพิ่มสัดส่วนจำนวนลูกค้าที่กดประเมินความพึงพอใจ ผ่านระบบกล่อง | E60: กฟฟ.ชั้น 1-3 | N60: ผลส.กบล.
A61: (PEA VOC System) และระบบบริหารลูกค้าสัมพันธ์ | B61: ประเมินความพึงพอใจ(Smile Box) เทียบกับจำนวนคิวทั้งหมด ไม่น้อยกว่าร้อยละ 60
A62: (Customer Relationship Management : CRM)(ต่อ)
A63: (นโยบาย KEEN 14 ด้าน KE2 : Smart Service)
B64: กฟจ.หนองบัวลำภู (รวมสังกัด) | C64: 0.6 | F64: 0.6 | H64: 0.6 | J64: 0.6 | L64: 0.6
B65: ผลส.กบล. ประเมินผลจากโปรแกรม Smart Queue จากทุกไตรมาส
B66: 13.3 ระดับความสำเร็จการสรุปผลดำเนินการและการควบคุมติดตามแผน
B67: และคู่มือกระบวนการสร้างและการจัดการความสัมพันธ์กับลูกค้า
B68: ส่งให้คณะทำงานด้านการบริการลูกค้า ทุกไตรมาส
B69: 13.3.1 สรุปรายงานการสนับสนุนลูกค้ารายใหม่ตามข้อมูล BOI/หน่วยงานท้องถิ่น | E69: กฟฟ.ชั้น 1-3 | N69: ผลส.กบล.
B70: /แหล่งข้อมูลอื่นๆ (ติดตั้งหม้อแปลงเฉพาะรายทุกขนาด)
B71: กฟจ.หนองบัวลำภู (รวมสังกัด) | C71: รายงานภายใน 10 วัน หลังสิ้นไตรมาส | F71: 1 ครั้ง | H71: 1 ครั้ง | J71: 1 ครั้ง | L71: 1 ครั้ง
B72: 13.3.2 การเยี่ยมเยือนลูกค้า high value และ/หรือลูกค้ารายสำคัญอื่น | E72: กฟฟ.ชั้น 1-3 | N72: ผลส.กบล.
B73: กฟจ.หนองบัวลำภู (รวมสังกัด) | C73: 18 | D73: ราย/ไตรมาส | F73: 18 | H73: 18 | J73: 18 | L73: 18
B74: กบล. รายงานภายใน 15 วันหลังสิ้นไตรมาส
B75: กฟฟ.ชั้น 1-3 รายงานให้ กฟฉ.1 ภายใน 5 วันหลังสิ้นไตรมาส
A76: 13.แผนงานขยายผลการนำระบบรับฟังเสียงลูกค้า | B76: 13.3.3 เยี่ยมเยือนลูกค้ารายสำคัญโดยผู้บริหารระดับสูง/หรือผู้แทนของหน่วยงาน | E76: กฟฟ.ชั้น 1-3 | N76: ผลส.กบล.
A77: (PEA VOC System) และระบบบริหารลูกค้าสัมพันธ์ | B77: (รผก.(ภ2),อข.ฉ.1-3, ผจก.)) พร้อม สรุปรายงานความต้องการและแนวทางแก้ไข
A78: (Customer Relationship Management : CRM)(ต่อ)
A79: (นโยบาย KEEN 14 ด้าน KE2 : Smart Service)
B80: กฟจ.หนองบัวลำภู (รวมสังกัด) | C80: 6 | D80: ราย/ไตรมาส | F80: 6 | H80: 6 | J80: 6 | L80: 6
B81: กฟฉ.1 รายงานภายใน 15 วันหลังสิ้นไตรมาส
B82: กฟฟ.ชั้น 1-3 รายงานให้ กฟฉ.1 ภายใน 5 วันหลังสิ้นไตรมาส
B83: 13.3.4 พนักงาน KAMR สรุปวิเคราะห์ปัญหา/ความต้องการลูกค้า high value | E83: กฟฟ.ชั้น 1-3 | N83: ผลส.กบล.
B84: และ/หรือลูกค้ารายสำคัญอื่น จากข้อมูลในระบบบริหารลูกค้า CRM Plus
B85: (บันทึกข้อมูลทุกรายที่เข้าเยี่ยมตามข้อ 13.3.2 ) ไตรมาสละ1 ครั้ง
B86: กฟจ.หนองบัวลำภู (รวมสังกัด) | C86: รายงานภายใน 5 วันหลังสิ้นไตรมาส | F86: 1 ครั้ง | H86: 1 ครั้ง | J86: 1 ครั้ง | L86: 1 ครั้ง
B87: end | L87: 6 | N87: 26

Sheet L6 OC1 (งานตามนโยบาย)
A1: แผนปฏิบัติการ กฟฉ.1 ประจำปี 2563 | C1: ด้านการเรียนรู้และพัฒนา
A2: (ฉบับทบทวนครั้งที่ 1) | C2: (Learning and Growth)
A3: 1. วัตถุประสงค์เชิงยุทธศาสตร์ | C3: 2. กลยุทธ์ระดับองค์กร | E3: 3. เกณฑ์วัดการดำเนินงานระดับองค์กร | J3: 4. เป้าหมาย
A4: (Strategic Objective) | C4: OC 1 วิเคราะห์ GAP และแนวทางการผักดันองค์กรสู่ความยั่งยืน | F4: - | J4: -
A5: SO1 ดำเนินธุรกิจหลักธรรมาภิบาลเพื่อการเติบโตอย่างยั่งยืน
C6: 5. กลยุทธ์ระดับสายงาน | E6: 6. เกณฑ์วัดการดำเนินงานระดับสายงาน | J6: 7. เป้าหมาย
C7: OC 1 วิเคราะห์ GAP และแนวทางการผักดันองค์กรสู่ความยั่งยืน | F7: - | J7: -
A8: 8. แผนงาน/โครงการ/งาน | B8: 9. แผนปฏิบัติ | E8: 10 | F8: 11 | N8: 12
A9: (Operating Strategies หรือ Strategic Initiatives) | B9: (ระบุกิจกรรมหลักพร้อมปริมาณหรือเป้าหมาย) | E9: หน่วยงาน | F9: ช่วงเวลาดำเนินการ และหรือ ปริมาณงานในไตรมาส | N9: หน่วยงาน
B10: (Activities / Action Steps) | E10: ดำเนินการ | F10: Plan Q1 | G10: Action Q1 | H10: Plan Q2 | I10: Action Q2 | J10: Plan Q3 | K10: Action Q3 | L10: Plan Q4 | M10: Action Q4 | N10: หลัก
A11: 15. แผนงานจัดทำฐานข้อมูลสายสื่อสารในระบบ TAMS | B11: 15.1 งานสำรวจนำเข้าข้อมูลสายสื่อสารโทรคมนาคมของหน่วยงานต่างๆ | E11: กฟฟ.ชั้น 1-3,กฟส. | N11: ผธท.กบล.
B12: บนเสาไฟฟ้าของ กฟภ. ในระบบ TAMS
B13: กฟฉ.1 | C13: 25000 | D13: ต้น | L13: 1
A14: 16. แผนงานจัดความเป็นระเบียบเรียบร้อยของ | B14: 16.1 จัดระเบียบสายสื่อสาร ตามนโยบาย ผวก. (แล้วเสร็จภายในเดือนมิถุนายน 2563)
A15: สายสื่อสารบนเสาไฟฟ้า | B15: 16.1.1 จัดระเบียบฯ เส้นทางที่มีขนาดเส้นผ่านศูนย์กลางของสายสื่อสารรวม มากกว่า 300 มม. | E15: กฟฟ.ชั้น 1-3,กฟส. | N15: ผธท.กบล.
B16: กฟฉ.1 | C16: รวมเส้นผ่านศูนย์กลางฯ ทุกขนาด 427 เส้นทาง | H16: 1
B17: 16.1.2 จัดระเบียบฯ เส้นทางที่มีขนาดเส้นผ่านศูนย์กลางของสายสื่อสารรวม 100- 300 มม. | E17: กฟฟ.ชั้น 1-3,กฟส. | N17: ผธท.กบล.
B18: กฟฉ.1 | C18: รวมเส้นผ่านศูนย์กลางฯ ทุกขนาด 427 เส้นทาง | H18: 1
B19: 16.2 สำรวจตรวจสอบสายสื่อสารที่หย่อนยาน และมีความสูง ต่ำกว่าระดับมาตรฐาน | E19: กฟฟ.ชั้น 1-3,กฟส. | N19: ผธท.กบล.
B20: ที่มีความเสี่ยงสูง (เป็นอันตรายต่อชีวิตและทรัพย์สินของประชาชน)
B21: เมื่อตรวจสอบพบ ให้ กฟฟ. ดำเนินการแจ้งผู้ประกอบการให้ดำเนินการแก้ไข
B22: แล้วเสร็จภายใน 24 ชม.
B23: กฟฉ.1 | C23: 1 | F23: 1 | H23: 1 | J23: 1 | L23: 1
B24: กฟฟ. รายงานผลให้ ผธท.กบล.ฉ.1 ทุกสิ้นเดือน
B25: 16.3 สำรวจตรวจสอบสายสื่อสารที่หย่อนยาน และมีความสูง ต่ำกว่าระดับมาตรฐาน | E25: กฟฟ.ชั้น 1-3,กฟส. | N25: ผธท.กบล.
B26: ที่มีความเสี่ยงปานกลาง (ไม่เป็นไปตามมาตรฐาน กฟภ. แต่อยู่ในแนวทางสัญจร
B27: ไม่พลุกพล่าน พาดตามแนวเสาไฟฟ้าขอบทางจราจร เป็นต้น)
B28: เมื่อตรวจสอบพบ ให้ กฟฟ. ดำเนินการแจ้งผู้ประกอบการให้ดำเนินการแก้ไข
B29: ภายใน 7 วัน | F29: 1 | H29: 1 | J29: 1 | L29: 1
B30: กฟฉ.1 | C30: 1
B31: กฟฟ. รายงานผลให้ ผธท.กบล.ฉ.1 ทุกสิ้นเดือน
A32: 18. แผนงานมาตรฐานการให้บริการของศูนย์ราชการ | B32: 18.1 รักษามาตรฐานการให้บริการของศูนย์ราชการสะดวก (Government Easy Contact | E32: กฟฟ.ที่เข้าร่วม | N32: ผลส.กบล.
A33: สะดวก (Government Easy Contact Center : GECC) | B33: Center : GECC) (สำหรับ กฟฟ. ที่ได้รับการรับรองแล้ว เมื่อปี 2560 )
A34: (นโยบาย KEEN 14 ด้าน KE4 : Good Governance)
B35: กฟจ.หนองบัวลำภู
B36: 18.1.1 จัดอบรมให้ความรู้ เกี่ยวกับมาตรฐานศูนย์ราชการสะดวก (GECC) ให้กับ กฟฟ.ที่ขอ | E36: กฟฟ.ที่เข้าร่วม | N36: ผลส.กบล.
B37: ใบรับรองศูนย์ราชการสะดวก (GECC)
B38: กฟฉ.1 | C38: 1 | D38: ครั้ง | F38: 1 ครั้ง
B39: จัดอบรมฯ ภายใน มกราคม 2563
A40: 19. แผนงานเร่งรัดดำเนินการตามแผนสนับสนุน | B40: 19.1 ติดตามประเมินผลการจัดเก็บข้อมูลงานยานพาหนะ โดยมีการ Update | E40: กฟฟ.ชั้น 1-3,กฟส. | N40: ผยค.กกค.
A41: การดำเนินงานระยะที่ 3-4 | B41: ข้อมูล ประเภท,จำนวน และการบำรุงรักษา ยานพาหนะ เป็นประจำทุกเดือน
B42: (โดยตรวจสอบ การ Update ข้อมูล จากโปรแกรม Car Management System (CMS)
B43: กฟฉ.1 | C43: รายงาน ฝวธ.(ภ2) ไตรมาสละ 1 ครั้ง (ภายใน 10 วันหลังสิ้นไตรมาส) | F43: 1 ครั้ง | H43: 1 ครั้ง | J43: 1 ครั้ง | L43: 1 ครั้ง
B44: end | L44: 6 | N44: 16
